Workbook

Sheet Summary
E2: All Intra Main10
E3: =CONCATENATE("Over ", $J$3) -> Over VTM 3.0 Windows OS | I3: Reference: | J3: VTM 3.0 Windows OS
C4: Y | D4: U | E4: V | F4: EncT | G4: DecT | I4: Tested: | J4: VTM 3.0 Linux OS
B5: Class A1 | C5: ='AI-10'!V107 ->  | D5: ='AI-10'!W107 ->  | E5: ='AI-10'!X107 ->  | F5: ='AI-10'!S107 ->  | G5: ='AI-10'!T107 -> 
B6: Class A2 | C6: ='AI-10'!V108 ->  | D6: ='AI-10'!W108 ->  | E6: ='AI-10'!X108 ->  | F6: ='AI-10'!S108 ->  | G6: ='AI-10'!T108 -> 
B7: Class B | C7: ='AI-10'!V109 ->  | D7: ='AI-10'!W109 ->  | E7: ='AI-10'!X109 ->  | F7: ='AI-10'!S109 ->  | G7: ='AI-10'!T109 -> 
B8: Class C | C8: ='AI-10'!V110 ->  | D8: ='AI-10'!W110 ->  | E8: ='AI-10'!X110 ->  | F8: ='AI-10'!S110 ->  | G8: ='AI-10'!T110 -> 
B9: Class E | C9: ='AI-10'!V112 ->  | D9: ='AI-10'!W112 ->  | E9: ='AI-10'!X112 ->  | F9: ='AI-10'!S112 ->  | G9: ='AI-10'!T112 -> 
B10: Overall | C10: ='AI-10'!V114 ->  | D10: ='AI-10'!W114 ->  | E10: ='AI-10'!X114 ->  | F10: ='AI-10'!S114 ->  | G10: ='AI-10'!T114 ->  | I10: Note: BD-rate is computed using piece-wise cubic interpolation
B11: Class D | C11: ='AI-10'!V111 ->  | D11: ='AI-10'!W111 ->  | E11: ='AI-10'!X111 ->  | F11: ='AI-10'!S111 ->  | G11: ='AI-10'!T111 -> 
B12: Class F | C12: ='AI-10'!V113 ->  | D12: ='AI-10'!W113 ->  | E12: ='AI-10'!X113 ->  | F12: ='AI-10'!S113 ->  | G12: ='AI-10'!T113 -> 
I13: Cluster information
E14: Random access Main10
E15: =CONCATENATE("Over ", $J$3) -> Over VTM 3.0 Windows OS | I15: CPU type: | J15: Intel Xeon E5-2697A v4
C16: Y | D16: U | E16: V | F16: EncT | G16: DecT
B17: =B5 -> Class A1 | C17: ='RA-10'!V107 -> 6.881266729e-06 | D17: ='RA-10'!W107 -> -2.761234368e-07 | E17: ='RA-10'!X107 -> 6.149794892e-06 | F17: ='RA-10'!S107 -> 0.8318977334 | G17: ='RA-10'!T107 -> 0.80642239 | I17: Hyperthreading: | J17: off
B18: =B6 -> Class A2 | C18: ='RA-10'!V108 -> 7.973999528e-06 | D18: ='RA-10'!W108 -> 7.117568306e-06 | E18: ='RA-10'!X108 -> 8.984318682e-07 | F18: ='RA-10'!S108 -> 0.8611006176 | G18: ='RA-10'!T108 -> 0.7675958959 | I18: Turbo mode: | J18: off
B19: =B7 -> Class B | C19: ='RA-10'!V109 -> 2.456934027e-06 | D19: ='RA-10'!W109 -> 2.726986506e-06 | E19: ='RA-10'!X109 -> 1.463542618e-05 | F19: ='RA-10'!S109 -> 0.8003941844 | G19: ='RA-10'!T109 -> 0.8066025536
B20: =B8 -> Class C | C20: ='RA-10'!V110 -> -2.889030998e-06 | D20: ='RA-10'!W110 -> -1.405259798e-06 | E20: ='RA-10'!X110 -> 4.855210918e-07 | F20: ='RA-10'!S110 -> 0.7837528771 | G20: ='RA-10'!T110 -> 0.9080202909 | I20: Compiler: | J20: gcc 7.2.1
B21: =B9 -> Class E
B22: Overall | C22: ='RA-10'!V114 -> 3.019622994e-06 | D22: ='RA-10'!W114 -> 1.902548529e-06 | E22: ='RA-10'!X114 -> 6.417593035e-06 | F22: ='RA-10'!S114 -> 0.813905249 | G22: ='RA-10'!T114 -> 0.8242350072 | I22: OS: | J22: Scientific Linux 7.4
B23: =B11 -> Class D | C23: ='RA-10'!V111 -> -3.882577049e-06 | D23: ='RA-10'!W111 -> 4.586554438e-06 | E23: ='RA-10'!X111 -> -5.548547494e-06 | F23: ='RA-10'!S111 -> 0.7839515203 | G23: ='RA-10'!T111 -> 0.8742895397
B24: =B12 -> Class F | C24: ='RA-10'!V113 -> 3.791203655e-07 | D24: ='RA-10'!W113 -> -4.408102825e-06 | E24: ='RA-10'!X113 -> -1.441125308e-06 | F24: ='RA-10'!S113 -> 0.8275965569 | G24: ='RA-10'!T113 -> 0.6842784521 | I24: Decoding options
E26: Low delay B Main10 | I26: Bitstream concatenation: | J26: yes
E27: =CONCATENATE("Over ", $J$3) -> Over VTM 3.0 Windows OS
C28: Y | D28: U | E28: V | F28: EncT | G28: DecT | I28: MD5 SEI: | J28: no
B29: =B5 -> Class A1 | I29: YUV output: | J29: yes
B30: =B6 -> Class A2
B31: =B7 -> Class B | C31: ='LDB-10'!V109 -> 0 | D31: ='LDB-10'!W109 -> 0 | E31: ='LDB-10'!X109 -> 0 | F31: ='LDB-10'!S109 -> 0.8806447736 | G31: ='LDB-10'!T109 -> 0.8478860397 | I31: SIMD options: | J31: SSE2
B32: =B8 -> Class C | C32: ='LDB-10'!V110 -> 0 | D32: ='LDB-10'!W110 -> 0 | E32: ='LDB-10'!X110 -> 0 | F32: ='LDB-10'!S110 -> 0.8192300376 | G32: ='LDB-10'!T110 -> 0.9231791017
B33: =B9 -> Class E | C33: ='LDB-10'!V112 -> 0 | D33: ='LDB-10'!W112 -> 0 | E33: ='LDB-10'!X112 -> 0 | F33: ='LDB-10'!S112 -> 0.7538221329 | G33: ='LDB-10'!T112 -> 0.6932838257
B34: Overall | C34: ='LDB-10'!V114 -> 0 | D34: ='LDB-10'!W114 -> 0 | E34: ='LDB-10'!X114 -> 0 | F34: ='LDB-10'!S114 -> 0.8268996876 | G34: ='LDB-10'!T114 -> 0.8294630429
B35: =B11 -> Class D | C35: ='LDB-10'!V111 -> 0 | D35: ='LDB-10'!W111 -> 0 | E35: ='LDB-10'!X111 -> 0 | F35: ='LDB-10'!S111 -> 0.7516901581 | G35: ='LDB-10'!T111 -> 0.9282085883
B36: =B12 -> Class F | C36: ='LDB-10'!V113 -> 0 | D36: ='LDB-10'!W113 -> 0 | E36: ='LDB-10'!X113 -> 0 | F36: ='LDB-10'!S113 -> 0.8127459758 | G36: ='LDB-10'!T113 -> 0.7271078611
E38: Low delay P Main10
E39: =CONCATENATE("Over ", $J$3) -> Over VTM 3.0 Windows OS
C40: Y | D40: U | E40: V | F40: EncT | G40: DecT
B41: =B5 -> Class A1
B42: =B6 -> Class A2
B43: =B7 -> Class B | C43: ='LDP-10'!V109 ->  | D43: ='LDP-10'!W109 ->  | E43: ='LDP-10'!X109 ->  | F43: ='LDP-10'!S109 ->  | G43: ='LDP-10'!T109 -> 
B44: =B8 -> Class C | C44: ='LDP-10'!V110 ->  | D44: ='LDP-10'!W110 ->  | E44: ='LDP-10'!X110 ->  | F44: ='LDP-10'!S110 ->  | G44: ='LDP-10'!T110 -> 
B45: =B9 -> Class E | C45: ='LDP-10'!V112 ->  | D45: ='LDP-10'!W112 ->  | E45: ='LDP-10'!X112 ->  | F45: ='LDP-10'!S112 ->  | G45: ='LDP-10'!T112 -> 
B46: Overall | C46: ='LDP-10'!V114 ->  | D46: ='LDP-10'!W114 ->  | E46: ='LDP-10'!X114 ->  | F46: ='LDP-10'!S114 ->  | G46: ='LDP-10'!T114 -> 
B47: =B11 -> Class D | C47: ='LDP-10'!V111 ->  | D47: ='LDP-10'!W111 ->  | E47: ='LDP-10'!X111 ->  | F47: ='LDP-10'!S111 ->  | G47: ='LDP-10'!T111 -> 
B48: =B12 -> Class F | C48: ='LDP-10'!V113 ->  | D48: ='LDP-10'!W113 ->  | E48: ='LDP-10'!X113 ->  | F48: ='LDP-10'!S113 ->  | G48: ='LDP-10'!T113 -> 

Sheet Plot
A1: Select the coding condition and sequence from the dropbox below | AD1: Line 1 - Reference | AI1: Line 2 - Test
A2: RA-10 | B2: Tango2 | AD2: kbps | AE2: Y psnr | AF2: U psnr | AG2: V psnr | AI2: kbps | AJ2: Y psnr | AK2: U psnr | AL2: V psnr
Z3: AI-10 | AA3: Tango2 | AB3: 3 | AC3: =VLOOKUP(B2,AA3:AB43,2,FALSE) -> 3 | AD3: =INDIRECT("'"&$A$2&"'!"&ADDRESS($AC3,4)) -> 27806.18776 | AE3: =INDIRECT("'"&$A$2&"'!"&ADDRESS($AC3,5)) -> 40.34155646 | AF3: =INDIRECT("'"&$A$2&"'!"&ADDRESS($AC3,6)) -> 49.15523571 | AG3: =INDIRECT("'"&$A$2&"'!"&ADDRESS($AC3,7)) -> 47.47193503 | AI3: =INDIRECT("'"&$A$2&"'!"&ADDRESS($AC3,12)) -> 27806.1878 | AJ3: =INDIRECT("'"&$A$2&"'!"&ADDRESS($AC3,13)) -> 40.3415 | AK3: =INDIRECT("'"&$A$2&"'!"&ADDRESS($AC3,14)) -> 49.1552 | AL3: =INDIRECT("'"&$A$2&"'!"&ADDRESS($AC3,15)) -> 47.4719
Z4: RA-10 | AA4: FoodMarket4 | AB4: =AB3+4 -> 7 | AC4: =AC3+1 -> 4 | AD4: =INDIRECT("'"&$A$2&"'!"&ADDRESS($AC4,4)) -> 7407.629388 | AE4: =INDIRECT("'"&$A$2&"'!"&ADDRESS($AC4,5)) -> 39.60377143 | AF4: =INDIRECT("'"&$A$2&"'!"&ADDRESS($AC4,6)) -> 48.3894898 | AG4: =INDIRECT("'"&$A$2&"'!"&ADDRESS($AC4,7)) -> 46.27626973 | AI4: =INDIRECT("'"&$A$2&"'!"&ADDRESS($AC4,12)) -> 7407.6294 | AJ4: =INDIRECT("'"&$A$2&"'!"&ADDRESS($AC4,13)) -> 39.6038 | AK4: =INDIRECT("'"&$A$2&"'!"&ADDRESS($AC4,14)) -> 48.3895 | AL4: =INDIRECT("'"&$A$2&"'!"&ADDRESS($AC4,15)) -> 46.2763
Z5: LDB-10 | AA5: Campfire | AB5: 11 | AC5: =AC4+1 -> 5 | AD5: =INDIRECT("'"&$A$2&"'!"&ADDRESS($AC5,4)) -> 3684.022857 | AE5: =INDIRECT("'"&$A$2&"'!"&ADDRESS($AC5,5)) -> 38.68650748 | AF5: =INDIRECT("'"&$A$2&"'!"&ADDRESS($AC5,6)) -> 47.58227517 | AG5: =INDIRECT("'"&$A$2&"'!"&ADDRESS($AC5,7)) -> 45.09515034 | AI5: =INDIRECT("'"&$A$2&"'!"&ADDRESS($AC5,12)) -> 3684.0229 | AJ5: =INDIRECT("'"&$A$2&"'!"&ADDRESS($AC5,13)) -> 38.6865 | AK5: =INDIRECT("'"&$A$2&"'!"&ADDRESS($AC5,14)) -> 47.5823 | AL5: =INDIRECT("'"&$A$2&"'!"&ADDRESS($AC5,15)) -> 45.0952
Z6: LDP-10 | AA6: CatRobot1 | AB6: 15 | AC6: =AC5+1 -> 6 | AD6: =INDIRECT("'"&$A$2&"'!"&ADDRESS($AC6,4)) -> 2034.716735 | AE6: =INDIRECT("'"&$A$2&"'!"&ADDRESS($AC6,5)) -> 37.28916871 | AF6: =INDIRECT("'"&$A$2&"'!"&ADDRESS($AC6,6)) -> 46.6998551 | AG6: =INDIRECT("'"&$A$2&"'!"&ADDRESS($AC6,7)) -> 43.81977041 | AI6: =INDIRECT("'"&$A$2&"'!"&ADDRESS($AC6,12)) -> 2034.7167 | AJ6: =INDIRECT("'"&$A$2&"'!"&ADDRESS($AC6,13)) -> 37.2892 | AK6: =INDIRECT("'"&$A$2&"'!"&ADDRESS($AC6,14)) -> 46.6999 | AL6: =INDIRECT("'"&$A$2&"'!"&ADDRESS($AC6,15)) -> 43.8198
AA7: DaylightRoad2 | AB7: 19
AA8: ParkRunning3 | AB8: 23 | AD8: ="Sequence: "&B2 & " Coding Conditions: " & A2 -> Sequence: Tango2 Coding Conditions: RA-10
AA9: MarketPlace | AB9: 27
AA10: RitualDance | AB10: 31
AA11: Cactus | AB11: 35 | AD11: rate | AE11: y | AF11: u | AG11: v
AA12: BasketballDrive | AB12: 39 | AD12: =MAX(AD3:AD6,AI3:AI6) -> 27806.1878 | AE12: =MAX(AE3:AE6,AJ3:AJ6) -> 40.34155646 | AF12: =MAX(AF3:AF6,AK3:AK6) -> 49.15523571 | AG12: =MAX(AG3:AG6,AL3:AL6) -> 47.47193503
AA13: BQTerrace | AB13: 43 | AD13: =MIN(AD3:AD6,AI3:AI6) -> 2034.7167 | AE13: =MIN(AE3:AE6,AJ3:AJ6) -> 37.28916871 | AF13: =MIN(AF3:AF6,AK3:AK6) -> 46.6998551 | AG13: =MIN(AG3:AG6,AL3:AL6) -> 43.81977041
AA14: BasketballDrill | AB14: 47
AA15: BQMall | AB15: 51 | AD15: =POWER(10,CEILING(LOG(AD12+1),1)) -> 100000 | AE15: =CEILING(AE12+0.25,0.5) -> 41 | AF15: =CEILING(AF12+0.25,0.5) -> 49.5 | AG15: =CEILING(AG12+0.25,0.5) -> 48
AA16: PartySceneC | AB16: 55 | AD16: =POWER(10,FLOOR(LOG(AD13+10),1)) -> 1000 | AE16: =FLOOR(AE13-0.25,0.5) -> 37 | AF16: =FLOOR(AF13-0.25,0.5) -> 46 | AG16: =FLOOR(AG13-0.25,0.5) -> 43.5
AA17: RaceHorsesC | AB17: 59
AA18: BasketballPass | AB18: 63
AA19: BQSquare | AB19: 67
AA20: BlowingBubbles | AB20: 71
AA21: RaceHorses | AB21: 75
AA22: FourPeople | AB22: 79
AA23: Johnny | AB23: 83
AA24: KristenAndSara | AB24: 87
AA25: BasketballDrillText | AB25: 91
AA26: ArenaOfValor | AB26: 95
AA27: SlideEditing | AB27: 99
AA28: SlideShow | AB28: 103

Sheet AI-10
D1: Reference | L1: Tested | V1: BD-rate (piecewise cubic) | Y1: BD-rate (cubic)
C2: QPISlice | D2: kbps | E2: Y psnr | F2: U psnr | G2: V psnr | H2: Enc T [s] | I2: Dec T [s] | J2: Enc T [h] | L2: kbps | M2: Y psnr | N2: U psnr | O2: V psnr | P2: Enc T [s] | Q2: Dec T [s] | R2: Enc T [h] | S2: EncR | T2: DecR | V2: Y | W2: U | X2: V | Y2: Y | Z2: U | AA2: V
A3: Class A1 | B3: Tango2 | C3: 22 | S3: =P3/H3 ->  | T3: =Q3/I3 ->  | V3: =bdrate($D3:$D6,E3:E6,$L3:$L6,M3:M6) ->  | W3: =bdrate($D3:$D6,F3:F6,$L3:$L6,N3:N6) ->  | X3: =bdrate($D3:$D6,G3:G6,$L3:$L6,O3:O6) ->  | Y3: =bdrateOld($D3:$D6,E3:E6,$L3:$L6,M3:M6) ->  | Z3: =bdrateOld($D3:$D6,F3:F6,$L3:$L6,N3:N6) ->  | AA3: =bdrateOld($D3:$D6,G3:G6,$L3:$L6,O3:O6) -> 
A4: 4K | C4: 27
C5: 32
C6: 37
B7: FoodMarket4 | C7: 22 | V7: =bdrate($D7:$D10,E7:E10,$L7:$L10,M7:M10) ->  | W7: =bdrate($D7:$D10,F7:F10,$L7:$L10,N7:N10) ->  | X7: =bdrate($D7:$D10,G7:G10,$L7:$L10,O7:O10) ->  | Y7: =bdrateOld($D7:$D10,E7:E10,$L7:$L10,M7:M10) ->  | Z7: =bdrateOld($D7:$D10,F7:F10,$L7:$L10,N7:N10) ->  | AA7: =bdrateOld($D7:$D10,G7:G10,$L7:$L10,O7:O10) -> 
C8: 27
C9: 32
C10: 37
B11: Campfire | C11: 22 | V11: =bdrate($D11:$D14,E11:E14,$L11:$L14,M11:M14) ->  | W11: =bdrate($D11:$D14,F11:F14,$L11:$L14,N11:N14) ->  | X11: =bdrate($D11:$D14,G11:G14,$L11:$L14,O11:O14) ->  | Y11: =bdrateOld($D11:$D14,E11:E14,$L11:$L14,M11:M14) ->  | Z11: =bdrateOld($D11:$D14,F11:F14,$L11:$L14,N11:N14) ->  | AA11: =bdrateOld($D11:$D14,G11:G14,$L11:$L14,O11:O14) -> 
C12: 27
C13: 32
C14: 37
A15: Class A2 | B15: CatRobot1 | C15: 22 | V15: =bdrate($D15:$D18,E15:E18,$L15:$L18,M15:M18) ->  | W15: =bdrate($D15:$D18,F15:F18,$L15:$L18,N15:N18) ->  | X15: =bdrate($D15:$D18,G15:G18,$L15:$L18,O15:O18) ->  | Y15: =bdrateOld($D15:$D18,E15:E18,$L15:$L18,M15:M18) ->  | Z15: =bdrateOld($D15:$D18,F15:F18,$L15:$L18,N15:N18) ->  | AA15: =bdrateOld($D15:$D18,G15:G18,$L15:$L18,O15:O18) -> 
A16: 4K | C16: 27
C17: 32
C18: 37
B19: DaylightRoad2 | C19: 22 | V19: =bdrate($D19:$D22,E19:E22,$L19:$L22,M19:M22) ->  | W19: =bdrate($D19:$D22,F19:F22,$L19:$L22,N19:N22) ->  | X19: =bdrate($D19:$D22,G19:G22,$L19:$L22,O19:O22) ->  | Y19: =bdrateOld($D19:$D22,E19:E22,$L19:$L22,M19:M22) ->  | Z19: =bdrateOld($D19:$D22,F19:F22,$L19:$L22,N19:N22) ->  | AA19: =bdrateOld($D19:$D22,G19:G22,$L19:$L22,O19:O22) -> 
C20: 27
C21: 32
C22: 37
B23: ParkRunning3 | C23: 22 | V23: =bdrate($D23:$D26,E23:E26,$L23:$L26,M23:M26) ->  | W23: =bdrate($D23:$D26,F23:F26,$L23:$L26,N23:N26) ->  | X23: =bdrate($D23:$D26,G23:G26,$L23:$L26,O23:O26) ->  | Y23: =bdrateOld($D23:$D26,E23:E26,$L23:$L26,M23:M26) ->  | Z23: =bdrateOld($D23:$D26,F23:F26,$L23:$L26,N23:N26) ->  | AA23: =bdrateOld($D23:$D26,G23:G26,$L23:$L26,O23:O26) -> 
C24: 27
C25: 32
C26: 37
A27: Class B | B27: MarketPlace | C27: 22 | V27: =bdrate($D27:$D30,E27:E30,$L27:$L30,M27:M30) ->  | W27: =bdrate($D27:$D30,F27:F30,$L27:$L30,N27:N30) ->  | X27: =bdrate($D27:$D30,G27:G30,$L27:$L30,O27:O30) ->  | Y27: =bdrateOld($D27:$D30,E27:E30,$L27:$L30,M27:M30) ->  | Z27: =bdrateOld($D27:$D30,F27:F30,$L27:$L30,N27:N30) ->  | AA27: =bdrateOld($D27:$D30,G27:G30,$L27:$L30,O27:O30) -> 
A28: 1080p | C28: 27
C29: 32
C30: 37
B31: RitualDance | C31: 22 | V31: =bdrate($D31:$D34,E31:E34,$L31:$L34,M31:M34) ->  | W31: =bdrate($D31:$D34,F31:F34,$L31:$L34,N31:N34) ->  | X31: =bdrate($D31:$D34,G31:G34,$L31:$L34,O31:O34) ->  | Y31: =bdrateOld($D31:$D34,E31:E34,$L31:$L34,M31:M34) ->  | Z31: =bdrateOld($D31:$D34,F31:F34,$L31:$L34,N31:N34) ->  | AA31: =bdrateOld($D31:$D34,G31:G34,$L31:$L34,O31:O34) -> 
C32: 27
C33: 32
C34: 37
B35: Cactus | C35: 22 | S35: =P35/H35 ->  | T35: =Q35/I35 ->  | V35: =bdrate($D35:$D38,E35:E38,$L35:$L38,M35:M38) ->  | W35: =bdrate($D35:$D38,F35:F38,$L35:$L38,N35:N38) ->  | X35: =bdrate($D35:$D38,G35:G38,$L35:$L38,O35:O38) ->  | Y35: =bdrateOld($D35:$D38,E35:E38,$L35:$L38,M35:M38) ->  | Z35: =bdrateOld($D35:$D38,F35:F38,$L35:$L38,N35:N38) ->  | AA35: =bdrateOld($D35:$D38,G35:G38,$L35:$L38,O35:O38) -> 
C36: 27
C37: 32
C38: 37
B39: BasketballDrive | C39: 22 | V39: =bdrate($D39:$D42,E39:E42,$L39:$L42,M39:M42) ->  | W39: =bdrate($D39:$D42,F39:F42,$L39:$L42,N39:N42) ->  | X39: =bdrate($D39:$D42,G39:G42,$L39:$L42,O39:O42) ->  | Y39: =bdrateOld($D39:$D42,E39:E42,$L39:$L42,M39:M42) ->  | Z39: =bdrateOld($D39:$D42,F39:F42,$L39:$L42,N39:N42) ->  | AA39: =bdrateOld($D39:$D42,G39:G42,$L39:$L42,O39:O42) -> 
C40: 27
C41: 32
C42: 37
B43: BQTerrace | C43: 22 | V43: =bdrate($D43:$D46,E43:E46,$L43:$L46,M43:M46) ->  | W43: =bdrate($D43:$D46,F43:F46,$L43:$L46,N43:N46) ->  | X43: =bdrate($D43:$D46,G43:G46,$L43:$L46,O43:O46) ->  | Y43: =bdrateOld($D43:$D46,E43:E46,$L43:$L46,M43:M46) ->  | Z43: =bdrateOld($D43:$D46,F43:F46,$L43:$L46,N43:N46) ->  | AA43: =bdrateOld($D43:$D46,G43:G46,$L43:$L46,O43:O46) -> 
C44: 27
C45: 32
C46: 37
A47: Class C | B47: BasketballDrill | C47: 22 | V47: =bdrate($D47:$D50,E47:E50,$L47:$L50,M47:M50) ->  | W47: =bdrate($D47:$D50,F47:F50,$L47:$L50,N47:N50) ->  | X47: =bdrate($D47:$D50,G47:G50,$L47:$L50,O47:O50) ->  | Y47: =bdrateOld($D47:$D50,E47:E50,$L47:$L50,M47:M50) ->  | Z47: =bdrateOld($D47:$D50,F47:F50,$L47:$L50,N47:N50) ->  | AA47: =bdrateOld($D47:$D50,G47:G50,$L47:$L50,O47:O50) -> 
A48: WVGA | C48: 27
C49: 32
C50: 37
B51: BQMall | C51: 22 | V51: =bdrate($D51:$D54,E51:E54,$L51:$L54,M51:M54) ->  | W51: =bdrate($D51:$D54,F51:F54,$L51:$L54,N51:N54) ->  | X51: =bdrate($D51:$D54,G51:G54,$L51:$L54,O51:O54) ->  | Y51: =bdrateOld($D51:$D54,E51:E54,$L51:$L54,M51:M54) ->  | Z51: =bdrateOld($D51:$D54,F51:F54,$L51:$L54,N51:N54) ->  | AA51: =bdrateOld($D51:$D54,G51:G54,$L51:$L54,O51:O54) -> 
C52: 27
C53: 32
C54: 37
B55: PartyScene | C55: 22 | V55: =bdrate($D55:$D58,E55:E58,$L55:$L58,M55:M58) ->  | W55: =bdrate($D55:$D58,F55:F58,$L55:$L58,N55:N58) ->  | X55: =bdrate($D55:$D58,G55:G58,$L55:$L58,O55:O58) ->  | Y55: =bdrateOld($D55:$D58,E55:E58,$L55:$L58,M55:M58) ->  | Z55: =bdrateOld($D55:$D58,F55:F58,$L55:$L58,N55:N58) ->  | AA55: =bdrateOld($D55:$D58,G55:G58,$L55:$L58,O55:O58) -> 
C56: 27
C57: 32
C58: 37
B59: RaceHorses | C59: 22 | V59: =bdrate($D59:$D62,E59:E62,$L59:$L62,M59:M62) ->  | W59: =bdrate($D59:$D62,F59:F62,$L59:$L62,N59:N62) ->  | X59: =bdrate($D59:$D62,G59:G62,$L59:$L62,O59:O62) ->  | Y59: =bdrateOld($D59:$D62,E59:E62,$L59:$L62,M59:M62) ->  | Z59: =bdrateOld($D59:$D62,F59:F62,$L59:$L62,N59:N62) ->  | AA59: =bdrateOld($D59:$D62,G59:G62,$L59:$L62,O59:O62) -> 
C60: 27
C61: 32
C62: 37
A63: Class D | B63: BasketballPass | C63: =C59 -> 22 | V63: =bdrate($D63:$D66,E63:E66,$L63:$L66,M63:M66) ->  | W63: =bdrate($D63:$D66,F63:F66,$L63:$L66,N63:N66) ->  | X63: =bdrate($D63:$D66,G63:G66,$L63:$L66,O63:O66) ->  | Y63: =bdrateOld($D63:$D66,E63:E66,$L63:$L66,M63:M66) ->  | Z63: =bdrateOld($D63:$D66,F63:F66,$L63:$L66,N63:N66) ->  | AA63: =bdrateOld($D63:$D66,G63:G66,$L63:$L66,O63:O66) -> 
A64: WQVGA | C64: =C60 -> 27
C65: =C61 -> 32
C66: =C62 -> 37
B67: BQSquare | C67: 22 | S67: =P67/H67 ->  | T67: =Q67/I67 ->  | V67: =bdrate($D67:$D70,E67:E70,$L67:$L70,M67:M70) ->  | W67: =bdrate($D67:$D70,F67:F70,$L67:$L70,N67:N70) ->  | X67: =bdrate($D67:$D70,G67:G70,$L67:$L70,O67:O70) ->  | Y67: =bdrateOld($D67:$D70,E67:E70,$L67:$L70,M67:M70) ->  | Z67: =bdrateOld($D67:$D70,F67:F70,$L67:$L70,N67:N70) ->  | AA67: =bdrateOld($D67:$D70,G67:G70,$L67:$L70,O67:O70) -> 
C68: 27
C69: 32
C70: 37
B71: BlowingBubbles | C71: 22 | V71: =bdrate($D71:$D74,E71:E74,$L71:$L74,M71:M74) ->  | W71: =bdrate($D71:$D74,F71:F74,$L71:$L74,N71:N74) ->  | X71: =bdrate($D71:$D74,G71:G74,$L71:$L74,O71:O74) ->  | Y71: =bdrateOld($D71:$D74,E71:E74,$L71:$L74,M71:M74) ->  | Z71: =bdrateOld($D71:$D74,F71:F74,$L71:$L74,N71:N74) ->  | AA71: =bdrateOld($D71:$D74,G71:G74,$L71:$L74,O71:O74) -> 
C72: 27
C73: 32
C74: 37
B75: RaceHorses | C75: 22 | V75: =bdrate($D75:$D78,E75:E78,$L75:$L78,M75:M78) ->  | W75: =bdrate($D75:$D78,F75:F78,$L75:$L78,N75:N78) ->  | X75: =bdrate($D75:$D78,G75:G78,$L75:$L78,O75:O78) ->  | Y75: =bdrateOld($D75:$D78,E75:E78,$L75:$L78,M75:M78) ->  | Z75: =bdrateOld($D75:$D78,F75:F78,$L75:$L78,N75:N78) ->  | AA75: =bdrateOld($D75:$D78,G75:G78,$L75:$L78,O75:O78) -> 
C76: 27
C77: 32
C78: 37
A79: ClassE | B79: FourPeople | C79: 22 | V79: =bdrate($D79:$D82,E79:E82,$L79:$L82,M79:M82) ->  | W79: =bdrate($D79:$D82,F79:F82,$L79:$L82,N79:N82) ->  | X79: =bdrate($D79:$D82,G79:G82,$L79:$L82,O79:O82) ->  | Y79: =bdrateOld($D79:$D82,E79:E82,$L79:$L82,M79:M82) ->  | Z79: =bdrateOld($D79:$D82,F79:F82,$L79:$L82,N79:N82) ->  | AA79: =bdrateOld($D79:$D82,G79:G82,$L79:$L82,O79:O82) -> 
A80: 720p | C80: 27
C81: 32
C82: 37
B83: Johnny | C83: 22 | V83: =bdrate($D83:$D86,E83:E86,$L83:$L86,M83:M86) ->  | W83: =bdrate($D83:$D86,F83:F86,$L83:$L86,N83:N86) ->  | X83: =bdrate($D83:$D86,G83:G86,$L83:$L86,O83:O86) ->  | Y83: =bdrateOld($D83:$D86,E83:E86,$L83:$L86,M83:M86) ->  | Z83: =bdrateOld($D83:$D86,F83:F86,$L83:$L86,N83:N86) ->  | AA83: =bdrateOld($D83:$D86,G83:G86,$L83:$L86,O83:O86) -> 
C84: 27
C85: 32
C86: 37
B87: KristenAndSara | C87: 22 | V87: =bdrate($D87:$D90,E87:E90,$L87:$L90,M87:M90) ->  | W87: =bdrate($D87:$D90,F87:F90,$L87:$L90,N87:N90) ->  | X87: =bdrate($D87:$D90,G87:G90,$L87:$L90,O87:O90) ->  | Y87: =bdrateOld($D87:$D90,E87:E90,$L87:$L90,M87:M90) ->  | Z87: =bdrateOld($D87:$D90,F87:F90,$L87:$L90,N87:N90) ->  | AA87: =bdrateOld($D87:$D90,G87:G90,$L87:$L90,O87:O90) -> 
C88: 27
C89: 32
C90: 37
A91: ClassF | B91: BasketballDrillText | C91: 22 | V91: =bdrate($D91:$D94,E91:E94,$L91:$L94,M91:M94) ->  | W91: =bdrate($D91:$D94,F91:F94,$L91:$L94,N91:N94) ->  | X91: =bdrate($D91:$D94,G91:G94,$L91:$L94,O91:O94) ->  | Y91: =bdrateOld($D91:$D94,E91:E94,$L91:$L94,M91:M94) ->  | Z91: =bdrateOld($D91:$D94,F91:F94,$L91:$L94,N91:N94) ->  | AA91: =bdrateOld($D91:$D94,G91:G94,$L91:$L94,O91:O94) -> 
C92: 27
C93: 32
C94: 37
B95: ArenaOfValor | C95: 22 | V95: =bdrate($D95:$D98,E95:E98,$L95:$L98,M95:M98) ->  | W95: =bdrate($D95:$D98,F95:F98,$L95:$L98,N95:N98) ->  | X95: =bdrate($D95:$D98,G95:G98,$L95:$L98,O95:O98) ->  | Y95: =bdrateOld($D95:$D98,E95:E98,$L95:$L98,M95:M98) ->  | Z95: =bdrateOld($D95:$D98,F95:F98,$L95:$L98,N95:N98) ->  | AA95: =bdrateOld($D95:$D98,G95:G98,$L95:$L98,O95:O98) -> 
C96: 27
C97: 32
C98: 37
B99: SlideEditing | C99: 22 | S99: =P99/H99 ->  | T99: =Q99/I99 ->  | V99: =bdrate($D99:$D102,E99:E102,$L99:$L102,M99:M102) ->  | W99: =bdrate($D99:$D102,F99:F102,$L99:$L102,N99:N102) ->  | X99: =bdrate($D99:$D102,G99:G102,$L99:$L102,O99:O102) ->  | Y99: =bdrateOld($D99:$D102,E99:E102,$L99:$L102,M99:M102) ->  | Z99: =bdrateOld($D99:$D102,F99:F102,$L99:$L102,N99:N102) ->  | AA99: =bdrateOld($D99:$D102,G99:G102,$L99:$L102,O99:O102) -> 
C100: 27
C101: 32
C102: 37
B103: SlideShow | C103: 22 | V103: =bdrate($D103:$D106,E103:E106,$L103:$L106,M103:M106) ->  | W103: =bdrate($D103:$D106,F103:F106,$L103:$L106,N103:N106) ->  | X103: =bdrate($D103:$D106,G103:G106,$L103:$L106,O103:O106) ->  | Y103: =bdrateOld($D103:$D106,E103:E106,$L103:$L106,M103:M106) ->  | Z103: =bdrateOld($D103:$D106,F103:F106,$L103:$L106,N103:N106) ->  | AA103: =bdrateOld($D103:$D106,G103:G106,$L103:$L106,O103:O106) -> 
C104: 27
C105: 32
C106: 37
B107: Class A1 | I107: =GEOMEAN(I3:I14) ->  | J107: =GEOMEAN(J3:J14) ->  | Q107: =GEOMEAN(Q3:Q14) ->  | R107: =GEOMEAN(R3:R14) ->  | S107: =GEOMEAN(S3:S14) ->  | T107: =GEOMEAN(T3:T14) ->  | V107: =AVERAGE(V3:V14) -> 
B108: Class A2 | I108: =GEOMEAN(I15:I26) ->  | J108: =GEOMEAN(J15:J26) ->  | Q108: =GEOMEAN(Q15:Q26) ->  | R108: =GEOMEAN(R15:R26) ->  | S108: =GEOMEAN(S15:S26) ->  | T108: =GEOMEAN(T15:T26) ->  | V108: =AVERAGE(V15:V26) -> 
B109: Class B | I109: =GEOMEAN(I27:I46) ->  | J109: =GEOMEAN(J27:J46) ->  | Q109: =GEOMEAN(Q27:Q46) ->  | R109: =GEOMEAN(R27:R46) ->  | S109: =GEOMEAN(S27:S46) ->  | T109: =GEOMEAN(T27:T46) ->  | V109: =AVERAGE(V27:V46) -> 
B110: Class C | I110: =GEOMEAN(I47:I62) ->  | J110: =GEOMEAN(J47:J62) ->  | Q110: =GEOMEAN(Q47:Q62) ->  | R110: =GEOMEAN(R47:R62) ->  | S110: =GEOMEAN(S47:S62) ->  | T110: =GEOMEAN(T47:T62) ->  | V110: =AVERAGE(V47:V62) -> 
B111: Class D | I111: =GEOMEAN(I63:I78) ->  | J111: =GEOMEAN(J63:J78) ->  | Q111: =GEOMEAN(Q63:Q78) ->  | R111: =GEOMEAN(R63:R78) ->  | S111: =GEOMEAN(S63:S78) ->  | T111: =GEOMEAN(T63:T78) ->  | V111: =AVERAGE(V63:V78) -> 
B112: Class E | I112: =GEOMEAN(I79:I90) ->  | J112: =GEOMEAN(J79:J90) ->  | Q112: =GEOMEAN(Q79:Q90) ->  | R112: =GEOMEAN(R79:R90) ->  | S112: =GEOMEAN(S79:S90) ->  | T112: =GEOMEAN(T79:T90) ->  | V112: =AVERAGE(V79:V88) -> 
B113: Class F | I113: =GEOMEAN(I91:I106) ->  | J113: =GEOMEAN(J91:J106) ->  | Q113: =GEOMEAN(Q91:Q106) ->  | R113: =GEOMEAN(R91:R106) ->  | S113: =GEOMEAN(S91:S106) ->  | T113: =GEOMEAN(T91:T106) ->  | V113: =AVERAGE(V91:V106) -> 
B114: All | I114: =GEOMEAN(I3:I62, I79:I90) ->  | J114: =GEOMEAN(J3:J62,J79:J90) ->  | Q114: =GEOMEAN(Q3:Q62,Q79:Q90) ->  | R114: =GEOMEAN(R3:R62,R79:R90) ->  | S114: =GEOMEAN(S3:S62,S79:S90) ->  | T114: =GEOMEAN(T3:T62,T79:T90) ->  | V114: =AVERAGE(V3:V62,V79:V90) -> 
B115: Time geomean | I115: =GEOMEAN(I3:I106) ->  | J115: =GEOMEAN(J3:J106) ->  | Q115: =GEOMEAN(Q3:Q106) ->  | R115: =GEOMEAN(R3:R106) -> 
B116: Time ratio | Q116: =Q115/I115 ->  | R116: =R115/J115 -> 
B117: Time sum (hours)

Sheet RA-10
D1: Reference | L1: Tested | V1: BD-rate (piecewise cubic) | Y1: BD-rate (cubic)
C2: QPISlice | D2: kbps | E2: Y psnr | F2: U psnr | G2: V psnr | H2: Enc T [s] | I2: Dec T [s] | J2: Enc T [h] | L2: kbps | M2: Y psnr | N2: U psnr | O2: V psnr | P2: Enc T [s] | Q2: Dec T [s] | R2: Enc T [h] | S2: Enc | T2: Dec | V2: Y | W2: U | X2: V | Y2: Y | Z2: U | AA2: V
A3: Class A1 | B3: Tango2 | C3: 22 | D3: 27806.18776 | E3: 40.34155646 | F3: 49.15523571 | G3: 47.47193503 | H3: 601086.971 | I3: 195.947 | J3: =H3/3600 -> 166.9686031 | L3: =Test!B105 -> 27806.1878 | M3: =Test!C105 -> 40.3415 | N3: =Test!D105 -> 49.1552 | O3: =Test!E105 -> 47.4719 | P3: =Test!F105 -> 601457.09 | Q3: =Test!G105 -> 169.65 | R3: =P3/3600 -> 167.0714139 | S3: =P3/H3 -> 1.000615749 | T3: =Q3/I3 -> 0.8657953426 | V3: =bdrate($D3:$D6,E3:E6,$L3:$L6,M3:M6) -> 3.413244533e-06 | W3: =bdrate($D3:$D6,F3:F6,$L3:$L6,N3:N6) -> -6.115903453e-06 | X3: =bdrate($D3:$D6,G3:G6,$L3:$L6,O3:O6) -> -1.424110871e-05 | Y3: =bdrateOld($D3:$D6,E3:E6,$L3:$L6,M3:M6) -> 1.293025959e-05 | Z3: =bdrateOld($D3:$D6,F3:F6,$L3:$L6,N3:N6) -> -5.613981197e-06 | AA3: =bdrateOld($D3:$D6,G3:G6,$L3:$L6,O3:O6) -> -1.30143021e-05
A4: 4K | C4: 27 | D4: 7407.629388 | E4: 39.60377143 | F4: 48.3894898 | G4: 46.27626973 | H4: 310184.382 | I4: 151.966 | J4: 86.16232833 | L4: =Test!B106 -> 7407.6294 | M4: =Test!C106 -> 39.6038 | N4: =Test!D106 -> 48.3895 | O4: =Test!E106 -> 46.2763 | P4: =Test!F106 -> 263434.89 | Q4: =Test!G106 -> 117.55 | R4: 73.17635833 | S4: 0.8492848296 | T4: 0.7735282892
C5: 32 | D5: 3684.022857 | E5: 38.68650748 | F5: 47.58227517 | G5: 45.09515034 | H5: 207064.561 | I5: 139.528 | J5: 57.51793361 | L5: =Test!B107 -> 3684.0229 | M5: =Test!C107 -> 38.6865 | N5: =Test!D107 -> 47.5823 | O5: =Test!E107 -> 45.0952 | P5: =Test!F107 -> 156520.41 | Q5: =Test!G107 -> 110.63 | R5: 43.47789167 | S5: 0.7559014891 | T5: 0.7928874491
C6: 37 | D6: 2034.716735 | E6: 37.28916871 | F6: 46.6998551 | G6: 43.81977041 | H6: 125787.336 | I6: 121.463 | J6: 34.94092667 | L6: =Test!B108 -> 2034.7167 | M6: =Test!C108 -> 37.2892 | N6: =Test!D108 -> 46.6999 | O6: =Test!E108 -> 43.8198 | P6: =Test!F108 -> 91125.01 | Q6: =Test!G108 -> 90.64 | R6: 25.31250278 | S6: 0.7244370769 | T6: 0.7462354791
B7: FoodMarket4 | C7: 22 | D7: 17146.1264 | E7: 44.199266 | F7: 49.054483 | G7: 49.70318233 | H7: 393794.921 | I7: 177.441 | J7: 109.3874781 | L7: =Test!B109 -> 17147.6672 | M7: =Test!C109 -> 44.1993 | N7: =Test!D109 -> 49.0545 | O7: =Test!E109 -> 49.7029 | P7: =Test!F109 -> 390123.55 | Q7: =Test!G109 -> 154.44 | R7: 108.3676528 | S7: 0.9906769468 | T7: 0.8703738144 | V7: =bdrate($D7:$D10,E7:E10,$L7:$L10,M7:M10) -> 8.32731245e-06 | W7: =bdrate($D7:$D10,F7:F10,$L7:$L10,N7:N10) -> -3.301717213e-06 | X7: =bdrate($D7:$D10,G7:G10,$L7:$L10,O7:O10) -> 2.669454621e-05 | Y7: =bdrateOld($D7:$D10,E7:E10,$L7:$L10,M7:M10) -> 9.193377367e-06 | Z7: =bdrateOld($D7:$D10,F7:F10,$L7:$L10,N7:N10) -> -4.25878123e-06 | AA7: =bdrateOld($D7:$D10,G7:G10,$L7:$L10,O7:O10) -> 2.626239383e-05
C8: 27 | D8: 7449.8688 | E8: 42.70803767 | F8: 47.295844 | G8: 47.777488 | H8: 245126.805 | I8: 156.9 | J8: 68.09077917 | L8: =Test!B110 -> 7449.8688 | M8: =Test!C110 -> 42.708 | N8: =Test!D110 -> 47.2959 | O8: =Test!E110 -> 47.7775 | P8: =Test!F110 -> 220923.28 | Q8: =Test!G110 -> 132.83 | R8: 61.36757778 | S8: 0.9012612064 | T8: 0.8465901848
C9: 32 | D9: 3922.0944 | E9: 40.798063 | F9: 45.821371 | G9: 46.17926367 | H9: 168033.136 | I9: 144.312 | J9: 46.67587111 | L9: =Test!B111 -> 3922.0944 | M9: =Test!C111 -> 40.7981 | N9: =Test!D111 -> 45.8214 | O9: =Test!E111 -> 46.1793 | P9: =Test!F111 -> 135325.91 | Q9: =Test!G111 -> 111.95 | R9: 37.59053056 | S9: 0.8053525229 | T9: 0.7757497644
C10: 37 | D10: 2092.9536 | E10: 38.451952 | F10: 44.46859033 | G10: 44.691537 | H10: 111791.128 | I10: 127.414 | J10: 31.05309111 | L10: =Test!B112 -> 2092.9536 | M10: =Test!C112 -> 38.4519 | N10: =Test!D112 -> 44.4686 | O10: =Test!E112 -> 44.6915 | P10: =Test!F112 -> 81802.07 | Q10: =Test!G112 -> 99 | R10: 22.72279722 | S10: 0.7317402683 | T10: 0.7769946788
B11: Campfire | C11: 22 | D11: 59922.9088 | E11: 39.529919 | F11: 42.19876033 | G11: 42.593363 | H11: 900015.242 | I11: 273.927 | J11: 250.0042339 | L11: =Test!B113 -> 59923.084 | M11: =Test!C113 -> 39.5299 | N11: =Test!D113 -> 42.1988 | O11: =Test!E113 -> 42.5934 | P11: =Test!F113 -> 867394.95 | Q11: =Test!G113 -> 235.67 | R11: 240.9430417 | S11: 0.9637558449 | T11: 0.8603387034 | V11: =bdrate($D11:$D14,E11:E14,$L11:$L14,M11:M14) -> 8.903243204e-06 | W11: =bdrate($D11:$D14,F11:F14,$L11:$L14,N11:N14) -> 8.589250356e-06 | X11: =bdrate($D11:$D14,G11:G14,$L11:$L14,O11:O14) -> 5.995947174e-06 | Y11: =bdrateOld($D11:$D14,E11:E14,$L11:$L14,M11:M14) -> 1.165879291e-05 | Z11: =bdrateOld($D11:$D14,F11:F14,$L11:$L14,N11:N14) -> 4.782269e-06 | AA11: =bdrateOld($D11:$D14,G11:G14,$L11:$L14,O11:O14) -> 5.944221481e-06
C12: 27 | D12: 17556.428 | E12: 37.55673433 | F12: 39.046893 | G12: 41.084033 | H12: 547042.964 | I12: 185.581 | J12: 151.9563789 | L12: =Test!B114 -> 17556.428 | M12: =Test!C114 -> 37.5567 | N12: =Test!D114 -> 39.0469 | O12: =Test!E114 -> 41.084 | P12: =Test!F114 -> 470197.14 | Q12: =Test!G114 -> 150.81 | R12: 130.6103167 | S12: 0.8595250665 | T12: 0.8126370695
C13: 32 | D13: 8964.9072 | E13: 36.43949333 | F13: 37.417459 | G13: 39.953738 | H13: 401216.287 | I13: 154.865 | J13: 111.4489686 | L13: =Test!B115 -> 8964.8088 | M13: =Test!C115 -> 36.4395 | N13: =Test!D115 -> 37.4173 | O13: =Test!E115 -> 39.9537 | P13: =Test!F115 -> 307992.89 | Q13: =Test!G115 -> 124.7 | R13: 85.55358056 | S13: 0.7676480242 | T13: 0.8052174475
C14: 37 | D14: 4925.3 | E14: 35.06092133 | F14: 35.338647 | G14: 38.63917367 | H14: 290016.498 | I14: 138.911 | J14: 80.56013833 | L14: =Test!B116 -> 4925.3 | M14: =Test!C116 -> 35.0609 | N14: =Test!D116 -> 35.3386 | O14: =Test!E116 -> 38.6392 | P14: =Test!F116 -> 204626.56 | Q14: =Test!G116 -> 106.05 | R14: 56.84071111 | S14: 0.705568688 | T14: 0.7634384606
A15: Class A2 | B15: CatRobot1 | C15: 22 | D15: 33305.7264 | E15: 40.39389633 | F15: 41.85156833 | G15: 43.533976 | H15: 461273.72 | I15: 198.291 | J15: 128.1315889 | L15: =Test!B117 -> 33305.7264 | M15: =Test!C117 -> 40.3939 | N15: =Test!D117 -> 41.8516 | O15: =Test!E117 -> 43.534 | P15: =Test!F117 -> 447204.18 | Q15: =Test!G117 -> 144.11 | R15: 124.2233833 | S15: 0.9694985008 | T15: 0.7267601656 | V15: =bdrate($D15:$D18,E15:E18,$L15:$L18,M15:M18) -> 2.137711522e-05 | W15: =bdrate($D15:$D18,F15:F18,$L15:$L18,N15:N18) -> 1.214811764e-06 | X15: =bdrate($D15:$D18,G15:G18,$L15:$L18,O15:O18) -> 8.679679417e-06 | Y15: =bdrateOld($D15:$D18,E15:E18,$L15:$L18,M15:M18) -> 1.572841116e-05 | Z15: =bdrateOld($D15:$D18,F15:F18,$L15:$L18,N15:N18) -> 3.7413255e-06 | AA15: =bdrateOld($D15:$D18,G15:G18,$L15:$L18,O15:O18) -> 8.279642674e-06
A16: 4K | C16: 27 | D16: 8628.5424 | E16: 39.38135067 | F16: 41.32668767 | G16: 42.384542 | H16: 275934.02 | I16: 142.566 | J16: 76.64833889 | L16: =Test!B118 -> 8628.5424 | M16: =Test!C118 -> 39.3813 | N16: =Test!D118 -> 41.3267 | O16: =Test!E118 -> 42.3845 | P16: =Test!F118 -> 229737.09 | Q16: =Test!G118 -> 109.48 | R16: 63.81585833 | S16: 0.8325797957 | T16: 0.7679250312
C17: 32 | D17: 4239.68 | E17: 38.114744 | F17: 40.74673433 | G17: 41.219194 | H17: 197420.945 | I17: 123.356 | J17: 54.83915139 | L17: =Test!B119 -> 4239.68 | M17: =Test!C119 -> 38.1147 | N17: =Test!D119 -> 40.7467 | O17: =Test!E119 -> 41.2192 | P17: =Test!F119 -> 150618.71 | Q17: =Test!G119 -> 92.16 | R17: 41.83853056 | S17: 0.7629317649 | T17: 0.7471059373
C18: 37 | D18: 2272.5792 | E18: 36.37850267 | F18: 40.09264667 | G18: 40.03082133 | H18: 134815.774 | I18: 112.341 | J18: 37.44882611 | L18: =Test!B120 -> 2272.5792 | M18: =Test!C120 -> 36.3785 | N18: =Test!D120 -> 40.0926 | O18: =Test!E120 -> 40.0308 | P18: =Test!F120 -> 94918.72 | Q18: =Test!G120 -> 79.94 | R18: 26.36631111 | S18: 0.7040624193 | T18: 0.7115834824
B19: DaylightRoad2 | C19: 22 | D19: 56872.3984 | E19: 38.15195833 | F19: 45.62381267 | G19: 43.38069333 | H19: 610588.099 | I19: 225.403 | J19: 169.6078053 | L19: =Test!B121 -> 56872.3984 | M19: =Test!C121 -> 38.152 | N19: =Test!D121 -> 45.6238 | O19: =Test!E121 -> 43.3807 | P19: =Test!F121 -> 651421.59 | Q19: =Test!G121 -> 183.42 | R19: 180.9504417 | S19: 1.066875675 | T19: 0.8137424968 | V19: =bdrate($D19:$D22,E19:E22,$L19:$L22,M19:M22) -> -4.557088962e-08 | W19: =bdrate($D19:$D22,F19:F22,$L19:$L22,N19:N22) -> 2.226236203e-05 | X19: =bdrate($D19:$D22,G19:G22,$L19:$L22,O19:O22) -> -6.016434555e-06 | Y19: =bdrateOld($D19:$D22,E19:E22,$L19:$L22,M19:M22) -> -5.127361672e-06 | Z19: =bdrateOld($D19:$D22,F19:F22,$L19:$L22,N19:N22) -> 2.069440643e-05 | AA19: =bdrateOld($D19:$D22,G19:G22,$L19:$L22,O19:O22) -> -5.860772439e-06
C20: 27 | D20: 10305.6368 | E20: 37.23171733 | F20: 44.837721 | G20: 42.423918 | H20: 277382.961 | I20: 154.217 | J20: 77.0508225 | L20: =Test!B122 -> 10305.6368 | M20: =Test!C122 -> 37.2317 | N20: =Test!D122 -> 44.8377 | O20: =Test!E122 -> 42.4239 | P20: =Test!F122 -> 285546.59 | Q20: =Test!G122 -> 121.41 | R20: 79.31849722 | S20: 1.029430896 | T20: 0.7872672922
C21: 32 | D21: 4254.8448 | E21: 36.29631233 | F21: 44.00842367 | G21: 41.452057 | H21: 174302.975 | I21: 125.737 | J21: 48.41749306 | L21: =Test!B123 -> 4254.8448 | M21: =Test!C123 -> 36.2963 | N21: =Test!D123 -> 44.0084 | O21: =Test!E123 -> 41.4521 | P21: =Test!F123 -> 164449.84 | Q21: =Test!G123 -> 95.45 | R21: 45.68051111 | S21: 0.9434712173 | T21: 0.7591242037
C22: 37 | D22: 2155.2512 | E22: 34.932395 | F22: 43.07538433 | G22: 40.39910367 | H22: 114962.038 | I22: 108.874 | J22: 31.93389944 | L22: =Test!B124 -> 2155.2512 | M22: =Test!C124 -> 34.9324 | N22: =Test!D124 -> 43.0754 | O22: =Test!E124 -> 40.3991 | P22: =Test!F124 -> 98802.66 | Q22: =Test!G124 -> 76.76 | R22: 27.44518333 | S22: 0.8594372692 | T22: 0.7050351783
B23: ParkRunning3 | C23: 22 | D23: 110968.1053 | E23: 43.11662767 | F23: 37.94150033 | G23: 38.862202 | H23: 668269.481 | I23: 288.497 | J23: 185.6304114 | L23: =Test!B125 -> 110968.1053 | M23: =Test!C125 -> 43.1166 | N23: =Test!D125 -> 37.9415 | O23: =Test!E125 -> 38.8622 | P23: =Test!F125 -> 625300.87 | Q23: =Test!G125 -> 218.79 | R23: 173.6946861 | S23: 0.9357016709 | T23: 0.75837877 | V23: =bdrate($D23:$D26,E23:E26,$L23:$L26,M23:M26) -> 2.590454255e-06 | W23: =bdrate($D23:$D26,F23:F26,$L23:$L26,N23:N26) -> -2.124468877e-06 | X23: =bdrate($D23:$D26,G23:G26,$L23:$L26,O23:O26) -> 3.205074184e-08 | Y23: =bdrateOld($D23:$D26,E23:E26,$L23:$L26,M23:M26) -> 3.262252207e-06 | Z23: =bdrateOld($D23:$D26,F23:F26,$L23:$L26,N23:N26) -> -2.192286537e-06 | AA23: =bdrateOld($D23:$D26,G23:G26,$L23:$L26,O23:O26) -> -3.525863157e-06
C24: 27 | D24: 43737.80267 | E24: 39.18353367 | F24: 35.03539567 | G24: 36.29628867 | H24: 469060.377 | I24: 233.597 | J24: 130.2945492 | L24: =Test!B126 -> 43737.8027 | M24: =Test!C126 -> 39.1835 | N24: =Test!D126 -> 35.0354 | O24: =Test!E126 -> 36.2963 | P24: =Test!F126 -> 398598.15 | Q24: =Test!G126 -> 194.4 | R24: 110.7217083 | S24: 0.8497800487 | T24: 0.8322024684
C25: 32 | D25: 20674.25467 | E25: 35.96567167 | F25: 33.31149333 | G25: 34.759925 | H25: 363877.408 | I25: 194.57 | J25: 101.0770578 | L25: =Test!B127 -> 20674.2547 | M25: =Test!C127 -> 35.9657 | N25: =Test!D127 -> 33.3115 | O25: =Test!E127 -> 34.7599 | P25: =Test!F127 -> 280573.94 | Q25: =Test!G127 -> 159.22 | R25: 77.93720556 | S25: 0.7710672161 | T25: 0.8183173151
C26: 37 | D26: 9256.9 | E26: 33.05541867 | F26: 31.83068967 | G26: 33.443682 | H26: 278513.715 | I26: 164.714 | J26: 77.36492083 | L26: =Test!B128 -> 9256.9 | M26: =Test!C128 -> 33.0554 | N26: =Test!D128 -> 31.8307 | O26: =Test!E128 -> 33.4437 | P26: =Test!F128 -> 195539.05 | Q26: =Test!G128 -> 131.17 | R26: 54.31640278 | S26: 0.7020805062 | T26: 0.796350037
A27: Class B | B27: MarketPlace | C27: 22 | D27: 14159.456 | E27: 40.8190505 | F27: 44.2948785 | G27: 45.2218885 | H27: 247658.084 | I27: 101.419 | J27: 68.79391222 | L27: =Test!B129 -> 14159.456 | M27: =Test!C129 -> 40.8191 | N27: =Test!D129 -> 44.2949 | O27: =Test!E129 -> 45.2219 | P27: =Test!F129 -> 234940.25 | Q27: =Test!G129 -> 89.16 | R27: 65.26118056 | S27: 0.9486476121 | T27: 0.8791252132 | V27: =bdrate($D27:$D30,E27:E30,$L27:$L30,M27:M30) -> 9.991157368e-06 | W27: =bdrate($D27:$D30,F27:F30,$L27:$L30,N27:N30) -> -6.670413332e-06 | X27: =bdrate($D27:$D30,G27:G30,$L27:$L30,O27:O30) -> -2.658628049e-06 | Y27: =bdrateOld($D27:$D30,E27:E30,$L27:$L30,M27:M30) -> 9.345850585e-06 | Z27: =bdrateOld($D27:$D30,F27:F30,$L27:$L30,N27:N30) -> -5.85200027e-06 | AA27: =bdrateOld($D27:$D30,G27:G30,$L27:$L30,O27:O30) -> -2.452535804e-06
A28: 1080p | C28: 27 | D28: 5420.2752 | E28: 38.71745483 | F28: 42.8011885 | G28: 43.91709433 | H28: 157709.37 | I28: 78.826 | J28: 43.80815833 | L28: =Test!B130 -> 5420.2752 | M28: =Test!C130 -> 38.7174 | N28: =Test!D130 -> 42.8012 | O28: =Test!E130 -> 43.9171 | P28: =Test!F130 -> 134199.08 | Q28: =Test!G130 -> 62.81 | R28: 37.27752222 | S28: 0.8509264859 | T28: 0.7968183087
C29: 32 | D29: 2459.876 | E29: 36.53203683 | F29: 41.62528367 | G29: 42.73779317 | H29: 119418.83 | I29: 66.037 | J29: 33.17189722 | L29: =Test!B131 -> 2459.876 | M29: =Test!C131 -> 36.532 | N29: =Test!D131 -> 41.6253 | O29: =Test!E131 -> 42.7378 | P29: =Test!F131 -> 91657.85 | Q29: =Test!G131 -> 51.19 | R29: 25.46051389 | S29: 0.7675326412 | T29: 0.7751714948
C30: 37 | D30: 1102.2248 | E30: 34.2292995 | F30: 40.536827 | G30: 41.61282067 | H30: 83628.474 | I30: 56.579 | J30: 23.23013167 | L30: =Test!B132 -> 1102.2248 | M30: =Test!C132 -> 34.2293 | N30: =Test!D132 -> 40.5368 | O30: =Test!E132 -> 41.6128 | P30: =Test!F132 -> 59250.44 | Q30: =Test!G132 -> 43.69 | R30: 16.45845556 | S30: 0.7084960082 | T30: 0.7721946305
B31: RitualDance | C31: 22 | D31: 9364.996 | E31: 44.49635983 | F31: 47.53636633 | G31: 48.57919883 | H31: 228701.937 | I31: 95.195 | J31: 63.52831583 | L31: =Test!B133 -> 9364.996 | M31: =Test!C133 -> 44.4964 | N31: =Test!D133 -> 47.5364 | O31: =Test!E133 -> 48.5792 | P31: =Test!F133 -> 213912.37 | Q31: =Test!G133 -> 80.14 | R31: 59.42010278 | S31: 0.9353325678 | T31: 0.8418509375 | V31: =bdrate($D31:$D34,E31:E34,$L31:$L34,M31:M34) -> -1.258690422e-07 | W31: =bdrate($D31:$D34,F31:F34,$L31:$L34,N31:N34) -> -3.696978661e-06 | X31: =bdrate($D31:$D34,G31:G34,$L31:$L34,O31:O34) -> -1.017978392e-06 | Y31: =bdrateOld($D31:$D34,E31:E34,$L31:$L34,M31:M34) -> -3.844447126e-07 | Z31: =bdrateOld($D31:$D34,F31:F34,$L31:$L34,N31:N34) -> -4.838846225e-06 | AA31: =bdrateOld($D31:$D34,G31:G34,$L31:$L34,O31:O34) -> -2.552527101e-06
C32: 27 | D32: 4629.2864 | E32: 41.3471735 | F32: 45.41770233 | G32: 46.23436833 | H32: 174102.405 | I32: 80.356 | J32: 48.36177917 | L32: =Test!B134 -> 4629.2864 | M32: =Test!C134 -> 41.3472 | N32: =Test!D134 -> 45.4177 | O32: =Test!E134 -> 46.2344 | P32: =Test!F134 -> 149551.05 | Q32: =Test!G134 -> 70.01 | R32: 41.54195833 | S32: 0.8589832518 | T32: 0.8712479466
C33: 32 | D33: 2466.5272 | E33: 38.29556917 | F33: 43.91461267 | G33: 44.54603583 | H33: 136862.563 | I33: 68.525 | J33: 38.01737861 | L33: =Test!B135 -> 2466.5192 | M33: =Test!C135 -> 38.2955 | N33: =Test!D135 -> 43.9146 | O33: =Test!E135 -> 44.546 | P33: =Test!F135 -> 106713.17 | Q33: =Test!G135 -> 58.33 | R33: 29.64254722 | S33: 0.7797104457 | T33: 0.8512221817
C34: 37 | D34: 1292.2984 | E34: 35.3375675 | F34: 42.62543867 | G34: 43.03721117 | H34: 97873.749 | I34: 59.479 | J34: 27.1871525 | L34: =Test!B136 -> 1292.2984 | M34: =Test!C136 -> 35.3376 | N34: =Test!D136 -> 42.6255 | O34: =Test!E136 -> 43.0372 | P34: =Test!F136 -> 70851.78 | Q34: =Test!G136 -> 48.25 | R34: 19.68105 | S34: 0.7239099424 | T34: 0.8112106794
B35: Cactus | C35: 22 | D35: 14682.1352 | E35: 38.6771236 | F35: 40.2232092 | G35: 43.9841412 | H35: 221482.641 | I35: 90.115 | J35: =H35/3600 -> 61.52295583 | L35: =Test!B137 -> 14682.1352 | M35: =Test!C137 -> 38.6771 | N35: =Test!D137 -> 40.2232 | O35: =Test!E137 -> 43.9841 | P35: =Test!F137 -> 207142.76 | Q35: =Test!G137 -> 77.27 | R35: =P35/3600 -> 57.53965556 | S35: =P35/H35 -> 0.9352550569 | T35: =Q35/I35 -> 0.8574599123 | V35: =bdrate($D35:$D38,E35:E38,$L35:$L38,M35:M38) -> -4.826853174e-06 | W35: =bdrate($D35:$D38,F35:F38,$L35:$L38,N35:N38) -> 2.820965492e-05 | X35: =bdrate($D35:$D38,G35:G38,$L35:$L38,O35:O38) -> 5.147205926e-05 | Y35: =bdrateOld($D35:$D38,E35:E38,$L35:$L38,M35:M38) -> -2.715869136e-06 | Z35: =bdrateOld($D35:$D38,F35:F38,$L35:$L38,N35:N38) -> 2.766404668e-05 | AA35: =bdrateOld($D35:$D38,G35:G38,$L35:$L38,O35:O38) -> 5.109394364e-05
C36: 27 | D36: 4349.6608 | E36: 37.1542222 | F36: 39.3992412 | G36: 42.4842938 | H36: 139828.961 | I36: 60.262 | J36: 38.84137806 | L36: =Test!B138 -> 4349.7816 | M36: =Test!C138 -> 37.1543 | N36: =Test!D138 -> 39.3992 | O36: =Test!E138 -> 42.4842 | P36: =Test!F138 -> 115437.94 | Q36: =Test!G138 -> 48.46 | R36: 32.06609444 | S36: 0.8255653133 | T36: 0.804155189
C37: 32 | D37: 2027.7448 | E37: 35.470185 | F37: 38.7700796 | G37: 41.1482562 | H37: 107598.958 | I37: 50.852 | J37: 29.88859944 | L37: =Test!B139 -> 2027.7448 | M37: =Test!C139 -> 35.4702 | N37: =Test!D139 -> 38.7701 | O37: =Test!E139 -> 41.1482 | P37: =Test!F139 -> 78721.55 | Q37: =Test!G139 -> 37.93 | R37: 21.86709722 | S37: 0.7316200032 | T37: 0.7458900338
C38: 37 | D38: 989.0544 | E38: 33.3704308 | F38: 38.0105182 | G38: 39.859786 | H38: 75640.089 | I38: 45.638 | J38: 21.01113583 | L38: =Test!B140 -> 989.0544 | M38: =Test!C140 -> 33.3704 | N38: =Test!D140 -> 38.0105 | O38: =Test!E140 -> 39.8598 | P38: =Test!F140 -> 51929.21 | Q38: =Test!G140 -> 33.76 | R38: 14.42478056 | S38: 0.6865302604 | T38: 0.7397344318
B39: BasketballDrive | C39: 22 | D39: 14299.208 | E39: 39.4206766 | F39: 44.2265448 | G39: 45.7426032 | H39: 279149.558 | I39: 92.775 | J39: 77.54154389 | L39: =Test!B141 -> 14299.208 | M39: =Test!C141 -> 39.4207 | N39: =Test!D141 -> 44.2265 | O39: =Test!E141 -> 45.7426 | P39: =Test!F141 -> 255219.63 | Q39: =Test!G141 -> 77.73 | R39: 70.89434167 | S39: 0.9142756013 | T39: 0.8378334681 | V39: =bdrate($D39:$D42,E39:E42,$L39:$L42,M39:M42) -> -6.122711117e-06 | W39: =bdrate($D39:$D42,F39:F42,$L39:$L42,N39:N42) -> 2.619811826e-05 | X39: =bdrate($D39:$D42,G39:G42,$L39:$L42,O39:O42) -> 1.304596094e-05 | Y39: =bdrateOld($D39:$D42,E39:E42,$L39:$L42,M39:M42) -> -6.316546348e-06 | Z39: =bdrateOld($D39:$D42,F39:F42,$L39:$L42,N39:N42) -> 2.686412545e-05 | AA39: =bdrateOld($D39:$D42,G39:G42,$L39:$L42,O39:O42) -> 1.314539965e-05
C40: 27 | D40: 4625.1928 | E40: 37.7765992 | F40: 43.128541 | G40: 43.9372292 | H40: 186193.816 | I40: 70.3 | J40: 51.72050444 | L40: =Test!B142 -> 4625.1928 | M40: =Test!C142 -> 37.7766 | N40: =Test!D142 -> 43.1285 | O40: =Test!E142 -> 43.9372 | P40: =Test!F142 -> 154037.03 | Q40: =Test!G142 -> 60.46 | R40: 42.78806389 | S40: 0.8272940171 | T40: 0.8600284495
C41: 32 | D41: 2185.7328 | E41: 36.0703716 | F41: 42.133307 | G41: 42.4742278 | H41: 137333.235 | I41: 61.286 | J41: 38.14812083 | L41: =Test!B143 -> 2185.7328 | M41: =Test!C143 -> 36.0704 | N41: =Test!D143 -> 42.1333 | O41: =Test!E143 -> 42.4742 | P41: =Test!F143 -> 101327.44 | Q41: =Test!G143 -> 48.97 | R41: 28.14651111 | S41: 0.7378216933 | T41: 0.7990405639
C42: 37 | D42: 1102.9456 | E42: 34.0869154 | F42: 41.1292444 | G42: 40.981632 | H42: 92159.171 | I42: 53.31 | J42: 25.59976972 | L42: =Test!B144 -> 1102.9456 | M42: =Test!C144 -> 34.0869 | N42: =Test!D144 -> 41.1292 | O42: =Test!E144 -> 40.9816 | P42: =Test!F144 -> 63694.38 | Q42: =Test!G144 -> 43.12 | R42: 17.69288333 | S42: 0.6911344721 | T42: 0.8088538736
B43: BQTerrace | C43: 22 | D43: 32127.4208 | E43: 37.4193245 | F43: 42.508973 | G43: 44.732899 | H43: 254962.36 | I43: 147.35 | J43: 70.82287778 | L43: =Test!B145 -> 32127.4208 | M43: =Test!C145 -> 37.4193 | N43: =Test!D145 -> 42.509 | O43: =Test!E145 -> 44.7329 | P43: =Test!F145 -> 242847.26 | Q43: =Test!G145 -> 126.28 | R43: 67.45757222 | S43: 0.95248279 | T43: 0.8570071259 | V43: =bdrate($D43:$D46,E43:E46,$L43:$L46,M43:M46) -> 1.33689461e-05 | W43: =bdrate($D43:$D46,F43:F46,$L43:$L46,N43:N46) -> -3.040544866e-05 | X43: =bdrate($D43:$D46,G43:G46,$L43:$L46,O43:O46) -> 1.233571712e-05 | Y43: =bdrateOld($D43:$D46,E43:E46,$L43:$L46,M43:M46) -> 1.127514929e-05 | Z43: =bdrateOld($D43:$D46,F43:F46,$L43:$L46,N43:N46) -> -2.992457565e-05 | AA43: =bdrateOld($D43:$D46,G43:G46,$L43:$L46,O43:O46) -> 1.170865941e-05
C44: 27 | D44: 5540.972 | E44: 35.46219883 | F44: 41.47158817 | G44: 43.8057955 | H44: 124076.236 | I44: 76.002 | J44: 34.46562111 | L44: =Test!B146 -> 5540.972 | M44: =Test!C146 -> 35.4622 | N44: =Test!D146 -> 41.4716 | O44: =Test!E146 -> 43.8058 | P44: =Test!F146 -> 101718.21 | Q44: =Test!G146 -> 62.53 | R44: 28.25505833 | S44: 0.8198041243 | T44: 0.8227415068
C45: 32 | D45: 1737.352 | E45: 34.17624067 | F45: 40.38914267 | G45: 42.89332983 | H45: 83415.961 | I45: 57.303 | J45: 23.17110028 | L45: =Test!B147 -> 1737.352 | M45: =Test!C147 -> 34.1762 | N45: =Test!D147 -> 40.3892 | O45: =Test!E147 -> 42.8933 | P45: =Test!F147 -> 60917.27 | Q45: =Test!G147 -> 42.05 | R45: 16.92146389 | S45: 0.7302831409 | T45: 0.7338184737
C46: 37 | D46: 775.3712 | E46: 32.63793617 | F46: 39.27702183 | G46: 41.98543933 | H46: 57020.52 | I46: 49.771 | J46: 15.83903333 | L46: =Test!B148 -> 775.3712 | M46: =Test!C148 -> 32.6379 | N46: =Test!D148 -> 39.277 | O46: =Test!E148 -> 41.9854 | P46: =Test!F148 -> 39099.71 | Q46: =Test!G148 -> 34.74 | R46: 10.86103056 | S46: 0.6857129679 | T46: 0.6979968255
A47: Class C | B47: BasketballDrill | C47: 22 | D47: 2856.6552 | E47: 41.3135358 | F47: 43.7619858 | G47: 44.567775 | H47: 46354.137 | I47: 15.719 | J47: 12.87614917 | L47: =Test!B149 -> 2856.6552 | M47: =Test!C149 -> 41.3135 | N47: =Test!D149 -> 43.762 | O47: =Test!E149 -> 44.5678 | P47: =Test!F149 -> 41340.51 | Q47: =Test!G149 -> 15.38 | R47: 11.483475 | S47: 0.8918407865 | T47: 0.9784337426 | V47: =bdrate($D47:$D50,E47:E50,$L47:$L50,M47:M50) -> 3.896662449e-06 | W47: =bdrate($D47:$D50,F47:F50,$L47:$L50,N47:N50) -> 4.888795506e-06 | X47: =bdrate($D47:$D50,G47:G50,$L47:$L50,O47:O50) -> -5.790973282e-06 | Y47: =bdrateOld($D47:$D50,E47:E50,$L47:$L50,M47:M50) -> 3.941051077e-06 | Z47: =bdrateOld($D47:$D50,F47:F50,$L47:$L50,N47:N50) -> 5.481143043e-06 | AA47: =bdrateOld($D47:$D50,G47:G50,$L47:$L50,O47:O50) -> -5.588797905e-06
A48: WVGA | C48: 27 | D48: 1310.572 | E48: 38.1094482 | F48: 41.5670164 | G48: 41.9750978 | H48: 35168.157 | I48: 12.167 | J48: 9.7689325 | L48: =Test!B150 -> 1310.572 | M48: =Test!C150 -> 38.1094 | N48: =Test!D150 -> 41.567 | O48: =Test!E150 -> 41.9751 | P48: =Test!F150 -> 29610.95 | Q48: =Test!G150 -> 11.56 | R48: 8.225263889 | S48: 0.8419818531 | T48: 0.9501109559
C49: 32 | D49: 661.6096 | E49: 35.2094944 | F49: 39.849708 | G49: 40.0917792 | H49: 28078.78 | I49: 9.908 | J49: 7.799661111 | L49: =Test!B151 -> 661.6096 | M49: =Test!C151 -> 35.2095 | N49: =Test!D151 -> 39.8497 | O49: =Test!E151 -> 40.0918 | P49: =Test!F151 -> 21475.4 | Q49: =Test!G151 -> 9.33 | R49: 5.965388889 | S49: 0.7648266769 | T49: 0.9416633024
C50: 37 | D50: 339.2744 | E50: 32.6014474 | F50: 38.3302406 | G50: 38.3841508 | H50: 20466.31 | I50: 8.417 | J50: 5.685086111 | L50: =Test!B152 -> 339.2744 | M50: =Test!C152 -> 32.6015 | N50: =Test!D152 -> 38.3302 | O50: =Test!E152 -> 38.3842 | P50: =Test!F152 -> 14048.82 | Q50: =Test!G152 -> 6.83 | R50: 3.90245 | S50: 0.6864363923 | T50: 0.8114530118
B51: BQMall | C51: 22 | D51: 2894.8824 | E51: 40.50935033 | F51: 44.1134725 | G51: 45.868665 | H51: 41794.424 | I51: 17.308 | J51: 11.60956222 | L51: =Test!B153 -> 2894.8824 | M51: =Test!C153 -> 40.5094 | N51: =Test!D153 -> 44.1135 | O51: =Test!E153 -> 45.8687 | P51: =Test!F153 -> 37305.46 | Q51: =Test!G153 -> 16.52 | R51: 10.36262778 | S51: 0.8925941891 | T51: 0.9544719205 | V51: =bdrate($D51:$D54,E51:E54,$L51:$L54,M51:M54) -> -1.198049937e-05 | W51: =bdrate($D51:$D54,F51:F54,$L51:$L54,N51:N54) -> 7.323813009e-07 | X51: =bdrate($D51:$D54,G51:G54,$L51:$L54,O51:O54) -> 6.421302279e-06 | Y51: =bdrateOld($D51:$D54,E51:E54,$L51:$L54,M51:M54) -> -1.193334142e-05 | Z51: =bdrateOld($D51:$D54,F51:F54,$L51:$L54,N51:N54) -> 1.059036653e-06 | AA51: =bdrateOld($D51:$D54,G51:G54,$L51:$L54,O51:O54) -> 7.918207823e-06
C52: 27 | D52: 1293.2448 | E52: 37.990255 | F52: 42.35443167 | G52: 43.72485867 | H52: 31390.369 | I52: 13.158 | J52: 8.719546944 | L52: =Test!B154 -> 1293.2448 | M52: =Test!C154 -> 37.9903 | N52: =Test!D154 -> 42.3544 | O52: =Test!E154 -> 43.7248 | P52: =Test!F154 -> 25472.08 | Q52: =Test!G154 -> 11.41 | R52: 7.075577778 | S52: 0.8114616302 | T52: 0.8671530628
C53: 32 | D53: 650.956 | E53: 35.33944483 | F53: 40.84179183 | G53: 41.97178267 | H53: 24841.985 | I53: 10.889 | J53: 6.900551389 | L53: =Test!B155 -> 650.956 | M53: =Test!C155 -> 35.3395 | N53: =Test!D155 -> 40.8418 | O53: =Test!E155 -> 41.9718 | P53: =Test!F155 -> 18421.69 | Q53: =Test!G155 -> 9.38 | R53: 5.117136111 | S53: 0.7415546705 | T53: 0.8614197814
C54: 37 | D54: 334.54 | E54: 32.599003 | F54: 39.4403615 | G54: 40.40002417 | H54: 18855.138 | I54: 9.317 | J54: 5.237538333 | L54: =Test!B156 -> 334.54 | M54: =Test!C156 -> 32.599 | N54: =Test!D156 -> 39.4404 | O54: =Test!E156 -> 40.4 | P54: =Test!F156 -> 13152.85 | Q54: =Test!G156 -> 7.51 | R54: 3.653569444 | S54: 0.697573786 | T54: 0.8060534507
B55: PartyScene | C55: 22 | D55: 5576.0696 | E55: 38.755349 | F55: 42.2416508 | G55: 43.49685 | H55: 44945.153 | I55: 20.437 | J55: 12.48476472 | L55: =Test!B157 -> 5576.0696 | M55: =Test!C157 -> 38.7554 | N55: =Test!D157 -> 42.2417 | O55: =Test!E157 -> 43.4969 | P55: =Test!F157 -> 39645.07 | Q55: =Test!G157 -> 20.29 | R55: 11.01251944 | S55: 0.8820766502 | T55: 0.9928071635 | V55: =bdrate($D55:$D58,E55:E58,$L55:$L58,M55:M58) -> -6.916416471e-06 | W55: =bdrate($D55:$D58,F55:F58,$L55:$L58,N55:N58) -> 4.165631919e-07 | X55: =bdrate($D55:$D58,G55:G58,$L55:$L58,O55:O58) -> -1.949751764e-06 | Y55: =bdrateOld($D55:$D58,E55:E58,$L55:$L58,M55:M58) -> -6.937366014e-06 | Z55: =bdrateOld($D55:$D58,F55:F58,$L55:$L58,N55:N58) -> -1.756081577e-06 | AA55: =bdrateOld($D55:$D58,G55:G58,$L55:$L58,O55:O58) -> -3.412531557e-06
C56: 27 | D56: 2461.8304 | E56: 35.309974 | F56: 39.8249844 | G56: 40.953362 | H56: 33877.323 | I56: 15.305 | J56: 9.4103675 | L56: =Test!B158 -> 2461.8304 | M56: =Test!C158 -> 35.31 | N56: =Test!D158 -> 39.825 | O56: =Test!E158 -> 40.9534 | P56: =Test!F158 -> 26927.37 | Q56: =Test!G158 -> 14.76 | R56: 7.479825 | S56: 0.7948494041 | T56: 0.964390722
C57: 32 | D57: 1188.968 | E57: 32.268478 | F57: 38.095745 | G57: 39.0551398 | H57: 27387.003 | I57: 12.364 | J57: 7.607500833 | L57: =Test!B159 -> 1188.968 | M57: =Test!C159 -> 32.2685 | N57: =Test!D159 -> 38.0957 | O57: =Test!E159 -> 39.0551 | P57: =Test!F159 -> 19912.38 | Q57: =Test!G159 -> 11.27 | R57: 5.531216667 | S57: 0.7270740796 | T57: 0.9115173083
C58: 37 | D58: 558.1096 | E58: 29.4190734 | F58: 36.594291 | G58: 37.381227 | H58: 20295.248 | I58: 10.068 | J58: 5.637568889 | L58: =Test!B160 -> 558.1096 | M58: =Test!C160 -> 29.4191 | N58: =Test!D160 -> 36.5943 | O58: =Test!E160 -> 37.3812 | P58: =Test!F160 -> 14084.03 | Q58: =Test!G160 -> 8.5 | R58: 3.912230556 | S58: 0.6939570288 | T58: 0.8442590385
B59: RaceHorses | C59: 22 | D59: 4204.7352 | E59: 39.38319767 | F59: 41.64718833 | G59: 43.19596967 | H59: 38057.986 | I59: 14.105 | J59: 10.57166278 | L59: =Test!B161 -> 4204.7352 | M59: =Test!C161 -> 39.3832 | N59: =Test!D161 -> 41.6472 | O59: =Test!E161 -> 43.196 | P59: =Test!F161 -> 34286.74 | Q59: =Test!G161 -> 13.83 | R59: 9.524094444 | S59: 0.9009078935 | T59: 0.9805033676 | V59: =bdrate($D59:$D62,E59:E62,$L59:$L62,M59:M62) -> 3.444129401e-06 | W59: =bdrate($D59:$D62,F59:F62,$L59:$L62,N59:N62) -> -1.165877919e-05 | X59: =bdrate($D59:$D62,G59:G62,$L59:$L62,O59:O62) -> 3.261507134e-06 | Y59: =bdrateOld($D59:$D62,E59:E62,$L59:$L62,M59:M62) -> 3.581088213e-06 | Z59: =bdrateOld($D59:$D62,F59:F62,$L59:$L62,N59:N62) -> -1.018382069e-05 | AA59: =bdrateOld($D59:$D62,G59:G62,$L59:$L62,O59:O62) -> 4.833531804e-06
C60: 27 | D60: 1615.9232 | E60: 35.994936 | F60: 39.51937967 | G60: 41.15863467 | H60: 28128.045 | I60: 10.09 | J60: 7.813345833 | L60: =Test!B162 -> 1615.9232 | M60: =Test!C162 -> 35.9949 | N60: =Test!D162 -> 39.5194 | O60: =Test!E162 -> 41.1586 | P60: =Test!F162 -> 23248.38 | Q60: =Test!G162 -> 9.84 | R60: 6.457883333 | S60: 0.8265195821 | T60: 0.9752229931
C61: 32 | D61: 771.5488 | E61: 33.30360533 | F61: 37.945447 | G61: 39.74379367 | H61: 22817.818 | I61: 7.798 | J61: 6.338282778 | L61: =Test!B163 -> 771.5488 | M61: =Test!C163 -> 33.3036 | N61: =Test!D163 -> 37.9455 | O61: =Test!E163 -> 39.7438 | P61: =Test!F163 -> 17015.68 | Q61: =Test!G163 -> 6.82 | R61: 4.726577778 | S61: 0.7457189815 | T61: 0.8745832265
C62: 37 | D62: 372.6336 | E62: 30.678866 | F62: 36.485018 | G62: 38.39208 | H62: 16570.26 | I62: 6.325 | J62: 4.60285 | L62: =Test!B164 -> 372.6336 | M62: =Test!C164 -> 30.6789 | N62: =Test!D164 -> 36.485 | O62: =Test!E164 -> 38.3921 | P62: =Test!F164 -> 11576.46 | Q62: =Test!G164 -> 5.37 | R62: 3.215683333 | S62: 0.6986287481 | T62: 0.8490118577
A63: Class D | B63: BasketballPass | C63: =C59 -> 22 | D63: 1275.3504 | E63: 41.3138222 | F63: 44.6885186 | G63: 43.836696 | H63: 12127.997 | I63: 4.859 | J63: 3.368888056 | L63: =Test!B165 -> 1275.3504 | M63: =Test!C165 -> 41.3138 | N63: =Test!D165 -> 44.6885 | O63: =Test!E165 -> 43.8367 | P63: =Test!F165 -> 10511.38 | Q63: =Test!G165 -> 4.95 | R63: 2.919827778 | S63: 0.8667037104 | T63: 1.018728133 | V63: =bdrate($D63:$D66,E63:E66,$L63:$L66,M63:M66) -> -7.805237385e-06 | W63: =bdrate($D63:$D66,F63:F66,$L63:$L66,N63:N66) -> 7.367637465e-06 | X63: =bdrate($D63:$D66,G63:G66,$L63:$L66,O63:O66) -> -4.636759628e-06 | Y63: =bdrateOld($D63:$D66,E63:E66,$L63:$L66,M63:M66) -> -7.77078816e-06 | Z63: =bdrateOld($D63:$D66,F63:F66,$L63:$L66,N63:N66) -> 6.08318208e-06 | AA63: =bdrateOld($D63:$D66,G63:G66,$L63:$L66,O63:O66) -> -4.528486167e-06
A64: WQVGA | C64: =C60 -> 27 | D64: 602.2936 | E64: 37.2292356 | F64: 42.1596074 | G64: 40.8763936 | H64: 10166.202 | I64: 3.732 | J64: 2.823945 | L64: =Test!B166 -> 602.2936 | M64: =Test!C166 -> 37.2293 | N64: =Test!D166 -> 42.1596 | O64: =Test!E166 -> 40.8764 | P64: =Test!F166 -> 8106.85 | Q64: =Test!G166 -> 3.52 | R64: 2.251902778 | S64: 0.7974315285 | T64: 0.9431939979
C65: =C61 -> 32 | D65: 304.008 | E65: 33.9219522 | F65: 40.3727434 | G65: 38.895679 | H65: 8275.276 | I65: 2.951 | J65: 2.298687778 | L65: =Test!B167 -> 304.008 | M65: =Test!C167 -> 33.922 | N65: =Test!D167 -> 40.3727 | O65: =Test!E167 -> 38.8957 | P65: =Test!F167 -> 6238.83 | Q65: =Test!G167 -> 2.5 | R65: 1.733008333 | S65: 0.7539120145 | T65: 0.8471704507
C66: =C62 -> 37 | D66: 153.0712 | E66: 31.0028126 | F66: 38.7433076 | G66: 37.0870624 | H66: 6231.402 | I66: 2.438 | J66: 1.730945 | L66: =Test!B168 -> 153.0712 | M66: =Test!C168 -> 31.0028 | N66: =Test!D168 -> 38.7433 | O66: =Test!E168 -> 37.0871 | P66: =Test!F168 -> 4344.23 | Q66: =Test!G168 -> 1.93 | R66: 1.206730556 | S66: 0.6971512992 | T66: 0.7916324856
B67: BQSquare | C67: 22 | D67: 1278.66 | E67: 38.45341867 | F67: 44.05695733 | G67: 45.42105267 | H67: 9957.679 | I67: 5.338 | J67: =H67/3600 -> 2.766021944 | L67: =Test!B169 -> 1278.66 | M67: =Test!C169 -> 38.4534 | N67: =Test!D169 -> 44.057 | O67: =Test!E169 -> 45.421 | P67: =Test!F169 -> 8918.41 | Q67: =Test!G169 -> 5.42 | R67: =P67/3600 -> 2.477336111 | S67: =P67/H67 -> 0.8956314017 | T67: =Q67/I67 -> 1.015361559 | V67: =bdrate($D67:$D70,E67:E70,$L67:$L70,M67:M70) -> 1.834629883e-06 | W67: =bdrate($D67:$D70,F67:F70,$L67:$L70,N67:N70) -> -3.195033738e-08 | X67: =bdrate($D67:$D70,G67:G70,$L67:$L70,O67:O70) -> -9.661433906e-06 | Y67: =bdrateOld($D67:$D70,E67:E70,$L67:$L70,M67:M70) -> 2.708524981e-06 | Z67: =bdrateOld($D67:$D70,F67:F70,$L67:$L70,N67:N70) -> 1.801024326e-06 | AA67: =bdrateOld($D67:$D70,G67:G70,$L67:$L70,O67:O70) -> -9.292695386e-06
C68: 27 | D68: 467.6104 | E68: 35.24394133 | F68: 41.89323733 | G68: 43.176072 | H68: 5822.088 | I68: 3.766 | J68: 1.617246667 | L68: =Test!B170 -> 467.6104 | M68: =Test!C170 -> 35.2439 | N68: =Test!D170 -> 41.8932 | O68: =Test!E170 -> 43.1761 | P68: =Test!F170 -> 4697.77 | Q68: =Test!G170 -> 3.38 | R68: 1.304936111 | S68: 0.8068874947 | T68: 0.897503983
C69: 32 | D69: 212.7144 | E69: 32.50874783 | F69: 40.19257217 | G69: 41.439545 | H69: 4334.748 | I69: 3.053 | J69: 1.204096667 | L69: =Test!B171 -> 212.7144 | M69: =Test!C171 -> 32.5088 | N69: =Test!D171 -> 40.1926 | O69: =Test!E171 -> 41.4396 | P69: =Test!F171 -> 3033.19 | Q69: =Test!G171 -> 2.54 | R69: 0.8425527778 | S69: 0.6997384854 | T69: 0.8319685555
C70: 37 | D70: 112.0968 | E70: 29.99112033 | F70: 38.96878283 | G70: 39.97899083 | H70: 3234.933 | I70: 2.615 | J70: 0.8985925 | L70: =Test!B172 -> 112.0968 | M70: =Test!C172 -> 29.9911 | N70: =Test!D172 -> 38.9688 | O70: =Test!E172 -> 39.979 | P70: =Test!F172 -> 2174.7 | Q70: =Test!G172 -> 2.2 | R70: 0.6040833333 | S70: 0.6722550359 | T70: 0.8413001912
B71: BlowingBubbles | C71: 22 | D71: 1347.1448 | E71: 38.5507582 | F71: 41.9494964 | G71: 43.1081164 | H71: 9476.763 | I71: 4.911 | J71: 2.632434167 | L71: =Test!B173 -> 1347.1448 | M71: =Test!C173 -> 38.5508 | N71: =Test!D173 -> 41.9495 | O71: =Test!E173 -> 43.1081 | P71: =Test!F173 -> 8579.41 | Q71: =Test!G173 -> 4.48 | R71: 2.383169444 | S71: 0.9053101782 | T71: 0.9122378334 | V71: =bdrate($D71:$D74,E71:E74,$L71:$L74,M71:M74) -> -8.447150948e-06 | W71: =bdrate($D71:$D74,F71:F74,$L71:$L74,N71:N74) -> 1.227441369e-05 | X71: =bdrate($D71:$D74,G71:G74,$L71:$L74,O71:O74) -> -2.900346355e-06 | Y71: =bdrateOld($D71:$D74,E71:E74,$L71:$L74,M71:M74) -> -8.486962087e-06 | Z71: =bdrateOld($D71:$D74,F71:F74,$L71:$L74,N71:N74) -> 1.220080436e-05 | AA71: =bdrateOld($D71:$D74,G71:G74,$L71:$L74,O71:O74) -> -3.311022268e-06
C72: 27 | D72: 599.3504 | E72: 35.2225454 | F72: 39.5326492 | G72: 40.4528878 | H72: 7240.494 | I72: 3.663 | J72: 2.011248333 | L72: =Test!B174 -> 599.3504 | M72: =Test!C174 -> 35.2226 | N72: =Test!D174 -> 39.5326 | O72: =Test!E174 -> 40.4529 | P72: =Test!F174 -> 6072.29 | Q72: =Test!G174 -> 3.3 | R72: 1.686747222 | S72: 0.8386568651 | T72: 0.9009009009
C73: 32 | D73: 289.548 | E73: 32.209479 | F73: 37.6699382 | G73: 38.4034946 | H73: 5708.137 | I73: 2.858 | J73: 1.585593611 | L73: =Test!B175 -> 289.548 | M73: =Test!C175 -> 32.2095 | N73: =Test!D175 -> 37.6699 | O73: =Test!E175 -> 38.4035 | P73: =Test!F175 -> 4443.64 | Q73: =Test!G175 -> 2.32 | R73: 1.234344444 | S73: 0.7784746582 | T73: 0.8117564731
C74: 37 | D74: 135.4336 | E74: 29.338001 | F74: 35.9785958 | G74: 36.6206736 | H74: 4413.016 | I74: 2.293 | J74: 1.225837778 | L74: =Test!B176 -> 135.4336 | M74: =Test!C176 -> 29.338 | N74: =Test!D176 -> 35.9786 | O74: =Test!E176 -> 36.6207 | P74: =Test!F176 -> 3120.73 | Q74: =Test!G176 -> 1.83 | R74: 0.8668694444 | S74: 0.7071648958 | T74: 0.7980811164
B75: RaceHorses | C75: 22 | D75: 1021.0504 | E75: 39.94611367 | F75: 42.043599 | G75: 43.12021433 | H75: 8254.843 | I75: 3.644 | J75: 2.293011944 | L75: =Test!B177 -> 1021.0504 | M75: =Test!C177 -> 39.9461 | N75: =Test!D177 -> 42.0436 | O75: =Test!E177 -> 43.1202 | P75: =Test!F177 -> 7389.38 | Q75: =Test!G177 -> 3.3 | R75: 2.052605556 | S75: 0.89515694 | T75: 0.9055982437 | V75: =bdrate($D75:$D78,E75:E78,$L75:$L78,M75:M78) -> -1.112549748e-06 | W75: =bdrate($D75:$D78,F75:F78,$L75:$L78,N75:N78) -> -1.263883062e-06 | X75: =bdrate($D75:$D78,G75:G78,$L75:$L78,O75:O78) -> -4.995650089e-06 | Y75: =bdrateOld($D75:$D78,E75:E78,$L75:$L78,M75:M78) -> -5.522067584e-07 | Z75: =bdrateOld($D75:$D78,F75:F78,$L75:$L78,N75:N78) -> 1.41297101e-06 | AA75: =bdrateOld($D75:$D78,G75:G78,$L75:$L78,O75:O78) -> -5.867977031e-06
C76: 27 | D76: 481.1128 | E76: 36.02741133 | F76: 39.417104 | G76: 40.61527733 | H76: 6639.827 | I76: 2.679 | J76: 1.844396389 | L76: =Test!B178 -> 481.1128 | M76: =Test!C178 -> 36.0274 | N76: =Test!D178 -> 39.4171 | O76: =Test!E178 -> 40.6153 | P76: =Test!F178 -> 5430.11 | Q76: =Test!G178 -> 2.39 | R76: 1.508363889 | S76: 0.817808958 | T76: 0.8921239268
C77: 32 | D77: 240.6824 | E77: 32.75246033 | F77: 37.59406433 | G77: 38.92129133 | H77: 5480.915 | I77: 2.105 | J77: 1.522476389 | L77: =Test!B179 -> 240.6824 | M77: =Test!C179 -> 32.7525 | N77: =Test!D179 -> 37.5941 | O77: =Test!E179 -> 38.9213 | P77: =Test!F179 -> 4225.89 | Q77: =Test!G179 -> 1.76 | R77: 1.173858333 | S77: 0.7710190725 | T77: 0.8361045131
C78: 37 | D78: 116.7472 | E78: 29.847218 | F78: 36.05604967 | G78: 37.29528067 | H78: 4214.157 | I78: 1.687 | J78: 1.170599167 | L78: =Test!B180 -> 116.7472 | M78: =Test!C180 -> 29.8472 | N78: =Test!D180 -> 36.056 | O78: =Test!E180 -> 37.2953 | P78: =Test!F180 -> 2944.09 | Q78: =Test!G180 -> 1.33 | R78: 0.8178027778 | S78: 0.6986189646 | T78: 0.7883817427
A79: ClassE | B79: FourPeople | C79: 22
A80: 720p | C80: 27
C81: 32
C82: 37
B83: Johnny | C83: 22
C84: 27
C85: 32
C86: 37
B87: KristenAndSara | C87: 22
C88: 27
C89: 32
C90: 37
A91: ClassF | B91: BasketballDrillText | C91: 22 | D91: 2952.4112 | E91: 41.4360574 | F91: 43.7447586 | G91: 44.5239802 | H91: 44088.989 | I91: 15.823 | J91: =H91/3600 -> 12.24694139 | L91: =Test!B193 -> 2952.4112 | M91: =Test!C193 -> 41.4361 | N91: =Test!D193 -> 43.7448 | O91: =Test!E193 -> 44.524 | P91: =Test!F193 -> 38503.03 | Q91: =Test!G193 -> 15.23 | R91: =P91/3600 -> 10.69528611 | S91: =P91/H91 -> 0.8733026289 | T91: =Q91/I91 -> 0.9625229097 | V91: =bdrate($D91:$D94,E91:E94,$L91:$L94,M91:M94) -> 6.398672486e-06 | W91: =bdrate($D91:$D94,F91:F94,$L91:$L94,N91:N94) -> -2.654474651e-06 | X91: =bdrate($D91:$D94,G91:G94,$L91:$L94,O91:O94) -> 1.004954998e-06 | Y91: =bdrateOld($D91:$D94,E91:E94,$L91:$L94,M91:M94) -> 6.523466544e-06 | Z91: =bdrateOld($D91:$D94,F91:F94,$L91:$L94,N91:N94) -> -1.759106891e-06 | AA91: =bdrateOld($D91:$D94,G91:G94,$L91:$L94,O91:O94) -> 2.430588435e-06
C92: 27 | D92: 1387.5576 | E92: 38.1569556 | F92: 41.3006222 | G92: 41.717827 | H92: 35129.49 | I92: 12.139 | J92: 9.758191667 | L92: =Test!B194 -> 1387.5576 | M92: =Test!C194 -> 38.1569 | N92: =Test!D194 -> 41.3006 | O92: =Test!E194 -> 41.7178 | P92: =Test!F194 -> 28156.87 | Q92: =Test!G194 -> 12.27 | R92: 7.821352778 | S92: 0.8015166175 | T92: 1.010791663
C93: 32 | D93: 715.0848 | E93: 35.1662262 | F93: 39.3520718 | G93: 39.6309754 | H93: 28174.839 | I93: 9.92 | J93: 7.826344167 | L93: =Test!B195 -> 715.0848 | M93: =Test!C195 -> 35.1662 | N93: =Test!D195 -> 39.3521 | O93: =Test!E195 -> 39.631 | P93: =Test!F195 -> 20428.63 | Q93: =Test!G195 -> 8.88 | R93: 5.674619444 | S93: 0.7250664325 | T93: 0.8951612903
C94: 37 | D94: 374.8744 | E94: 32.4456244 | F94: 37.6341826 | G94: 37.7901204 | H94: 20259.897 | I94: 8.376 | J94: 5.627749167 | L94: =Test!B196 -> 374.8744 | M94: =Test!C196 -> 32.4456 | N94: =Test!D196 -> 37.6342 | O94: =Test!E196 -> 37.7901 | P94: =Test!F196 -> 14001.91 | Q94: =Test!G196 -> 6.37 | R94: 3.889419444 | S94: 0.6911145698 | T94: 0.7605062082
B95: ArenaOfValor | C95: 22 | D95: 11635.0472 | E95: 43.06261183 | F95: 45.16354883 | G95: 45.7594255 | H95: 155692.23 | I95: 94.078 | J95: 43.24784167 | L95: =Test!B197 -> 11635.0472 | M95: =Test!C197 -> 43.0626 | N95: =Test!D197 -> 45.1636 | O95: =Test!E197 -> 45.7594 | P95: =Test!F197 -> 142765.41 | Q95: =Test!G197 -> 78.02 | R95: 39.65705833 | S95: 0.9169719645 | T95: 0.8293118476 | V95: =bdrate($D95:$D98,E95:E98,$L95:$L98,M95:M98) -> -3.22342688e-06 | W95: =bdrate($D95:$D98,F95:F98,$L95:$L98,N95:N98) -> -3.292770377e-06 | X95: =bdrate($D95:$D98,G95:G98,$L95:$L98,O95:O98) -> 3.710128385e-07 | Y95: =bdrateOld($D95:$D98,E95:E98,$L95:$L98,M95:M98) -> -3.535677175e-06 | Z95: =bdrateOld($D95:$D98,F95:F98,$L95:$L98,N95:N98) -> -2.097834245e-06 | AA95: =bdrateOld($D95:$D98,G95:G98,$L95:$L98,O95:O98) -> 2.019545252e-06
C96: 27 | D96: 4999.1696 | E96: 39.7306625 | F96: 42.5679245 | G96: 42.9604275 | H96: 117238.622 | I96: 70.185 | J96: 32.56628389 | L96: =Test!B198 -> 4999.1696 | M96: =Test!C198 -> 39.7307 | N96: =Test!D198 -> 42.5679 | O96: =Test!E198 -> 42.9604 | P96: =Test!F198 -> 101901.24 | Q96: =Test!G198 -> 51.46 | R96: 28.3059 | S96: 0.8691780768 | T96: 0.7332051008
C97: 32 | D97: 2449.1168 | E97: 36.85870483 | F97: 40.63647433 | G97: 40.89125083 | H97: 96363.504 | I97: 58.804 | J97: 26.76764 | L97: =Test!B199 -> 2449.1168 | M97: =Test!C199 -> 36.8587 | N97: =Test!D199 -> 40.6365 | O97: =Test!E199 -> 40.8913 | P97: =Test!F199 -> 77076.34 | Q97: =Test!G199 -> 44.13 | R97: 21.41009444 | S97: 0.79984991 | T97: 0.7504591524
C98: 37 | D98: 1234.212 | E98: 34.14379117 | F98: 38.8330615 | G98: 38.95661617 | H98: 73788.299 | I98: 51.65 | J98: 20.49674972 | L98: =Test!B200 -> 1234.212 | M98: =Test!C200 -> 34.1438 | N98: =Test!D200 -> 38.8331 | O98: =Test!E200 -> 38.9566 | P98: =Test!F200 -> 53809.36 | Q98: =Test!G200 -> 37.31 | R98: 14.94704444 | S98: 0.7292397403 | T98: 0.7223620523
B99: SlideEditing | C99: 22 | D99: 1276.0216 | E99: 50.09730567 | F99: 48.120437 | G99: 48.31716333 | H99: 6787.809 | I99: 10.524 | J99: 1.8855025 | L99: =Test!B201 -> 1276.0216 | M99: =Test!C201 -> 50.0973 | N99: =Test!D201 -> 48.1204 | O99: =Test!E201 -> 48.3172 | P99: =Test!F201 -> 6011.24 | Q99: =Test!G201 -> 5.51 | R99: 1.669788889 | S99: 0.8855935693 | T99: 0.5235651843 | V99: =bdrate($D99:$D102,E99:E102,$L99:$L102,M99:M102) -> -1.460636039e-07 | W99: =bdrate($D99:$D102,F99:F102,$L99:$L102,N99:N102) -> -1.025091024e-06 | X99: =bdrate($D99:$D102,G99:G102,$L99:$L102,O99:O102) -> 2.605553308e-06 | Y99: =bdrateOld($D99:$D102,E99:E102,$L99:$L102,M99:M102) -> -1.544109082e-07 | Z99: =bdrateOld($D99:$D102,F99:F102,$L99:$L102,N99:N102) -> -1.871892928e-06 | AA99: =bdrateOld($D99:$D102,G99:G102,$L99:$L102,O99:O102) -> 3.030072109e-06
C100: 27 | D100: 956.3448 | E100: 45.791204 | F100: 43.56887733 | G100: 44.191642 | H100: 6233.377 | I100: 9.967 | J100: 1.731493611 | L100: =Test!B202 -> 956.3448 | M100: =Test!C202 -> 45.7912 | N100: =Test!D202 -> 43.5689 | O100: =Test!E202 -> 44.1916 | P100: =Test!F202 -> 5171.58 | Q100: =Test!G202 -> 5.54 | R100: 1.43655 | S100: 0.8296594286 | T100: 0.555834253
C101: 32 | D101: 731.988 | E101: 41.31058867 | F101: 40.66390333 | G101: 41.61661667 | H101: 6022.666 | I101: 9.492 | J101: 1.672962778 | L101: =Test!B203 -> 731.988 | M101: =Test!C203 -> 41.3106 | N101: =Test!D203 -> 40.6639 | O101: =Test!E203 -> 41.6166 | P101: =Test!F203 -> 4841.45 | Q101: =Test!G203 -> 4.95 | R101: 1.344847222 | S101: 0.8038715745 | T101: 0.5214917826
C102: 37 | D102: 556.1608 | E102: 36.47489667 | F102: 38.909954 | G102: 40.051342 | H102: 5541.656 | I102: 9.153 | J102: 1.539348889 | L102: =Test!B204 -> 556.1608 | M102: =Test!C204 -> 36.4749 | N102: =Test!D204 -> 38.91 | O102: =Test!E204 -> 40.0513 | P102: =Test!F204 -> 4355.38 | Q102: =Test!G204 -> 5.21 | R102: 1.209827778 | S102: 0.7859347459 | T102: 0.5692122801
B103: SlideShow | C103: 22 | D103: 669.19872 | E103: 52.1186196 | F103: 55.3924316 | G103: 56.493386 | H103: 16127.823 | I103: 20.348 | J103: 4.479950833 | L103: =Test!B205 -> 669.1987 | M103: =Test!C205 -> 52.1186 | N103: =Test!D205 -> 55.3924 | O103: =Test!E205 -> 56.4934 | P103: =Test!F205 -> 15592.58 | Q103: =Test!G205 -> 12.41 | R103: 4.331272222 | S103: 0.9668124458 | T103: 0.6098879497 | V103: =bdrate($D103:$D106,E103:E106,$L103:$L106,M103:M106) -> -1.512700541e-06 | W103: =bdrate($D103:$D106,F103:F106,$L103:$L106,N103:N106) -> -1.066007525e-05 | X103: =bdrate($D103:$D106,G103:G106,$L103:$L106,O103:O106) -> -9.746022374e-06 | Y103: =bdrateOld($D103:$D106,E103:E106,$L103:$L106,M103:M106) -> -1.660183571e-06 | Z103: =bdrateOld($D103:$D106,F103:F106,$L103:$L106,N103:N106) -> -1.175079507e-05 | AA103: =bdrateOld($D103:$D106,G103:G106,$L103:$L106,O103:O106) -> -1.06336193e-05
C104: 27 | D104: 395.33696 | E104: 48.2075158 | F104: 52.4948724 | G104: 53.6954332 | H104: 13276.957 | I104: 19.008 | J104: 3.688043611 | L104: =Test!B206 -> 395.3277 | M104: =Test!C206 -> 48.2074 | N104: =Test!D206 -> 52.4949 | O104: =Test!E206 -> 53.6954 | P104: =Test!F206 -> 12418.99 | Q104: =Test!G206 -> 10.96 | R104: 3.449719444 | S104: 0.9353792439 | T104: 0.5765993266
C105: 32 | D105: 252.1136 | E105: 44.6722252 | F105: 50.0059114 | G105: 51.3750824 | H105: 11041.724 | I105: 17.921 | J105: 3.067145556 | L105: =Test!B207 -> 252.1136 | M105: =Test!C207 -> 44.6722 | N105: =Test!D207 -> 50.0059 | O105: =Test!E207 -> 51.3751 | P105: =Test!F207 -> 9473.9 | Q105: =Test!G207 -> 10.62 | R105: 2.631638889 | S105: 0.8580091297 | T105: 0.5926008593
C106: 37 | D106: 163.98176 | E106: 41.1080134 | F106: 47.7946824 | G106: 49.5488742 | H106: 8688.775 | I106: 17.265 | J106: 2.413548611 | L106: =Test!B208 -> 163.9818 | M106: =Test!C208 -> 41.108 | N106: =Test!D208 -> 47.7947 | O106: =Test!E208 -> 49.5489 | P106: =Test!F208 -> 7164.39 | Q106: =Test!G208 -> 10.15 | R106: 1.990108333 | S106: 0.8245569715 | T106: 0.5878945844
B107: Class A1 | I107: =GEOMEAN(I3:I14) -> 160.0492956 | J107: =GEOMEAN(J3:J14) -> 82.97242937 | Q107: =GEOMEAN(Q3:Q14) -> 129.0673355 | R107: =GEOMEAN(R3:R14) -> 69.02457593 | S107: =GEOMEAN(S3:S14) -> 0.8318977334 | T107: =GEOMEAN(T3:T14) -> 0.80642239 | V107: =AVERAGE(V3:V14) -> 6.881266729e-06 | W107: -2.761234368e-07 | X107: 6.149794892e-06 | Y107: 1.126080996e-05 | Z107: -1.696831142e-06 | AA107: 6.397437736e-06
B108: Class A2 | I108: =GEOMEAN(I15:I26) -> 164.8450745 | J108: =GEOMEAN(J15:J26) -> 80.76901302 | Q108: =GEOMEAN(Q15:Q26) -> 126.5344027 | R108: =GEOMEAN(R15:R26) -> 69.55024699 | S108: =GEOMEAN(S15:S26) -> 0.8611006176 | T108: =GEOMEAN(T15:T26) -> 0.7675958959 | V108: =AVERAGE(V15:V26) -> 7.973999528e-06 | W108: 7.117568306e-06 | X108: 8.984318682e-07 | Y108: 4.621100565e-06 | Z108: 7.414481797e-06 | AA108: -3.689976408e-07
B109: Class B | I109: =GEOMEAN(I27:I46) -> 70.00383759 | J109: =GEOMEAN(J27:J46) -> 37.97156885 | Q109: =GEOMEAN(Q27:Q46) -> 56.46527416 | R109: =GEOMEAN(R27:R46) -> 30.39222288 | S109: =GEOMEAN(S27:S46) -> 0.8003941844 | T109: =GEOMEAN(T27:T46) -> 0.8066025536 | V109: =AVERAGE(V27:V46) -> 2.456934027e-06 | W109: 2.726986506e-06 | X109: 1.463542618e-05 | Y109: 2.240827936e-06 | Z109: 2.782549999e-06 | AA109: 1.418858796e-05
B110: Class C | I110: =GEOMEAN(I47:I62) -> 11.5529949 | J110: =GEOMEAN(J47:J62) -> 7.936502205 | Q110: =GEOMEAN(Q47:Q62) -> 10.49035379 | R110: =GEOMEAN(R47:R62) -> 6.220256438 | S110: =GEOMEAN(S47:S62) -> 0.7837528771 | T110: =GEOMEAN(T47:T62) -> 0.9080202909 | V110: =AVERAGE(V47:V62) -> -2.889030998e-06 | W110: -1.405259798e-06 | X110: 4.855210918e-07 | Y110: -2.837142036e-06 | Z110: -1.349930643e-06 | AA110: 9.376025412e-07
B111: Class D | I111: =GEOMEAN(I63:I78) -> 3.131635907 | J111: =GEOMEAN(J63:J78) -> 1.817771741 | Q111: =GEOMEAN(Q63:Q78) -> 2.737956516 | R111: =GEOMEAN(R63:R78) -> 1.42504492 | S111: =GEOMEAN(S63:S78) -> 0.7839515203 | T111: =GEOMEAN(T63:T78) -> 0.8742895397 | V111: =AVERAGE(V63:V78) -> -3.882577049e-06 | W111: 4.586554438e-06 | X111: -5.548547494e-06 | Y111: -3.525358006e-06 | Z111: 5.374495443e-06 | AA111: -5.750045213e-06
B112: Class E
B113: Class F | I113: =GEOMEAN(I91:I106) -> 19.22782651 | J113: =GEOMEAN(J91:J106) -> 6.149511122 | Q113: =GEOMEAN(Q91:Q106) -> 13.15718737 | R113: =GEOMEAN(R91:R106) -> 5.089314231 | S113: =GEOMEAN(S91:S106) -> 0.8275965569 | T113: =GEOMEAN(T91:T106) -> 0.6842784521 | V113: =AVERAGE(V91:V106) -> 3.791203655e-07 | W113: -4.408102825e-06 | X113: -1.441125308e-06 | Y113: 2.932987226e-07 | Z113: -4.369907284e-06 | AA113: -7.883533765e-07
B114: All | I114: =GEOMEAN(I3:I62,I79:I90) -> 60.63058889 | J114: =GEOMEAN(J3:J62,J79:J90) -> 34.01128191 | Q114: =GEOMEAN(Q3:Q62,Q79:Q90) -> 49.97385387 | R114: =GEOMEAN(R3:R62,R79:R90) -> 27.68196087 | S114: =GEOMEAN(S3:S62,S79:S90) -> 0.813905249 | T114: =GEOMEAN(T3:T62,T79:T90) -> 0.8242350072 | V114: =AVERAGE(V3:V62,V79:V90) -> 3.019622994e-06 | W114: 1.902548529e-06 | X114: 6.417593035e-06 | Y114: 3.16675354e-06 | Z114: 1.711065292e-06 | AA114: 6.185244683e-06
B115: Time geomean | I115: =GEOMEAN(I3:I106) -> 29.65776198 | J115: =GEOMEAN(J3:J106) -> 15.17789387 | Q115: =GEOMEAN(Q3:Q106) -> 23.91040887 | R115: =GEOMEAN(R3:R106) -> 12.30872926
B116: Time ratio | Q116: =Q115/I115 -> 0.806210829 | R116: =R115/J115 -> 0.8109642458
B117: Time sum (hours)

Sheet LDB-10
D1: Reference | L1: Tested | V1: BD-rate (piecewise cubic) | Y1: BD-rate (cubic)
C2: QPISlice | D2: kbps | E2: Y psnr | F2: U psnr | G2: V psnr | H2: Enc T [s] | I2: Dec T [s] | J2: Enc T [h] | L2: kbps | M2: Y psnr | N2: U psnr | O2: V psnr | P2: Enc T [s] | Q2: Dec T [s] | R2: Enc T [h] | S2: Enc | T2: Dec | V2: Y | W2: U | X2: V | Y2: Y | Z2: U | AA2: V
A3: Class A1 | B3: Tango2 | C3: 22
A4: 4K | C4: 27
C5: 32
C6: 37
B7: FoodMarket4 | C7: 22
C8: 27
C9: 32
C10: 37
B11: Campfire | C11: 22
C12: 27
C13: 32
C14: 37
A15: Class A2 | B15: CatRobot1 | C15: 22
A16: 4K | C16: 27
C17: 32
C18: 37
B19: DaylightRoad2 | C19: 22
C20: 27
C21: 32
C22: 37
B23: ParkRunning3 | C23: 22
C24: 27
C25: 32
C26: 37
A27: Class B | B27: MarketPlace | C27: 22 | D27: 17649.36 | E27: 41.0384 | F27: 44.0957 | G27: 44.8312 | H27: 286806.173 | I27: 105.403 | J27: =H27/3600 -> 79.66838139 | L27: =Test!B233 -> 17649.36 | M27: =Test!C233 -> 41.0384 | N27: =Test!D233 -> 44.0957 | O27: =Test!E233 -> 44.8312 | P27: =Test!F233 -> 286003.18 | Q27: =Test!G233 -> 96.92 | R27: =P27/3600 -> 79.44532778 | S27: =P27/H27 -> 0.9972002241 | T27: =Q27/I27 -> 0.9195184198 | V27: =bdrate($D27:$D30,E27:E30,$L27:$L30,M27:M30) -> 0 | W27: =bdrate($D27:$D30,F27:F30,$L27:$L30,N27:N30) -> 0 | X27: =bdrate($D27:$D30,G27:G30,$L27:$L30,O27:O30) -> 0 | Y27: =bdrateOld($D27:$D30,E27:E30,$L27:$L30,M27:M30) -> 0 | Z27: =bdrateOld($D27:$D30,F27:F30,$L27:$L30,N27:N30) -> 0 | AA27: =bdrateOld($D27:$D30,G27:G30,$L27:$L30,O27:O30) -> 0
A28: 1080p | C28: 27 | D28: 6531.428 | E28: 38.6076 | F28: 42.207 | G28: 43.1708 | H28: 163919.472 | I28: 81.541 | J28: 45.53318667 | L28: =Test!B234 -> 6531.428 | M28: =Test!C234 -> 38.6076 | N28: =Test!D234 -> 42.207 | O28: =Test!E234 -> 43.1708 | P28: =Test!F234 -> 149426.19 | Q28: =Test!G234 -> 69.94 | R28: 41.507275 | S28: 0.9115829143 | T28: 0.8577280141
C29: 32 | D29: 2914.7264 | E29: 36.2005 | F29: 40.7957 | G29: 41.8113 | H29: 117712.8 | I29: 66.838 | J29: 32.698 | L29: =Test!B235 -> 2914.7264 | M29: =Test!C235 -> 36.2005 | N29: =Test!D235 -> 40.7957 | O29: =Test!E235 -> 41.8113 | P29: =Test!F235 -> 98264.98 | Q29: =Test!G235 -> 54.89 | R29: 27.29582778 | S29: 0.8347858517 | T29: 0.8212394147
C30: 37 | D30: 1322.316 | E30: 33.7627 | F30: 39.7944 | G30: 40.7634 | H30: 82566.32 | I30: 55.4 | J30: 22.93508889 | L30: =Test!B236 -> 1322.316 | M30: =Test!C236 -> 33.7627 | N30: =Test!D236 -> 39.7944 | O30: =Test!E236 -> 40.7634 | P30: =Test!F236 -> 64895.28 | Q30: =Test!G236 -> 43.32 | R30: 18.02646667 | S30: 0.7859776238 | T30: 0.7819494585
B31: RitualDance | C31: 22 | D31: 10818.54 | E31: 44.3344 | F31: 47.1202 | G31: 47.8662 | H31: 236115.728 | I31: 97.005 | J31: 65.58770222 | L31: =Test!B237 -> 10818.54 | M31: =Test!C237 -> 44.3344 | N31: =Test!D237 -> 47.1202 | O31: =Test!E237 -> 47.8662 | P31: =Test!F237 -> 233835.5 | Q31: =Test!G237 -> 84.45 | R31: 64.95430556 | S31: 0.9903427526 | T31: 0.8705736818 | V31: =bdrate($D31:$D34,E31:E34,$L31:$L34,M31:M34) -> 0 | W31: =bdrate($D31:$D34,F31:F34,$L31:$L34,N31:N34) -> 0 | X31: =bdrate($D31:$D34,G31:G34,$L31:$L34,O31:O34) -> 0 | Y31: =bdrateOld($D31:$D34,E31:E34,$L31:$L34,M31:M34) -> 0 | Z31: =bdrateOld($D31:$D34,F31:F34,$L31:$L34,N31:N34) -> 0 | AA31: =bdrateOld($D31:$D34,G31:G34,$L31:$L34,O31:O34) -> 0
C32: 27 | D32: 5412.8808 | E32: 41.0539 | F32: 44.7541 | G32: 45.3076 | H32: 167203.584 | I32: 81.676 | J32: 46.44544 | L32: =Test!B238 -> 5412.8808 | M32: =Test!C238 -> 41.0539 | N32: =Test!D238 -> 44.7541 | O32: =Test!E238 -> 45.3076 | P32: =Test!F238 -> 161917.28 | Q32: =Test!G238 -> 73.56 | R32: 44.97702222 | S32: 0.968384027 | T32: 0.9006317645
C33: 32 | D33: 2875.8248 | E33: 37.9243 | F33: 43.1965 | G33: 43.5901 | H33: 129944.905 | I33: 69.484 | J33: 36.09580694 | L33: =Test!B239 -> 2875.8248 | M33: =Test!C239 -> 37.9243 | N33: =Test!D239 -> 43.1965 | O33: =Test!E239 -> 43.5901 | P33: =Test!F239 -> 115040.39 | Q33: =Test!G239 -> 59.64 | R33: 31.95566389 | S33: 0.8853012744 | T33: 0.8583270969
C34: 37 | D34: 1566.736 | E34: 35.0844 | F34: 42.1017 | G34: 42.2822 | H34: 95149.343 | I34: 59.564 | J34: 26.43037306 | L34: =Test!B240 -> 1566.736 | M34: =Test!C240 -> 35.0844 | N34: =Test!D240 -> 42.1017 | O34: =Test!E240 -> 42.2822 | P34: =Test!F240 -> 77474.33 | Q34: =Test!G240 -> 50.08 | R34: 21.52064722 | S34: 0.8142392533 | T34: 0.8407763078
B35: Cactus | C35: 22 | D35: 18435.624 | E35: 38.94 | F35: 40.4242 | G35: 43.6453 | H35: 243667.697 | I35: 90.882 | J35: 67.68547139 | L35: =Test!B241 -> 18435.624 | M35: =Test!C241 -> 38.94 | N35: =Test!D241 -> 40.4242 | O35: =Test!E241 -> 43.6453 | P35: =Test!F241 -> 240916.49 | Q35: =Test!G241 -> 81.85 | R35: 66.92124722 | S35: 0.9887091845 | T35: 0.9006183843 | V35: =bdrate($D35:$D38,E35:E38,$L35:$L38,M35:M38) -> 0 | W35: =bdrate($D35:$D38,F35:F38,$L35:$L38,N35:N38) -> 0 | X35: =bdrate($D35:$D38,G35:G38,$L35:$L38,O35:O38) -> 0 | Y35: =bdrateOld($D35:$D38,E35:E38,$L35:$L38,M35:M38) -> 0 | Z35: =bdrateOld($D35:$D38,F35:F38,$L35:$L38,N35:N38) -> 0 | AA35: =bdrateOld($D35:$D38,G35:G38,$L35:$L38,O35:O38) -> 0
C36: 27 | D36: 4607.7696 | E36: 36.943 | F36: 39.1326 | G36: 41.8204 | H36: 143890.233 | I36: 60.075 | J36: 39.96950917 | L36: =Test!B242 -> 4607.7696 | M36: =Test!C242 -> 36.943 | N36: =Test!D242 -> 39.1326 | O36: =Test!E242 -> 41.8204 | P36: =Test!F242 -> 127608.05 | Q36: =Test!G242 -> 50.38 | R36: 35.44668056 | S36: 0.8868430285 | T36: 0.8386183937
C37: 32 | D37: 2075.7456 | E37: 34.9016 | F37: 38.2859 | G37: 40.3246 | H37: 106047.552 | I37: 48.809 | J37: 29.45765333 | L37: =Test!B243 -> 2075.7456 | M37: =Test!C243 -> 34.9016 | N37: =Test!D243 -> 38.2859 | O37: =Test!E243 -> 40.3246 | P37: =Test!F243 -> 88681.49 | Q37: =Test!G243 -> 39.38 | R37: 24.63374722 | S37: 0.8362426886 | T37: 0.8068184146
C38: 37 | D38: 1020.9432 | E38: 32.6881 | F38: 37.5416 | G38: 39.1341 | H38: 77368.584 | I38: 42.445 | J38: 21.49127333 | L38: =Test!B244 -> 1020.9432 | M38: =Test!C244 -> 32.6881 | N38: =Test!D244 -> 37.5416 | O38: =Test!E244 -> 39.1341 | P38: =Test!F244 -> 58963.76 | Q38: =Test!G244 -> 32.54 | R38: 16.37882222 | S38: 0.7621150207 | T38: 0.7666391801
B39: BasketballDrive | C39: 22 | D39: 17189.7752 | E39: 39.6769 | F39: 44.1128 | G39: 45.5878 | H39: 288679.24 | I39: 94.785 | J39: 80.18867778 | L39: =Test!B245 -> 17189.7752 | M39: =Test!C245 -> 39.6769 | N39: =Test!D245 -> 44.1128 | O39: =Test!E245 -> 45.5878 | P39: =Test!F245 -> 268623.77 | Q39: =Test!G245 -> 86.27 | R39: 74.61771389 | S39: 0.930526802 | T39: 0.9101651105 | V39: =bdrate($D39:$D42,E39:E42,$L39:$L42,M39:M42) -> 0 | W39: =bdrate($D39:$D42,F39:F42,$L39:$L42,N39:N42) -> 0 | X39: =bdrate($D39:$D42,G39:G42,$L39:$L42,O39:O42) -> 0 | Y39: =bdrateOld($D39:$D42,E39:E42,$L39:$L42,M39:M42) -> 0 | Z39: =bdrateOld($D39:$D42,F39:F42,$L39:$L42,N39:N42) -> 0 | AA39: =bdrateOld($D39:$D42,G39:G42,$L39:$L42,O39:O42) -> 0
C40: 27 | D40: 5487.4448 | E40: 37.7649 | F40: 42.7975 | G40: 43.515 | H40: 180810.254 | I40: 70.567 | J40: 50.22507056 | L40: =Test!B246 -> 5487.4448 | M40: =Test!C246 -> 37.7649 | N40: =Test!D246 -> 42.7975 | O40: =Test!E246 -> 43.515 | P40: =Test!F246 -> 168919.04 | Q40: =Test!G246 -> 62.92 | R40: 46.92195556 | S40: 0.934233741 | T40: 0.8916349002
C41: 32 | D41: 2605.9904 | E41: 35.9152 | F41: 41.6707 | G41: 41.9338 | H41: 125476.924 | I41: 59.405 | J41: 34.85470111 | L41: =Test!B247 -> 2605.9904 | M41: =Test!C247 -> 35.9152 | N41: =Test!D247 -> 41.6707 | O41: =Test!E247 -> 41.9338 | P41: =Test!F247 -> 110952.83 | Q41: =Test!G247 -> 52.4 | R41: 30.82023056 | S41: 0.8842488839 | T41: 0.8820806329
C42: 37 | D42: 1359.5944 | E42: 33.9395 | F42: 40.7083 | G42: 40.5379 | H42: 87796.244 | I42: 52.203 | J42: 24.38784556 | L42: =Test!B248 -> 1359.5944 | M42: =Test!C248 -> 33.9395 | N42: =Test!D248 -> 40.7083 | O42: =Test!E248 -> 40.5379 | P42: =Test!F248 -> 70835.64 | Q42: =Test!G248 -> 44.45 | R42: 19.67656667 | S42: 0.8068185696 | T42: 0.8514836312
B43: BQTerrace | C43: 22 | D43: 49842.4568 | E43: 38.4479 | F43: 42.241 | G43: 44.3088 | H43: 266540.44 | I43: 165.123 | J43: 74.03901111 | L43: =Test!B249 -> 49842.4568 | M43: =Test!C249 -> 38.4479 | N43: =Test!D249 -> 42.241 | O43: =Test!E249 -> 44.3088 | P43: =Test!F249 -> 263836.35 | Q43: =Test!G249 -> 157.38 | R43: 73.287875 | S43: 0.9898548603 | T43: 0.9531076834 | V43: =bdrate($D43:$D46,E43:E46,$L43:$L46,M43:M46) -> 0 | W43: =bdrate($D43:$D46,F43:F46,$L43:$L46,N43:N46) -> 0 | X43: =bdrate($D43:$D46,G43:G46,$L43:$L46,O43:O46) -> 0 | Y43: =bdrateOld($D43:$D46,E43:E46,$L43:$L46,M43:M46) -> 0 | Z43: =bdrateOld($D43:$D46,F43:F46,$L43:$L46,N43:N46) -> 0 | AA43: =bdrateOld($D43:$D46,G43:G46,$L43:$L46,O43:O46) -> 0
C44: 27 | D44: 6631.4728 | E44: 35.5821 | F44: 40.8506 | G44: 43.167 | H44: 134964.856 | I44: 76.871 | J44: 37.49023778 | L44: =Test!B250 -> 6631.4728 | M44: =Test!C250 -> 35.5821 | N44: =Test!D250 -> 40.8506 | O44: =Test!E250 -> 43.167 | P44: =Test!F250 -> 120803.08 | Q44: =Test!G250 -> 66.55 | R44: 33.55641111 | S44: 0.8950706397 | T44: 0.8657361033
C45: 32 | D45: 1694.4064 | E45: 33.7896 | F45: 39.6431 | G45: 42.2615 | H45: 86118.898 | I45: 53.748 | J45: 23.92191611 | L45: =Test!B251 -> 1694.4064 | M45: =Test!C251 -> 33.7896 | N45: =Test!D251 -> 39.6431 | O45: =Test!E251 -> 42.2615 | P45: =Test!F251 -> 69472.55 | Q45: =Test!G251 -> 42.47 | R45: 19.29793056 | S45: 0.806705051 | T45: 0.7901689365
C46: 37 | D46: 657.4936 | E46: 31.7355 | F46: 38.7465 | G46: 41.509 | H46: 53653.925 | I46: 43.385 | J46: 14.90386806 | L46: =Test!B252 -> 657.4936 | M46: =Test!C252 -> 31.7355 | N46: =Test!D252 -> 38.7465 | O46: =Test!E252 -> 41.509 | P46: =Test!F252 -> 41345.67 | Q46: =Test!G252 -> 30.07 | R46: 11.48490833 | S46: 0.7705991687 | T46: 0.6930966924
A47: Class C | B47: BasketballDrill | C47: 22 | D47: 3109.7464 | E47: 40.6047 | F47: 43.4014 | G47: 44.1509 | H47: 50702.827 | I47: 14.717 | J47: 14.08411861 | L47: =Test!B253 -> 3109.7464 | M47: =Test!C253 -> 40.6047 | N47: =Test!D253 -> 43.4014 | O47: =Test!E253 -> 44.1509 | P47: =Test!F253 -> 44686.92 | Q47: =Test!G253 -> 13.91 | R47: 12.41303333 | S47: 0.8813496731 | T47: 0.9451654549 | V47: =bdrate($D47:$D50,E47:E50,$L47:$L50,M47:M50) -> 0 | W47: =bdrate($D47:$D50,F47:F50,$L47:$L50,N47:N50) -> 0 | X47: =bdrate($D47:$D50,G47:G50,$L47:$L50,O47:O50) -> 0 | Y47: =bdrateOld($D47:$D50,E47:E50,$L47:$L50,M47:M50) -> 0 | Z47: =bdrateOld($D47:$D50,F47:F50,$L47:$L50,N47:N50) -> 0 | AA47: =bdrateOld($D47:$D50,G47:G50,$L47:$L50,O47:O50) -> 0
A48: WVGA | C48: 27 | D48: 1420.9936 | E48: 37.3516 | F48: 40.9358 | G48: 41.429 | H48: 40688.516 | I48: 11.5 | J48: 11.30236556 | L48: =Test!B254 -> 1420.9936 | M48: =Test!C254 -> 37.3516 | N48: =Test!D254 -> 40.9358 | O48: =Test!E254 -> 41.429 | P48: =Test!F254 -> 33898.39 | Q48: =Test!G254 -> 10.86 | R48: 9.416219444 | S48: 0.8331193499 | T48: 0.9443478261
C49: 32 | D49: 707.3968 | E49: 34.6185 | F49: 39.1447 | G49: 39.5161 | H49: 31032.615 | I49: 9.333 | J49: 8.620170833 | L49: =Test!B255 -> 707.3968 | M49: =Test!C255 -> 34.6185 | N49: =Test!D255 -> 39.1447 | O49: =Test!E255 -> 39.5161 | P49: =Test!F255 -> 24059.92 | Q49: =Test!G255 -> 9.46 | R49: 6.683311111 | S49: 0.7753107497 | T49: 1.013607629
C50: 37 | D50: 373.6976 | E50: 32.2372 | F50: 37.5972 | G50: 37.8177 | H50: 23445.387 | I50: 7.927 | J50: 6.5126075 | L50: =Test!B256 -> 373.6976 | M50: =Test!C256 -> 32.2372 | N50: =Test!D256 -> 37.5972 | O50: =Test!E256 -> 37.8177 | P50: =Test!F256 -> 15983.65 | Q50: =Test!G256 -> 6.58 | R50: 4.439902778 | S50: 0.6817396531 | T50: 0.8300744292
B51: BQMall | C51: 22 | D51: 3586.56 | E51: 40.4717 | F51: 43.5509 | G51: 45.0425 | H51: 46866.415 | I51: 18.166 | J51: 13.01844861 | L51: =Test!B257 -> 3586.56 | M51: =Test!C257 -> 40.4717 | N51: =Test!D257 -> 43.5509 | O51: =Test!E257 -> 45.0425 | P51: =Test!F257 -> 40640.94 | Q51: =Test!G257 -> 18.53 | R51: 11.28915 | S51: 0.8671655385 | T51: 1.020037433 | V51: =bdrate($D51:$D54,E51:E54,$L51:$L54,M51:M54) -> 0 | W51: =bdrate($D51:$D54,F51:F54,$L51:$L54,N51:N54) -> 0 | X51: =bdrate($D51:$D54,G51:G54,$L51:$L54,O51:O54) -> 0 | Y51: =bdrateOld($D51:$D54,E51:E54,$L51:$L54,M51:M54) -> 0 | Z51: =bdrateOld($D51:$D54,F51:F54,$L51:$L54,N51:N54) -> 0 | AA51: =bdrateOld($D51:$D54,G51:G54,$L51:$L54,O51:O54) -> 0
C52: 27 | D52: 1565.7944 | E52: 37.5481 | F52: 41.4648 | G52: 42.6433 | H52: 35243.237 | I52: 13.284 | J52: 9.789788056 | L52: =Test!B258 -> 1565.7944 | M52: =Test!C258 -> 37.5481 | N52: =Test!D258 -> 41.4648 | O52: =Test!E258 -> 42.6433 | P52: =Test!F258 -> 28154.12 | Q52: =Test!G258 -> 12.37 | R52: 7.820588889 | S52: 0.7988517059 | T52: 0.9311954231
C53: 32 | D53: 771.2544 | E53: 34.6279 | F53: 39.8309 | G53: 40.8472 | H53: 28578.876 | I53: 10.379 | J53: 7.938576667 | L53: =Test!B259 -> 771.2544 | M53: =Test!C259 -> 34.6279 | N53: =Test!D259 -> 39.8309 | O53: =Test!E259 -> 40.8472 | P53: =Test!F259 -> 20349.92 | Q53: =Test!G259 -> 8.74 | R53: 5.652755556 | S53: 0.712061594 | T53: 0.8420849793
C54: 37 | D54: 394.1656 | E54: 31.778 | F54: 38.5577 | G54: 39.5295 | H54: 21189.148 | I54: 8.802 | J54: 5.885874444 | L54: =Test!B260 -> 394.1656 | M54: =Test!C260 -> 31.778 | N54: =Test!D260 -> 38.5577 | O54: =Test!E260 -> 39.5295 | P54: =Test!F260 -> 14480.14 | Q54: =Test!G260 -> 7.06 | R54: 4.022261111 | S54: 0.6833752825 | T54: 0.802090434
B55: PartyScene | C55: 22 | D55: 6933.832 | E55: 38.6631 | F55: 41.4966 | G55: 42.4467 | H55: 52999.436 | I55: 22.037 | J55: 14.72206556 | L55: =Test!B261 -> 6933.832 | M55: =Test!C261 -> 38.6631 | N55: =Test!D261 -> 41.4966 | O55: =Test!E261 -> 42.4467 | P55: =Test!F261 -> 47003.77 | Q55: =Test!G261 -> 20.12 | R55: 13.05660278 | S55: 0.8868730226 | T55: 0.9130099378 | V55: =bdrate($D55:$D58,E55:E58,$L55:$L58,M55:M58) -> 0 | W55: =bdrate($D55:$D58,F55:F58,$L55:$L58,N55:N58) -> 0 | X55: =bdrate($D55:$D58,G55:G58,$L55:$L58,O55:O58) -> 0 | Y55: =bdrateOld($D55:$D58,E55:E58,$L55:$L58,M55:M58) -> 0 | Z55: =bdrateOld($D55:$D58,F55:F58,$L55:$L58,N55:N58) -> 0 | AA55: =bdrateOld($D55:$D58,G55:G58,$L55:$L58,O55:O58) -> 0
C56: 27 | D56: 2848.3616 | E56: 34.7039 | F56: 38.6514 | G56: 39.4893 | H56: 39747.868 | I56: 15.814 | J56: 11.04107444 | L56: =Test!B262 -> 2848.3616 | M56: =Test!C262 -> 34.7039 | N56: =Test!D262 -> 38.6514 | O56: =Test!E262 -> 39.4893 | P56: =Test!F262 -> 32931.9 | Q56: =Test!G262 -> 16.5 | R56: 9.14775 | S56: 0.8285199095 | T56: 1.043379284
C57: 32 | D57: 1271.6248 | E57: 31.2455 | F57: 36.753 | G57: 37.5519 | H57: 30258.682 | I57: 12.157 | J57: 8.405189444 | L57: =Test!B263 -> 1271.6248 | M57: =Test!C263 -> 31.2455 | N57: =Test!D263 -> 36.753 | O57: =Test!E263 -> 37.5519 | P57: =Test!F263 -> 22037.68 | Q57: =Test!G263 -> 11.01 | R57: 6.121577778 | S57: 0.7283093163 | T57: 0.9056510652
C58: 37 | D58: 554.0912 | E58: 28.0589 | F58: 35.3572 | G58: 36.1519 | H58: 22425.219 | I58: 9.459 | J58: 6.2292275 | L58: =Test!B264 -> 554.0912 | M58: =Test!C264 -> 28.0589 | N58: =Test!D264 -> 35.3572 | O58: =Test!E264 -> 36.1519 | P58: =Test!F264 -> 15299.7 | Q58: =Test!G264 -> 7.99 | R58: 4.249916667 | S58: 0.6822542067 | T58: 0.8446981711
B59: RaceHorses | C59: 22 | D59: 5100.9128 | E59: 40.1677 | F59: 41.7579 | G59: 43.0862 | H59: 34722.824 | I59: 13.722 | J59: =H59/3600 -> 9.645228889 | L59: =Test!B265 -> 5100.9128 | M59: =Test!C265 -> 40.1677 | N59: =Test!D265 -> 41.7579 | O59: =Test!E265 -> 43.0862 | P59: =Test!F265 -> 35547.12 | Q59: =Test!G265 -> 13.25 | R59: =P59/3600 -> 9.8742 | S59: =P59/H59 -> 1.023739313 | T59: =Q59/I59 -> 0.9656026818 | V59: =bdrate($D59:$D62,E59:E62,$L59:$L62,M59:M62) -> 0 | W59: =bdrate($D59:$D62,F59:F62,$L59:$L62,N59:N62) -> 0 | X59: =bdrate($D59:$D62,G59:G62,$L59:$L62,O59:O62) -> 0 | Y59: =bdrateOld($D59:$D62,E59:E62,$L59:$L62,M59:M62) -> 0 | Z59: =bdrateOld($D59:$D62,F59:F62,$L59:$L62,N59:N62) -> 0 | AA59: =bdrateOld($D59:$D62,G59:G62,$L59:$L62,O59:O62) -> 0
C60: 27 | D60: 1934.8792 | E60: 36.4023 | F60: 39.0683 | G60: 40.692 | H60: 23168.012 | I60: 9.658 | J60: 6.435558889 | L60: =Test!B266 -> 1934.8792 | M60: =Test!C266 -> 36.4023 | N60: =Test!D266 -> 39.0683 | O60: =Test!E266 -> 40.692 | P60: =Test!F266 -> 22958.17 | Q60: =Test!G266 -> 9.53 | R60: 6.377269444 | S60: 0.9909425979 | T60: 0.9867467385
C61: 32 | D61: 876.9152 | E61: 33.3513 | F61: 37.3182 | G61: 39.1796 | H61: 18336.227 | I61: 7.478 | J61: 5.093396389 | L61: =Test!B267 -> 876.9152 | M61: =Test!C267 -> 33.3513 | N61: =Test!D267 -> 37.3182 | O61: =Test!E267 -> 39.1796 | P61: =Test!F267 -> 17659.1 | Q61: =Test!G267 -> 6.93 | R61: 4.905305556 | S61: 0.9630716286 | T61: 0.9267183739
C62: 37 | D62: 405.344 | E62: 30.5289 | F62: 36.1069 | G62: 37.9501 | H62: 13888.626 | I62: 5.959 | J62: 3.857951667 | L62: =Test!B268 -> 405.344 | M62: =Test!C268 -> 30.5289 | N62: =Test!D268 -> 36.1069 | O62: =Test!E268 -> 37.9501 | P62: =Test!F268 -> 12249.98 | Q62: =Test!G268 -> 5.35 | R62: 3.402772222 | S62: 0.8820152548 | T62: 0.8978016446
A63: Class D | B63: BasketballPass | C63: =C59 -> 22 | D63: 1493.9008 | E63: 41.3298 | F63: 44.2662 | G63: 43.7128 | H63: 12246.095 | I63: 4.781 | J63: 3.401693056 | L63: =Test!B269 -> 1493.9008 | M63: =Test!C269 -> 41.3298 | N63: =Test!D269 -> 44.2662 | O63: =Test!E269 -> 43.7128 | P63: =Test!F269 -> 10582.95 | Q63: =Test!G269 -> 4.82 | R63: 2.939708333 | S63: 0.8641897682 | T63: 1.008157289 | V63: =bdrate($D63:$D66,E63:E66,$L63:$L66,M63:M66) -> 0 | W63: =bdrate($D63:$D66,F63:F66,$L63:$L66,N63:N66) -> 0 | X63: =bdrate($D63:$D66,G63:G66,$L63:$L66,O63:O66) -> 0 | Y63: =bdrateOld($D63:$D66,E63:E66,$L63:$L66,M63:M66) -> 0 | Z63: =bdrateOld($D63:$D66,F63:F66,$L63:$L66,N63:N66) -> 0 | AA63: =bdrateOld($D63:$D66,G63:G66,$L63:$L66,O63:O66) -> 0
A64: WQVGA | C64: =C60 -> 27 | D64: 723.0816 | E64: 37.2597 | F64: 41.4991 | G64: 40.4501 | H64: 9491.253 | I64: 3.647 | J64: 2.636459167 | L64: =Test!B270 -> 723.0816 | M64: =Test!C270 -> 37.2597 | N64: =Test!D270 -> 41.4991 | O64: =Test!E270 -> 40.4501 | P64: =Test!F270 -> 7969.76 | Q64: =Test!G270 -> 3.54 | R64: 2.213822222 | S64: 0.8396952436 | T64: 0.9706608171
C65: =C61 -> 32 | D65: 365.4928 | E65: 33.8441 | F65: 39.6001 | G65: 38.4116 | H65: 8071.94 | I65: 2.798 | J65: 2.242205556 | L65: =Test!B271 -> 365.4928 | M65: =Test!C271 -> 33.8441 | N65: =Test!D271 -> 39.6001 | O65: =Test!E271 -> 38.4116 | P65: =Test!F271 -> 6346.49 | Q65: =Test!G271 -> 2.6 | R65: 1.762913889 | S65: 0.786240978 | T65: 0.929235168
C66: =C62 -> 37 | D66: 189.7848 | E66: 30.9938 | F66: 38.1647 | G66: 36.7286 | H66: 6496.462 | I66: 2.223 | J66: 1.804572778 | L66: =Test!B272 -> 189.7848 | M66: =Test!C272 -> 30.9938 | N66: =Test!D272 -> 38.1647 | O66: =Test!E272 -> 36.7286 | P66: =Test!F272 -> 4505.02 | Q66: =Test!G272 -> 2 | R66: 1.251394444 | S66: 0.6934574542 | T66: 0.8996851102
B67: BQSquare | C67: 22 | D67: 1909.4984 | E67: 38.6418 | F67: 42.8709 | G67: 44.0308 | H67: 12503.183 | I67: 6.168 | J67: 3.473106389 | L67: =Test!B273 -> 1909.4984 | M67: =Test!C273 -> 38.6418 | N67: =Test!D273 -> 42.8709 | O67: =Test!E273 -> 44.0308 | P67: =Test!F273 -> 11110.87 | Q67: =Test!G273 -> 6.13 | R67: 3.086352778 | S67: 0.8886433159 | T67: 0.9938391699 | V67: =bdrate($D67:$D70,E67:E70,$L67:$L70,M67:M70) -> 0 | W67: =bdrate($D67:$D70,F67:F70,$L67:$L70,N67:N70) -> 0 | X67: =bdrate($D67:$D70,G67:G70,$L67:$L70,O67:O70) -> 0 | Y67: =bdrateOld($D67:$D70,E67:E70,$L67:$L70,M67:M70) -> 0 | Z67: =bdrateOld($D67:$D70,F67:F70,$L67:$L70,N67:N70) -> 0 | AA67: =bdrateOld($D67:$D70,G67:G70,$L67:$L70,O67:O70) -> 0
C68: 27 | D68: 636.1256 | E68: 34.816 | F68: 40.8532 | G68: 42.0218 | H68: 9426.226 | I68: 4.129 | J68: 2.618396111 | L68: =Test!B274 -> 636.1256 | M68: =Test!C274 -> 34.816 | N68: =Test!D274 -> 40.8532 | O68: =Test!E274 -> 42.0218 | P68: =Test!F274 -> 7243.46 | Q68: =Test!G274 -> 3.82 | R68: 2.012072222 | S68: 0.7684369121 | T68: 0.9251634778
C69: 32 | D69: 242.4448 | E69: 31.5865 | F69: 39.4122 | G69: 40.4244 | H69: 6128.109 | I69: 3.316 | J69: 1.7022525 | L69: =Test!B275 -> 242.4448 | M69: =Test!C275 -> 31.5865 | N69: =Test!D275 -> 39.4122 | O69: =Test!E275 -> 40.4244 | P69: =Test!F275 -> 4126.71 | Q69: =Test!G275 -> 2.98 | R69: 1.146308333 | S69: 0.6734067557 | T69: 0.8986731001
C70: 37 | D70: 98.7408 | E70: 28.5977 | F70: 38.6271 | G70: 39.4116 | H70: 3910.259 | I70: 2.512 | J70: 1.086183056 | L70: =Test!B276 -> 98.7408 | M70: =Test!C276 -> 28.5977 | N70: =Test!D276 -> 38.6271 | O70: =Test!E276 -> 39.4116 | P70: =Test!F276 -> 2504.54 | Q70: =Test!G276 -> 1.99 | R70: 0.6957055556 | S70: 0.6405048873 | T70: 0.7921974522
B71: BlowingBubbles | C71: 22 | D71: 1698.7656 | E71: 38.3955 | F71: 41.1191 | G71: 41.8982 | H71: 12216.102 | I71: 5.244 | J71: 3.393361667 | L71: =Test!B277 -> 1698.7656 | M71: =Test!C277 -> 38.3955 | N71: =Test!D277 -> 41.1191 | O71: =Test!E277 -> 41.8982 | P71: =Test!F277 -> 10223.25 | Q71: =Test!G277 -> 5.08 | R71: 2.839791667 | S71: 0.8368667845 | T71: 0.9687261632 | V71: =bdrate($D71:$D74,E71:E74,$L71:$L74,M71:M74) -> 0 | W71: =bdrate($D71:$D74,F71:F74,$L71:$L74,N71:N74) -> 0 | X71: =bdrate($D71:$D74,G71:G74,$L71:$L74,O71:O74) -> 0 | Y71: =bdrateOld($D71:$D74,E71:E74,$L71:$L74,M71:M74) -> 0 | Z71: =bdrateOld($D71:$D74,F71:F74,$L71:$L74,N71:N74) -> 0 | AA71: =bdrateOld($D71:$D74,G71:G74,$L71:$L74,O71:O74) -> 0
C72: 27 | D72: 697.58 | E72: 34.5052 | F72: 38.3271 | G72: 38.9297 | H72: 8800.73 | I72: 3.542 | J72: 2.444647222 | L72: =Test!B278 -> 697.58 | M72: =Test!C278 -> 34.5052 | N72: =Test!D278 -> 38.3271 | O72: =Test!E278 -> 38.9297 | P72: =Test!F278 -> 7011.71 | Q72: =Test!G278 -> 3.31 | R72: 1.947697222 | S72: 0.7967191358 | T72: 0.9345002823
C73: 32 | D73: 305.9304 | E73: 31.0691 | F73: 36.3569 | G73: 36.9306 | H73: 6957.985 | I73: 2.567 | J73: 1.932773611 | L73: =Test!B279 -> 305.9304 | M73: =Test!C279 -> 31.0691 | N73: =Test!D279 -> 36.3569 | O73: =Test!E279 -> 36.9306 | P73: =Test!F279 -> 4802 | Q73: =Test!G279 -> 2.27 | R73: 1.333888889 | S73: 0.6901423329 | T73: 0.8843007402
C74: 37 | D74: 133.3048 | E74: 28.061 | F74: 34.8842 | G74: 35.4678 | H74: 5018.32 | I74: 1.977 | J74: 1.393977778 | L74: =Test!B280 -> 133.3048 | M74: =Test!C280 -> 28.061 | N74: =Test!D280 -> 34.8842 | O74: =Test!E280 -> 35.4678 | P74: =Test!F280 -> 3385.69 | Q74: =Test!G280 -> 1.68 | R74: 0.9404694444 | S74: 0.6746660237 | T74: 0.8497723824
B75: RaceHorses | C75: 22 | D75: 1174.0392 | E75: 40.32 | F75: 41.6263 | G75: 42.6927 | H75: 9372.841 | I75: 3.53 | J75: 2.603566944 | L75: =Test!B281 -> 1174.0392 | M75: =Test!C281 -> 40.32 | N75: =Test!D281 -> 41.6263 | O75: =Test!E281 -> 42.6927 | P75: =Test!F281 -> 7654.84 | Q75: =Test!G281 -> 3.48 | R75: 2.126344444 | S75: 0.8167043482 | T75: 0.9858356941 | V75: =bdrate($D75:$D78,E75:E78,$L75:$L78,M75:M78) -> 0 | W75: =bdrate($D75:$D78,F75:F78,$L75:$L78,N75:N78) -> 0 | X75: =bdrate($D75:$D78,G75:G78,$L75:$L78,O75:O78) -> 0 | Y75: =bdrateOld($D75:$D78,E75:E78,$L75:$L78,M75:M78) -> 0 | Z75: =bdrateOld($D75:$D78,F75:F78,$L75:$L78,N75:N78) -> 0 | AA75: =bdrateOld($D75:$D78,G75:G78,$L75:$L78,O75:O78) -> 0
C76: 27 | D76: 545.9928 | E76: 36.0598 | F76: 38.6809 | G76: 39.9312 | H76: 7191.152 | I76: 2.579 | J76: 1.997542222 | L76: =Test!B282 -> 545.9928 | M76: =Test!C282 -> 36.0598 | N76: =Test!D282 -> 38.6809 | O76: =Test!E282 -> 39.9312 | P76: =Test!F282 -> 5449.69 | Q76: =Test!G282 -> 2.53 | R76: 1.513802778 | S76: 0.7578326811 | T76: 0.9810003877
C77: 32 | D77: 265.9632 | E77: 32.495 | F77: 36.912 | G77: 38.1078 | H77: 6070.986 | I77: 1.917 | J77: 1.686385 | L77: =Test!B283 -> 265.9632 | M77: =Test!C283 -> 32.495 | N77: =Test!D283 -> 36.912 | O77: =Test!E283 -> 38.1078 | P77: =Test!F283 -> 4165.07 | Q77: =Test!G283 -> 1.85 | R77: 1.156963889 | S77: 0.6860615393 | T77: 0.9650495566
C78: 37 | D78: 130.2728 | E78: 29.6513 | F78: 35.5457 | G78: 36.6667 | H78: 4298.365 | I78: 1.467 | J78: 1.193990278 | L78: =Test!B284 -> 130.2728 | M78: =Test!C284 -> 29.6513 | N78: =Test!D284 -> 35.5457 | O78: =Test!E284 -> 36.6667 | P78: =Test!F284 -> 2907.32 | Q78: =Test!G284 -> 1.31 | R78: 0.8075888889 | S78: 0.6763781112 | T78: 0.8929788684
A79: ClassE | B79: FourPeople | C79: 22 | D79: 1964.7992 | E79: 42.9861 | F79: 46.9086 | G79: 48.2379 | H79: 52906.728 | I79: 26.769 | J79: 14.69631333 | L79: =Test!B285 -> 1964.7992 | M79: =Test!C285 -> 42.9861 | N79: =Test!D285 -> 46.9086 | O79: =Test!E285 -> 48.2379 | P79: =Test!F285 -> 46856.38 | Q79: =Test!G285 -> 19.74 | R79: 13.01566111 | S79: 0.8856412364 | T79: 0.7374201502 | V79: =bdrate($D79:$D82,E79:E82,$L79:$L82,M79:M82) -> 0 | W79: =bdrate($D79:$D82,F79:F82,$L79:$L82,N79:N82) -> 0 | X79: =bdrate($D79:$D82,G79:G82,$L79:$L82,O79:O82) -> 0 | Y79: =bdrateOld($D79:$D82,E79:E82,$L79:$L82,M79:M82) -> 0 | Z79: =bdrateOld($D79:$D82,F79:F82,$L79:$L82,N79:N82) -> 0 | AA79: =bdrateOld($D79:$D82,G79:G82,$L79:$L82,O79:O82) -> 0
A80: 720p | C80: 27 | D80: 732.3496 | E80: 40.6568 | F80: 44.9228 | G80: 46.2822 | H80: 35282.39 | I80: 19.179 | J80: 9.800663889 | L80: =Test!B286 -> 732.3496 | M80: =Test!C286 -> 40.6568 | N80: =Test!D286 -> 44.9228 | O80: =Test!E286 -> 46.2822 | P80: =Test!F286 -> 28119.43 | Q80: =Test!G286 -> 14.19 | R80: 7.810952778 | S80: 0.7969820072 | T80: 0.7398717347
C81: 32 | D81: 364.8152 | E81: 38.0976 | F81: 43.3037 | G81: 44.6243 | H81: 28032.556 | I81: 16.057 | J81: 7.786821111 | L81: =Test!B287 -> 364.8152 | M81: =Test!C287 -> 38.0976 | N81: =Test!D287 -> 43.3037 | O81: =Test!E287 -> 44.6243 | P81: =Test!F287 -> 19138.44 | Q81: =Test!G287 -> 10.12 | R81: 5.316233333 | S81: 0.6827219038 | T81: 0.6302547176
C82: 37 | D82: 194.0888 | E82: 35.2657 | F82: 42.0433 | G82: 43.1267 | H82: 20268.775 | I82: 14.028 | J82: 5.630215278 | L82: =Test!B288 -> 194.0888 | M82: =Test!C288 -> 35.2657 | N82: =Test!D288 -> 42.0433 | O82: =Test!E288 -> 43.1267 | P82: =Test!F288 -> 13897.53 | Q82: =Test!G288 -> 9.88 | R82: 3.860425 | S82: 0.685662059 | T82: 0.7043056744
B83: Johnny | C83: 22 | D83: 1361.1776 | E83: 43.3303 | F83: 48.5359 | G83: 49.1624 | H83: 47688.786 | I83: 23.566 | J83: 13.246885 | L83: =Test!B289 -> 1361.1776 | M83: =Test!C289 -> 43.3303 | N83: =Test!D289 -> 48.5359 | O83: =Test!E289 -> 49.1624 | P83: =Test!F289 -> 42413.26 | Q83: =Test!G289 -> 17.01 | R83: 11.78146111 | S83: 0.8893759636 | T83: 0.721802597 | V83: =bdrate($D83:$D86,E83:E86,$L83:$L86,M83:M86) -> 0 | W83: =bdrate($D83:$D86,F83:F86,$L83:$L86,N83:N86) -> 0 | X83: =bdrate($D83:$D86,G83:G86,$L83:$L86,O83:O86) -> 0 | Y83: =bdrateOld($D83:$D86,E83:E86,$L83:$L86,M83:M86) -> 0 | Z83: =bdrateOld($D83:$D86,F83:F86,$L83:$L86,N83:N86) -> 0 | AA83: =bdrateOld($D83:$D86,G83:G86,$L83:$L86,O83:O86) -> 0
C84: 27 | D84: 342.0912 | E84: 41.5407 | F84: 46.9206 | G84: 47.5626 | H84: 29254.436 | I84: 17.764 | J84: 8.126232222 | L84: =Test!B290 -> 342.0912 | M84: =Test!C290 -> 41.5407 | N84: =Test!D290 -> 46.9206 | O84: =Test!E290 -> 47.5626 | P84: =Test!F290 -> 21630.64 | Q84: =Test!G290 -> 11.39 | R84: 6.008511111 | S84: 0.7393969243 | T84: 0.6411844179
C85: 32 | D85: 152.964 | E85: 39.5544 | F85: 45.3691 | G85: 46.0701 | H85: 20568.027 | I85: 15.286 | J85: 5.713340833 | L85: =Test!B291 -> 152.964 | M85: =Test!C291 -> 39.5544 | N85: =Test!D291 -> 45.3691 | O85: =Test!E291 -> 46.0701 | P85: =Test!F291 -> 13971.12 | Q85: =Test!G291 -> 10.63 | R85: 3.880866667 | S85: 0.6792639858 | T85: 0.6954075625
C86: 37 | D86: 82.1576 | E86: 37.2003 | F86: 44.0479 | G86: 44.7016 | H86: 13182.209 | I86: 13.628 | J86: 3.661724722 | L86: =Test!B292 -> 82.1576 | M86: =Test!C292 -> 37.2003 | N86: =Test!D292 -> 44.0479 | O86: =Test!E292 -> 44.7016 | P86: =Test!F292 -> 8926.59 | Q86: =Test!G292 -> 9.71 | R86: 2.479608333 | S86: 0.6771695093 | T86: 0.7125036689
B87: KristenAndSara | C87: 22 | D87: 1775.2872 | E87: 43.6401 | F87: 47.7213 | G87: 48.7063 | H87: 57151.185 | I87: 26.296 | J87: 15.87532917 | L87: =Test!B293 -> 1775.2872 | M87: =Test!C293 -> 43.6401 | N87: =Test!D293 -> 47.7213 | O87: =Test!E293 -> 48.7063 | P87: =Test!F293 -> 50948.17 | Q87: =Test!G293 -> 18.97 | R87: 14.15226944 | S87: 0.8914630554 | T87: 0.7214024947 | V87: =bdrate($D87:$D90,E87:E90,$L87:$L90,M87:M90) -> 0 | W87: =bdrate($D87:$D90,F87:F90,$L87:$L90,N87:N90) -> 0 | X87: =bdrate($D87:$D90,G87:G90,$L87:$L90,O87:O90) -> 0 | Y87: =bdrateOld($D87:$D90,E87:E90,$L87:$L90,M87:M90) -> 0 | Z87: =bdrateOld($D87:$D90,F87:F90,$L87:$L90,N87:N90) -> 0 | AA87: =bdrateOld($D87:$D90,G87:G90,$L87:$L90,O87:O90) -> 0
C88: 27 | D88: 585.6824 | E88: 41.5625 | F88: 45.8351 | G88: 46.8736 | H88: 36108.5 | I88: 19.877 | J88: 10.03013889 | L88: =Test!B294 -> 585.6824 | M88: =Test!C294 -> 41.5625 | N88: =Test!D294 -> 45.8351 | O88: =Test!E294 -> 46.8736 | P88: =Test!F294 -> 28927.32 | Q88: =Test!G294 -> 13.34 | R88: 8.035366667 | S88: 0.8011221734 | T88: 0.6711274337
C89: 32 | D89: 261.968 | E89: 39.2941 | F89: 44.165 | G89: 45.265 | H89: 25903.097 | I89: 17.173 | J89: 7.195304722 | L89: =Test!B295 -> 261.968 | M89: =Test!C295 -> 39.2941 | N89: =Test!D295 -> 44.165 | O89: =Test!E295 -> 45.265 | P89: =Test!F295 -> 18571.05 | Q89: =Test!G295 -> 12.4 | R89: 5.158625 | S89: 0.7169432288 | T89: 0.7220637047
C90: 37 | D90: 136.3712 | E90: 36.705 | F90: 42.8415 | G90: 44.0009 | H90: 18112.443 | I90: 15.196 | J90: 5.031234167 | L90: =Test!B296 -> 136.3712 | M90: =Test!C296 -> 36.705 | N90: =Test!D296 -> 42.8415 | O90: =Test!E296 -> 44.0009 | P90: =Test!F296 -> 11916.74 | Q90: =Test!G296 -> 9.65 | R90: 3.310205556 | S90: 0.657931125 | T90: 0.6350355357
A91: ClassF | B91: BasketballDrillText | C91: 22 | D91: 3208.9224 | E91: 40.7284 | F91: 43.2456 | G91: 43.9374 | H91: 47496.228 | I91: 14.836 | J91: =H91/3600 -> 13.19339667 | L91: =Test!B297 -> 3208.9224 | M91: =Test!C297 -> 40.7284 | N91: =Test!D297 -> 43.2456 | O91: =Test!E297 -> 43.9374 | P91: =Test!F297 -> 42062.73 | Q91: =Test!G297 -> 14.25 | R91: =P91/3600 -> 11.68409167 | S91: =P91/H91 -> 0.885601484 | T91: =Q91/I91 -> 0.9605014829 | V91: =bdrate($D91:$D94,E91:E94,$L91:$L94,M91:M94) -> 0 | W91: =bdrate($D91:$D94,F91:F94,$L91:$L94,N91:N94) -> 0 | X91: =bdrate($D91:$D94,G91:G94,$L91:$L94,O91:O94) -> 0 | Y91: =bdrateOld($D91:$D94,E91:E94,$L91:$L94,M91:M94) -> 0 | Z91: =bdrateOld($D91:$D94,F91:F94,$L91:$L94,N91:N94) -> 0 | AA91: =bdrateOld($D91:$D94,G91:G94,$L91:$L94,O91:O94) -> 0
C92: 27 | D92: 1477.0688 | E92: 37.401 | F92: 40.4671 | G92: 40.9464 | H92: 38654.284 | I92: 11.401 | J92: 10.73730111 | L92: =Test!B298 -> 1477.0688 | M92: =Test!C298 -> 37.401 | N92: =Test!D298 -> 40.4671 | O92: =Test!E298 -> 40.9464 | P92: =Test!F298 -> 31977.64 | Q92: =Test!G298 -> 10.7 | R92: 8.882677778 | S92: 0.827272858 | T92: 0.9385141654
C93: 32 | D93: 743.196 | E93: 34.5228 | F93: 38.4749 | G93: 38.8616 | H93: 30786.056 | I93: 9.155 | J93: 8.551682222 | L93: =Test!B299 -> 743.196 | M93: =Test!C299 -> 34.5228 | N93: =Test!D299 -> 38.4749 | O93: =Test!E299 -> 38.8616 | P93: =Test!F299 -> 23633.35 | Q93: =Test!G299 -> 8.48 | R93: 6.564819444 | S93: 0.7676641009 | T93: 0.9262697979
C94: 37 | D94: 399.204 | E94: 31.9072 | F94: 36.816 | G94: 37.0865 | H94: 23605.383 | I94: 7.708 | J94: 6.557050833 | L94: =Test!B300 -> 399.204 | M94: =Test!C300 -> 31.9072 | N94: =Test!D300 -> 36.816 | O94: =Test!E300 -> 37.0865 | P94: =Test!F300 -> 16035.68 | Q94: =Test!G300 -> 6.28 | R94: 4.454355556 | S94: 0.6793230171 | T94: 0.8147379346
B95: ArenaOfValor | C95: 22 | D95: 13106.7416 | E95: 42.4257 | F95: 44.308 | G95: 45.0088 | H95: 165313.861 | I95: 94.105 | J95: 45.92051694 | L95: =Test!B301 -> 13106.7416 | M95: =Test!C301 -> 42.4257 | N95: =Test!D301 -> 44.308 | O95: =Test!E301 -> 45.0088 | P95: =Test!F301 -> 143475.12 | Q95: =Test!G301 -> 80.57 | R95: 39.8542 | S95: 0.8678952819 | T95: 0.856171298 | V95: =bdrate($D95:$D98,E95:E98,$L95:$L98,M95:M98) -> 0 | W95: =bdrate($D95:$D98,F95:F98,$L95:$L98,N95:N98) -> 0 | X95: =bdrate($D95:$D98,G95:G98,$L95:$L98,O95:O98) -> 0 | Y95: =bdrateOld($D95:$D98,E95:E98,$L95:$L98,M95:M98) -> 0 | Z95: =bdrateOld($D95:$D98,F95:F98,$L95:$L98,N95:N98) -> 0 | AA95: =bdrateOld($D95:$D98,G95:G98,$L95:$L98,O95:O98) -> 0
C96: 27 | D96: 5509.3312 | E96: 38.9722 | F96: 41.5827 | G96: 42.0786 | H96: 126133.155 | I96: 69.767 | J96: 35.0369875 | L96: =Test!B302 -> 5509.3312 | M96: =Test!C302 -> 38.9722 | N96: =Test!D302 -> 41.5827 | O96: =Test!E302 -> 42.0786 | P96: =Test!F302 -> 112307.23 | Q96: =Test!G302 -> 55.75 | R96: 31.19645278 | S96: 0.8903862747 | T96: 0.7990883942
C97: 32 | D97: 2571.5152 | E97: 36 | F97: 39.6463 | G97: 39.9958 | H97: 100403.144 | I97: 55.649 | J97: 27.88976222 | L97: =Test!B303 -> 2571.5152 | M97: =Test!C303 -> 36 | N97: =Test!D303 -> 39.6463 | O97: =Test!E303 -> 39.9958 | P97: =Test!F303 -> 82980.27 | Q97: =Test!G303 -> 44.37 | R97: 23.050075 | S97: 0.8264708324 | T97: 0.7973189096
C98: 37 | D98: 1282.8696 | E98: 33.3042 | F98: 38.0635 | G98: 38.2844 | H98: 79458.959 | I98: 46.05 | J98: 22.07193306 | L98: =Test!B304 -> 1282.8696 | M98: =Test!C304 -> 33.3042 | N98: =Test!D304 -> 38.0635 | O98: =Test!E304 -> 38.2844 | P98: =Test!F304 -> 59376.46 | Q98: =Test!G304 -> 36.21 | R98: 16.49346111 | S98: 0.7472594752 | T98: 0.7863192182
B99: SlideEditing | C99: 22 | D99: 277.7568 | E99: 47.375 | F99: 45.7154 | G99: 45.9886 | H99: 7388.951 | I99: 5.957 | J99: 2.052486389 | L99: =Test!B305 -> 277.7568 | M99: =Test!C305 -> 47.375 | N99: =Test!D305 -> 45.7154 | O99: =Test!E305 -> 45.9886 | P99: =Test!F305 -> 5358.12 | Q99: =Test!G305 -> 3.28 | R99: 1.488366667 | S99: 0.7251530021 | T99: 0.5506127245 | V99: =bdrate($D99:$D102,E99:E102,$L99:$L102,M99:M102) -> 0 | W99: =bdrate($D99:$D102,F99:F102,$L99:$L102,N99:N102) -> 0 | X99: =bdrate($D99:$D102,G99:G102,$L99:$L102,O99:O102) -> 0 | Y99: =bdrateOld($D99:$D102,E99:E102,$L99:$L102,M99:M102) -> 0 | Z99: =bdrateOld($D99:$D102,F99:F102,$L99:$L102,N99:N102) -> 0 | AA99: =bdrateOld($D99:$D102,G99:G102,$L99:$L102,O99:O102) -> 0
C100: 27 | D100: 204.8904 | E100: 43.0803 | F100: 41.6909 | G100: 42.1219 | H100: 6483.043 | I100: 5.944 | J100: 1.800845278 | L100: =Test!B306 -> 204.8904 | M100: =Test!C306 -> 43.0803 | N100: =Test!D306 -> 41.6909 | O100: =Test!E306 -> 42.1219 | P100: =Test!F306 -> 4749.5 | Q100: =Test!G306 -> 3.07 | R100: 1.319305556 | S100: 0.7326035012 | T100: 0.516487214
C101: 32 | D101: 154.292 | E101: 38.4743 | F101: 39.4865 | G101: 40.1001 | H101: 6051.919 | I101: 5.705 | J101: 1.681088611 | L101: =Test!B307 -> 154.292 | M101: =Test!C307 -> 38.4743 | N101: =Test!D307 -> 39.4865 | O101: =Test!E307 -> 40.1001 | P101: =Test!F307 -> 4370.3 | Q101: =Test!G307 -> 3.05 | R101: 1.213972222 | S101: 0.7221345824 | T101: 0.5346187555
C102: 37 | D102: 111.6792 | E102: 33.6332 | F102: 38.3651 | G102: 38.935 | H102: 6005.175 | I102: 5.617 | J102: 1.668104167 | L102: =Test!B308 -> 111.6792 | M102: =Test!C308 -> 33.6332 | N102: =Test!D308 -> 38.3651 | O102: =Test!E308 -> 38.935 | P102: =Test!F308 -> 4141.48 | Q102: =Test!G308 -> 3.01 | R102: 1.150411111 | S102: 0.689651842 | T102: 0.5358732419
B103: SlideShow | C103: 22 | D103: 528.44 | E103: 49.4087 | F103: 53.0249 | G103: 54.0881 | H103: 19340.688 | I103: 15.599 | J103: 5.372413333 | L103: =Test!B309 -> 528.44 | M103: =Test!C309 -> 49.4087 | N103: =Test!D309 -> 53.0249 | O103: =Test!E309 -> 54.0881 | P103: =Test!F309 -> 18556.56 | Q103: =Test!G309 -> 10.75 | R103: 5.1546 | S103: 0.9594570783 | T103: 0.6891467402 | V103: =bdrate($D103:$D106,E103:E106,$L103:$L106,M103:M106) -> 0 | W103: =bdrate($D103:$D106,F103:F106,$L103:$L106,N103:N106) -> 0 | X103: =bdrate($D103:$D106,G103:G106,$L103:$L106,O103:O106) -> 0 | Y103: =bdrateOld($D103:$D106,E103:E106,$L103:$L106,M103:M106) -> 0 | Z103: =bdrateOld($D103:$D106,F103:F106,$L103:$L106,N103:N106) -> 0 | AA103: =bdrateOld($D103:$D106,G103:G106,$L103:$L106,O103:O106) -> 0
C104: 27 | D104: 293.0838 | E104: 45.4232 | F104: 49.7413 | G104: 50.9267 | H104: 16573.026 | I104: 14.986 | J104: 4.603618333 | L104: =Test!B310 -> 293.0838 | M104: =Test!C310 -> 45.4232 | N104: =Test!D310 -> 49.7413 | O104: =Test!E310 -> 50.9267 | P104: =Test!F310 -> 15898.28 | Q104: =Test!G310 -> 11.55 | R104: 4.416188889 | S104: 0.9592864936 | T104: 0.770719338
C105: 32 | D105: 169.3155 | E105: 41.7413 | F105: 47.349 | G105: 48.86 | H105: 13721.935 | I105: 14.09 | J105: 3.811648611 | L105: =Test!B311 -> 169.3155 | M105: =Test!C311 -> 41.7413 | N105: =Test!D311 -> 47.349 | O105: =Test!E311 -> 48.86 | P105: =Test!F311 -> 12467.13 | Q105: =Test!G311 -> 9.21 | R105: 3.463091667 | S105: 0.9085548066 | T105: 0.6536550745
C106: 37 | D106: 104.6198 | E106: 38.0323 | F106: 45.4859 | G106: 47.1662 | H106: 11139.493 | I106: 13.32 | J106: 3.094303611 | L106: =Test!B312 -> 104.6198 | M106: =Test!C312 -> 38.0323 | N106: =Test!D312 -> 45.4859 | O106: =Test!E312 -> 47.1662 | P106: =Test!F312 -> 10009.02 | Q106: =Test!G312 -> 9.85 | R106: 2.780283333 | S106: 0.898516656 | T106: 0.7394894895
B107: Class A1
B108: Class A2
B109: Class B | I109: =GEOMEAN(I27:I46) -> 69.66384891 | J109: =GEOMEAN(J27:J46) -> 38.28947372 | Q109: =GEOMEAN(Q27:Q46) -> 59.06700496 | R109: =GEOMEAN(R27:R46) -> 33.71942491 | S109: =GEOMEAN(S27:S46) -> 0.8806447736 | T109: =GEOMEAN(T27:T46) -> 0.8478860397 | V109: =AVERAGE(V27:V46) -> 0 | W109: 0 | X109: 0 | Y109: 0 | Z109: 0 | AA109: 0
B110: Class C | I110: =GEOMEAN(I47:I62) -> 11.24459586 | J110: =GEOMEAN(J47:J62) -> 8.344350741 | Q110: =GEOMEAN(Q47:Q62) -> 10.3807759 | R110: =GEOMEAN(R47:R62) -> 6.835942771 | S110: =GEOMEAN(S47:S62) -> 0.8192300376 | T110: =GEOMEAN(T47:T62) -> 0.9231791017 | V110: =AVERAGE(V47:V62) -> 0 | W110: 0 | X110: 0 | Y110: 0 | Z110: 0 | AA110: 0
B111: Class D | I111: =GEOMEAN(I63:I78) -> 3.048108669 | J111: =GEOMEAN(J63:J78) -> 2.09977128 | Q111: =GEOMEAN(Q63:Q78) -> 2.829280644 | R111: =GEOMEAN(R63:R78) -> 1.578377405 | S111: =GEOMEAN(S63:S78) -> 0.7516901581 | T111: =GEOMEAN(T63:T78) -> 0.9282085883 | V111: =AVERAGE(V63:V78) -> 0 | W111: 0 | X111: 0 | Y111: 0 | Z111: 0 | AA111: 0
B112: Class E | I112: =GEOMEAN(I79:I90) -> 18.26167346 | J112: =GEOMEAN(J79:J90) -> 8.118456046 | Q112: =GEOMEAN(Q79:Q90) -> 12.66052284 | R112: =GEOMEAN(R79:R90) -> 6.119871852 | S112: =GEOMEAN(S79:S90) -> 0.7538221329 | T112: =GEOMEAN(T79:T90) -> 0.6932838257 | V112: =AVERAGE(V79:V88) -> 0 | W112: 0 | X112: 0 | Y112: 0 | Z112: 0 | AA112: 0
B113: Class F | I113: =GEOMEAN(I91:I106) -> 15.39898548 | J113: =GEOMEAN(J91:J106) -> 6.855223143 | Q113: =GEOMEAN(Q91:Q106) -> 11.19672339 | R113: =GEOMEAN(R91:R106) -> 5.571555023 | S113: =GEOMEAN(S91:S106) -> 0.8127459758 | T113: =GEOMEAN(T91:T106) -> 0.7271078611 | V113: =AVERAGE(V91:V106) -> 0 | W113: 0 | X113: 0 | Y113: 0 | Z113: 0 | AA113: 0
B114: All | I114: =GEOMEAN(I3:I62,I79:I90) -> 27.14060582 | J114: =GEOMEAN(J3:J62,J79:J90) -> 15.63563871 | Q114: =GEOMEAN(Q3:Q62,Q79:Q90) -> 22.51212949 | R114: =GEOMEAN(R3:R62,R79:R90) -> 12.92910476 | S114: =GEOMEAN(S3:S62,S79:S90) -> 0.8268996876 | T114: =GEOMEAN(T3:T62,T79:T90) -> 0.8294630429 | V114: =AVERAGE(V3:V62,V79:V90) -> 0 | W114: 0 | X114: 0 | Y114: 0 | Z114: 0 | AA114: 0
B115: Time geomean | I115: =GEOMEAN(I3:I106) -> 15.64862681 | J115: =GEOMEAN(J3:J106) -> 8.873768476 | Q115: =GEOMEAN(Q3:Q106) -> 12.93014343 | R115: =GEOMEAN(R3:R106) -> 7.174283404
B116: Time ratio | Q116: =Q115/I115 -> 0.8262797489 | R116: =R115/J115 -> 0.8084821486
B117: Time sum (hours)

Sheet LDP-10
D1: Reference | L1: Tested | V1: BD-rate (piecewise cubic) | Y1: BD-rate (cubic)
C2: QPISlice | D2: kbps | E2: Y psnr | F2: U psnr | G2: V psnr | H2: Enc T [s] | I2: Dec T [s] | J2: Enc T [h] | L2: kbps | M2: Y psnr | N2: U psnr | O2: V psnr | P2: Enc T [s] | Q2: Dec T [s] | R2: Enc T [h] | S2: Enc | T2: Dec | V2: Y | W2: U | X2: V | Y2: Y | Z2: U | AA2: V
A3: Class A1 | B3: Tango2 | C3: 22
A4: 4K | C4: 27
C5: 32
C6: 37
B7: FoodMarket4 | C7: 22
C8: 27
C9: 32
C10: 37
B11: Campfire | C11: 22
C12: 27
C13: 32
C14: 37
A15: Class A2 | B15: CatRobot1 | C15: 22
A16: 4K | C16: 27
C17: 32
C18: 37
B19: DaylightRoad2 | C19: 22
C20: 27
C21: 32
C22: 37
B23: ParkRunning3 | C23: 22
C24: 27
C25: 32
C26: 37
A27: Class B | B27: MarketPlace | C27: 22 | S27: =P27/H27 ->  | T27: =Q27/I27 ->  | V27: =bdrate($D27:$D30,E27:E30,$L27:$L30,M27:M30) ->  | W27: =bdrate($D27:$D30,F27:F30,$L27:$L30,N27:N30) ->  | X27: =bdrate($D27:$D30,G27:G30,$L27:$L30,O27:O30) ->  | Y27: =bdrateOld($D27:$D30,E27:E30,$L27:$L30,M27:M30) ->  | Z27: =bdrateOld($D27:$D30,F27:F30,$L27:$L30,N27:N30) ->  | AA27: =bdrateOld($D27:$D30,G27:G30,$L27:$L30,O27:O30) -> 
A28: 1080p | C28: 27
C29: 32
C30: 37
B31: RitualDance | C31: 22 | V31: =bdrate($D31:$D34,E31:E34,$L31:$L34,M31:M34) ->  | W31: =bdrate($D31:$D34,F31:F34,$L31:$L34,N31:N34) ->  | X31: =bdrate($D31:$D34,G31:G34,$L31:$L34,O31:O34) ->  | Y31: =bdrateOld($D31:$D34,E31:E34,$L31:$L34,M31:M34) ->  | Z31: =bdrateOld($D31:$D34,F31:F34,$L31:$L34,N31:N34) ->  | AA31: =bdrateOld($D31:$D34,G31:G34,$L31:$L34,O31:O34) -> 
C32: 27
C33: 32
C34: 37
B35: Cactus | C35: 22 | V35: =bdrate($D35:$D38,E35:E38,$L35:$L38,M35:M38) ->  | W35: =bdrate($D35:$D38,F35:F38,$L35:$L38,N35:N38) ->  | X35: =bdrate($D35:$D38,G35:G38,$L35:$L38,O35:O38) ->  | Y35: =bdrateOld($D35:$D38,E35:E38,$L35:$L38,M35:M38) ->  | Z35: =bdrateOld($D35:$D38,F35:F38,$L35:$L38,N35:N38) ->  | AA35: =bdrateOld($D35:$D38,G35:G38,$L35:$L38,O35:O38) -> 
C36: 27
C37: 32
C38: 37
B39: BasketballDrive | C39: 22 | V39: =bdrate($D39:$D42,E39:E42,$L39:$L42,M39:M42) ->  | W39: =bdrate($D39:$D42,F39:F42,$L39:$L42,N39:N42) ->  | X39: =bdrate($D39:$D42,G39:G42,$L39:$L42,O39:O42) ->  | Y39: =bdrateOld($D39:$D42,E39:E42,$L39:$L42,M39:M42) ->  | Z39: =bdrateOld($D39:$D42,F39:F42,$L39:$L42,N39:N42) ->  | AA39: =bdrateOld($D39:$D42,G39:G42,$L39:$L42,O39:O42) -> 
C40: 27
C41: 32
C42: 37
B43: BQTerrace | C43: 22 | V43: =bdrate($D43:$D46,E43:E46,$L43:$L46,M43:M46) ->  | W43: =bdrate($D43:$D46,F43:F46,$L43:$L46,N43:N46) ->  | X43: =bdrate($D43:$D46,G43:G46,$L43:$L46,O43:O46) ->  | Y43: =bdrateOld($D43:$D46,E43:E46,$L43:$L46,M43:M46) ->  | Z43: =bdrateOld($D43:$D46,F43:F46,$L43:$L46,N43:N46) ->  | AA43: =bdrateOld($D43:$D46,G43:G46,$L43:$L46,O43:O46) -> 
C44: 27
C45: 32
C46: 37
A47: Class C | B47: BasketballDrill | C47: 22 | V47: =bdrate($D47:$D50,E47:E50,$L47:$L50,M47:M50) ->  | W47: =bdrate($D47:$D50,F47:F50,$L47:$L50,N47:N50) ->  | X47: =bdrate($D47:$D50,G47:G50,$L47:$L50,O47:O50) ->  | Y47: =bdrateOld($D47:$D50,E47:E50,$L47:$L50,M47:M50) ->  | Z47: =bdrateOld($D47:$D50,F47:F50,$L47:$L50,N47:N50) ->  | AA47: =bdrateOld($D47:$D50,G47:G50,$L47:$L50,O47:O50) -> 
A48: WVGA | C48: 27
C49: 32
C50: 37
B51: BQMall | C51: 22 | V51: =bdrate($D51:$D54,E51:E54,$L51:$L54,M51:M54) ->  | W51: =bdrate($D51:$D54,F51:F54,$L51:$L54,N51:N54) ->  | X51: =bdrate($D51:$D54,G51:G54,$L51:$L54,O51:O54) ->  | Y51: =bdrateOld($D51:$D54,E51:E54,$L51:$L54,M51:M54) ->  | Z51: =bdrateOld($D51:$D54,F51:F54,$L51:$L54,N51:N54) ->  | AA51: =bdrateOld($D51:$D54,G51:G54,$L51:$L54,O51:O54) -> 
C52: 27
C53: 32
C54: 37
B55: PartyScene | C55: 22 | V55: =bdrate($D55:$D58,E55:E58,$L55:$L58,M55:M58) ->  | W55: =bdrate($D55:$D58,F55:F58,$L55:$L58,N55:N58) ->  | X55: =bdrate($D55:$D58,G55:G58,$L55:$L58,O55:O58) ->  | Y55: =bdrateOld($D55:$D58,E55:E58,$L55:$L58,M55:M58) ->  | Z55: =bdrateOld($D55:$D58,F55:F58,$L55:$L58,N55:N58) ->  | AA55: =bdrateOld($D55:$D58,G55:G58,$L55:$L58,O55:O58) -> 
C56: 27
C57: 32
C58: 37
B59: RaceHorses | C59: 22 | S59: =P59/H59 ->  | T59: =Q59/I59 ->  | V59: =bdrate($D59:$D62,E59:E62,$L59:$L62,M59:M62) ->  | W59: =bdrate($D59:$D62,F59:F62,$L59:$L62,N59:N62) ->  | X59: =bdrate($D59:$D62,G59:G62,$L59:$L62,O59:O62) ->  | Y59: =bdrateOld($D59:$D62,E59:E62,$L59:$L62,M59:M62) ->  | Z59: =bdrateOld($D59:$D62,F59:F62,$L59:$L62,N59:N62) ->  | AA59: =bdrateOld($D59:$D62,G59:G62,$L59:$L62,O59:O62) -> 
C60: 27
C61: 32
C62: 37
A63: Class D | B63: BasketballPass | C63: =C59 -> 22 | V63: =bdrate($D63:$D66,E63:E66,$L63:$L66,M63:M66) ->  | W63: =bdrate($D63:$D66,F63:F66,$L63:$L66,N63:N66) ->  | X63: =bdrate($D63:$D66,G63:G66,$L63:$L66,O63:O66) ->  | Y63: =bdrateOld($D63:$D66,E63:E66,$L63:$L66,M63:M66) ->  | Z63: =bdrateOld($D63:$D66,F63:F66,$L63:$L66,N63:N66) ->  | AA63: =bdrateOld($D63:$D66,G63:G66,$L63:$L66,O63:O66) -> 
A64: WQVGA | C64: =C60 -> 27
C65: =C61 -> 32
C66: =C62 -> 37
B67: BQSquare | C67: 22 | V67: =bdrate($D67:$D70,E67:E70,$L67:$L70,M67:M70) ->  | W67: =bdrate($D67:$D70,F67:F70,$L67:$L70,N67:N70) ->  | X67: =bdrate($D67:$D70,G67:G70,$L67:$L70,O67:O70) ->  | Y67: =bdrateOld($D67:$D70,E67:E70,$L67:$L70,M67:M70) ->  | Z67: =bdrateOld($D67:$D70,F67:F70,$L67:$L70,N67:N70) ->  | AA67: =bdrateOld($D67:$D70,G67:G70,$L67:$L70,O67:O70) -> 
C68: 27
C69: 32
C70: 37
B71: BlowingBubbles | C71: 22 | V71: =bdrate($D71:$D74,E71:E74,$L71:$L74,M71:M74) ->  | W71: =bdrate($D71:$D74,F71:F74,$L71:$L74,N71:N74) ->  | X71: =bdrate($D71:$D74,G71:G74,$L71:$L74,O71:O74) ->  | Y71: =bdrateOld($D71:$D74,E71:E74,$L71:$L74,M71:M74) ->  | Z71: =bdrateOld($D71:$D74,F71:F74,$L71:$L74,N71:N74) ->  | AA71: =bdrateOld($D71:$D74,G71:G74,$L71:$L74,O71:O74) -> 
C72: 27
C73: 32
C74: 37
B75: RaceHorses | C75: 22 | V75: =bdrate($D75:$D78,E75:E78,$L75:$L78,M75:M78) ->  | W75: =bdrate($D75:$D78,F75:F78,$L75:$L78,N75:N78) ->  | X75: =bdrate($D75:$D78,G75:G78,$L75:$L78,O75:O78) ->  | Y75: =bdrateOld($D75:$D78,E75:E78,$L75:$L78,M75:M78) ->  | Z75: =bdrateOld($D75:$D78,F75:F78,$L75:$L78,N75:N78) ->  | AA75: =bdrateOld($D75:$D78,G75:G78,$L75:$L78,O75:O78) -> 
C76: 27
C77: 32
C78: 37
A79: ClassE | B79: FourPeople | C79: 22 | V79: =bdrate($D79:$D82,E79:E82,$L79:$L82,M79:M82) ->  | W79: =bdrate($D79:$D82,F79:F82,$L79:$L82,N79:N82) ->  | X79: =bdrate($D79:$D82,G79:G82,$L79:$L82,O79:O82) ->  | Y79: =bdrateOld($D79:$D82,E79:E82,$L79:$L82,M79:M82) ->  | Z79: =bdrateOld($D79:$D82,F79:F82,$L79:$L82,N79:N82) ->  | AA79: =bdrateOld($D79:$D82,G79:G82,$L79:$L82,O79:O82) -> 
A80: 720p | C80: 27
C81: 32
C82: 37
B83: Johnny | C83: 22 | V83: =bdrate($D83:$D86,E83:E86,$L83:$L86,M83:M86) ->  | W83: =bdrate($D83:$D86,F83:F86,$L83:$L86,N83:N86) ->  | X83: =bdrate($D83:$D86,G83:G86,$L83:$L86,O83:O86) ->  | Y83: =bdrateOld($D83:$D86,E83:E86,$L83:$L86,M83:M86) ->  | Z83: =bdrateOld($D83:$D86,F83:F86,$L83:$L86,N83:N86) ->  | AA83: =bdrateOld($D83:$D86,G83:G86,$L83:$L86,O83:O86) -> 
C84: 27
C85: 32
C86: 37
B87: KristenAndSara | C87: 22 | V87: =bdrate($D87:$D90,E87:E90,$L87:$L90,M87:M90) ->  | W87: =bdrate($D87:$D90,F87:F90,$L87:$L90,N87:N90) ->  | X87: =bdrate($D87:$D90,G87:G90,$L87:$L90,O87:O90) ->  | Y87: =bdrateOld($D87:$D90,E87:E90,$L87:$L90,M87:M90) ->  | Z87: =bdrateOld($D87:$D90,F87:F90,$L87:$L90,N87:N90) ->  | AA87: =bdrateOld($D87:$D90,G87:G90,$L87:$L90,O87:O90) -> 
C88: 27
C89: 32
C90: 37
A91: ClassF | B91: BasketballDrillText | C91: 22 | S91: =P91/H91 ->  | T91: =Q91/I91 ->  | V91: =bdrate($D91:$D94,E91:E94,$L91:$L94,M91:M94) ->  | W91: =bdrate($D91:$D94,F91:F94,$L91:$L94,N91:N94) ->  | X91: =bdrate($D91:$D94,G91:G94,$L91:$L94,O91:O94) ->  | Y91: =bdrateOld($D91:$D94,E91:E94,$L91:$L94,M91:M94) ->  | Z91: =bdrateOld($D91:$D94,F91:F94,$L91:$L94,N91:N94) ->  | AA91: =bdrateOld($D91:$D94,G91:G94,$L91:$L94,O91:O94) -> 
C92: 27
C93: 32
C94: 37
B95: ArenaOfValor | C95: 22 | V95: =bdrate($D95:$D98,E95:E98,$L95:$L98,M95:M98) ->  | W95: =bdrate($D95:$D98,F95:F98,$L95:$L98,N95:N98) ->  | X95: =bdrate($D95:$D98,G95:G98,$L95:$L98,O95:O98) ->  | Y95: =bdrateOld($D95:$D98,E95:E98,$L95:$L98,M95:M98) ->  | Z95: =bdrateOld($D95:$D98,F95:F98,$L95:$L98,N95:N98) ->  | AA95: =bdrateOld($D95:$D98,G95:G98,$L95:$L98,O95:O98) -> 
C96: 27
C97: 32
C98: 37
B99: SlideEditing | C99: 22 | V99: =bdrate($D99:$D102,E99:E102,$L99:$L102,M99:M102) ->  | W99: =bdrate($D99:$D102,F99:F102,$L99:$L102,N99:N102) ->  | X99: =bdrate($D99:$D102,G99:G102,$L99:$L102,O99:O102) ->  | Y99: =bdrateOld($D99:$D102,E99:E102,$L99:$L102,M99:M102) ->  | Z99: =bdrateOld($D99:$D102,F99:F102,$L99:$L102,N99:N102) ->  | AA99: =bdrateOld($D99:$D102,G99:G102,$L99:$L102,O99:O102) -> 
C100: 27
C101: 32
C102: 37
B103: SlideShow | C103: 22 | V103: =bdrate($D103:$D106,E103:E106,$L103:$L106,M103:M106) ->  | W103: =bdrate($D103:$D106,F103:F106,$L103:$L106,N103:N106) ->  | X103: =bdrate($D103:$D106,G103:G106,$L103:$L106,O103:O106) ->  | Y103: =bdrateOld($D103:$D106,E103:E106,$L103:$L106,M103:M106) ->  | Z103: =bdrateOld($D103:$D106,F103:F106,$L103:$L106,N103:N106) ->  | AA103: =bdrateOld($D103:$D106,G103:G106,$L103:$L106,O103:O106) -> 
C104: 27
C105: 32
C106: 37
B107: Class A1
B108: Class A2
B109: Class B | I109: =GEOMEAN(I27:I46) ->  | J109: =GEOMEAN(J27:J46) ->  | Q109: =GEOMEAN(Q27:Q46) ->  | R109: =GEOMEAN(R27:R46) ->  | S109: =GEOMEAN(S27:S46) ->  | T109: =GEOMEAN(T27:T46) ->  | V109: =AVERAGE(V27:V46) -> 
B110: Class C | I110: =GEOMEAN(I47:I62) ->  | J110: =GEOMEAN(J47:J62) ->  | Q110: =GEOMEAN(Q47:Q62) ->  | R110: =GEOMEAN(R47:R62) ->  | S110: =GEOMEAN(S47:S62) ->  | T110: =GEOMEAN(T47:T62) ->  | V110: =AVERAGE(V47:V62) -> 
B111: Class D | I111: =GEOMEAN(I63:I78) ->  | J111: =GEOMEAN(J63:J78) ->  | Q111: =GEOMEAN(Q63:Q78) ->  | R111: =GEOMEAN(R63:R78) ->  | S111: =GEOMEAN(S63:S78) ->  | T111: =GEOMEAN(T63:T78) ->  | V111: =AVERAGE(V63:V78) -> 
B112: Class E | I112: =GEOMEAN(I79:I90) ->  | J112: =GEOMEAN(J79:J90) ->  | Q112: =GEOMEAN(Q79:Q90) ->  | R112: =GEOMEAN(R79:R90) ->  | S112: =GEOMEAN(S79:S90) ->  | T112: =GEOMEAN(T79:T90) ->  | V112: =AVERAGE(V79:V88) -> 
B113: Class F | I113: =GEOMEAN(I91:I106) ->  | J113: =GEOMEAN(J91:J106) ->  | Q113: =GEOMEAN(Q91:Q106) ->  | R113: =GEOMEAN(R91:R106) ->  | S113: =GEOMEAN(S91:S106) ->  | T113: =GEOMEAN(T91:T106) ->  | V113: =AVERAGE(V91:V106) -> 
B114: All | I114: =GEOMEAN(I3:I62,I79:I90) ->  | J114: =GEOMEAN(J3:J62,J79:J90) ->  | Q114: =GEOMEAN(Q3:Q62,Q79:Q90) ->  | R114: =GEOMEAN(R3:R62,R79:R90) ->  | S114: =GEOMEAN(S3:S62,S79:S90) ->  | T114: =GEOMEAN(T3:T62,T79:T90) ->  | V114: =AVERAGE(V3:V62,V79:V90) -> 
B115: Time geomean | I115: =GEOMEAN(I3:I106) ->  | J115: =GEOMEAN(J3:J106) ->  | Q115: =GEOMEAN(Q3:Q106) ->  | R115: =GEOMEAN(R3:R106) -> 
B116: Time ratio | Q116: =Q115/I115 ->  | R116: =R115/J115 -> 
B117: Time sum (hours)

Sheet Reference
A1: Tango2.Q22.jvet10.ai | B1: 18734.2849 | C1: 41.7504 | D1: 49.5141 | E1: 48.3278 | F1: 80159.51016 | G1: 38.03815103
A2: Tango2.Q27.jvet10.ai | B2: 5694.5968 | C2: 40.2346 | D2: 48.5022 | E2: 46.6777 | F2: 30129.66498 | G2: 29.61646986
A3: Tango2.Q32.jvet10.ai | B3: 3175.6281 | C3: 39.4131 | D3: 47.487 | E3: 45.2483 | F3: 10711.83292 | G3: 26.24941015
A4: Tango2.Q37.jvet10.ai | B4: 1899.9357 | C4: 38.2333 | D4: 46.5347 | E4: 43.9207 | F4: 3919.276525 | G4: 23.31941605
A5: FoodMarket4.Q22.jvet10.ai | B5: 15381.6963 | C5: 45.1702 | D5: 49.7019 | E5: 50.4424 | F5: 47660.12707 | G5: 35.58294487
A6: FoodMarket4.Q27.jvet10.ai | B6: 8792.9116 | C6: 43.6987 | D6: 47.544 | E6: 48.1554 | F6: 21997.81072 | G6: 32.28324413
A7: FoodMarket4.Q32.jvet10.ai | B7: 5274.5842 | C7: 41.9171 | D7: 45.7921 | E7: 46.2409 | F7: 12643.68904 | G7: 29.37312794
A8: FoodMarket4.Q37.jvet10.ai | B8: 3151.6247 | C8: 39.6988 | D8: 44.4241 | E8: 44.7102 | F8: 6275.61888 | G8: 26.5791769
A9: CampfireParty2.Q22.jvet10.ai | B9: 21433.4534 | C9: 43.2345 | D9: 45.8826 | E9: 43.7233 | F9: 76637.37574 | G9: 44.60972691
A10: CampfireParty2.Q27.jvet10.ai | B10: 8938.6421 | C10: 39.6225 | D10: 42.035 | E10: 41.6678 | F10: 48328.97089 | G10: 37.39942217
A11: CampfireParty2.Q32.jvet10.ai | B11: 3254.1324 | C11: 37.3117 | D11: 39.4068 | E11: 40.3153 | F11: 25369.25316 | G11: 29.29669786
A12: CampfireParty2.Q37.jvet10.ai | B12: 1754.0724 | C12: 35.9405 | D12: 37.4623 | E12: 39.148 | F12: 10590.21921 | G12: 24.97166896
A13: CatRobot1.Q22.jvet10.ai | B13: 33948.9095 | C13: 42.4214 | D13: 42.5176 | E13: 44.1224 | F13: 84388.51066 | G13: 45.86507082
A14: CatRobot1.Q27.jvet10.ai | B14: 11565.1611 | C14: 39.8947 | D14: 41.3994 | E14: 42.4639 | F14: 44972.54738 | G14: 34.70249319
A15: CatRobot1.Q32.jvet10.ai | B15: 6680.7158 | C15: 38.5294 | D15: 40.6264 | E15: 41.0536 | F15: 21731.8436 | G15: 30.3400588
A16: CatRobot1.Q37.jvet10.ai | B16: 3988.9547 | C16: 36.6649 | D16: 39.892 | E16: 39.8219 | F16: 11191.5998 | G16: 27.02551198
A17: DaylightRoad2.Q22.jvet10.ai | B17: 63003.8068 | C17: 41.3789 | D17: 46.072 | E17: 44.0644 | F17: 122274.5224 | G17: 53.5556469
A18: DaylightRoad2.Q27.jvet10.ai | B18: 11925.5479 | C18: 37.7711 | D18: 44.8282 | E18: 42.436 | F18: 59474.52205 | G18: 34.01060796
A19: DaylightRoad2.Q32.jvet10.ai | B19: 6401.3511 | C19: 36.7349 | D19: 43.7565 | E19: 41.133 | F19: 25884.17401 | G19: 28.56803703
A20: DaylightRoad2.Q37.jvet10.ai | B20: 3567.0742 | C20: 35.2874 | D20: 42.8582 | E20: 40.1389 | F20: 11773.13178 | G20: 25.39067578
A21: ParkRunning3.Q22.jvet10.ai | B21: 49550.3368 | C21: 46.4268 | D21: 40.7047 | E21: 41.1366 | F21: 80971.94338 | G21: 52.52223897
A22: ParkRunning3.Q27.jvet10.ai | B22: 28034.2711 | C22: 42.5371 | D22: 36.966 | E22: 37.8367 | F22: 55489.56327 | G22: 45.38450098
A23: ParkRunning3.Q32.jvet10.ai | B23: 15577.6908 | C23: 38.8292 | D23: 34.4277 | E23: 35.5568 | F23: 38483.64345 | G23: 40.38883996
A24: ParkRunning3.Q37.jvet10.ai | B24: 8485.6895 | C24: 35.3975 | D24: 32.6973 | E24: 34.0192 | F24: 23192.81824 | G24: 36.69025302
A25: MarketPlace.Q22.jvet10.ai | B25: 10306.888 | C25: 42.879 | D25: 45.1089 | E25: 45.7274 | F25: 44176.61161 | G25: 22.91495991
A26: MarketPlace.Q27.jvet10.ai | B26: 5548.4936 | C26: 40.2168 | D26: 42.9644 | E26: 43.9036 | F26: 25731.55679 | G26: 19.25449991
A27: MarketPlace.Q32.jvet10.ai | B27: 3102.4984 | C27: 37.7302 | D27: 41.451 | E27: 42.4373 | F27: 15605.99692 | G27: 16.93289495
A28: MarketPlace.Q37.jvet10.ai | B28: 1655.348 | C28: 35.1298 | D28: 40.3714 | E28: 41.3265 | F28: 8632.20838 | G28: 14.66378117
A29: RitualDance.Q22.jvet10.ai | B29: 6021.116 | C29: 46.0084 | D29: 48.1328 | E29: 49.3903 | F29: 25891.96377 | G29: 20.30461192
A30: RitualDance.Q27.jvet10.ai | B30: 3491.2248 | C30: 43.0982 | D30: 45.702 | E30: 46.7883 | F30: 16014.62393 | G30: 17.37590909
A31: RitualDance.Q32.jvet10.ai | B31: 1966.9168 | C31: 40.0936 | D31: 43.8992 | E31: 44.7766 | F31: 10455.21577 | G31: 14.88681412
A32: RitualDance.Q37.jvet10.ai | B32: 1075.8936 | C32: 37.1081 | D32: 42.6363 | E32: 43.2223 | F32: 5573.03611 | G32: 12.78682017
A33: Cactus.Q22.jvet10.ai | B33: 12587.8706 | C33: 41.1128 | D33: 41.6838 | E33: 44.306 | F33: 49702.40163 | G33: 23.86297488
A34: Cactus.Q27.jvet10.ai | B34: 5499.8302 | C34: 38.2367 | D34: 39.5717 | E34: 42.3116 | F34: 30299.097 | G34: 18.46358204
A35: Cactus.Q32.jvet10.ai | B35: 2973.9357 | C35: 36.0887 | D35: 38.6244 | E35: 40.7285 | F35: 17520.25896 | G35: 16.61254001
A36: Cactus.Q37.jvet10.ai | B36: 1605.2413 | C36: 33.7067 | D36: 37.8466 | E36: 39.5206 | F36: 9658.9792 | G36: 12.54616284
A37: BasketballDrive.Q22.jvet10.ai | B37: 7977.9325 | C37: 41.4197 | D37: 44.6341 | E37: 46.5164 | F37: 39806.23579 | G37: 19.75651503
A38: BasketballDrive.Q27.jvet10.ai | B38: 3270.3746 | C38: 39.005 | D38: 43.3038 | E38: 44.4871 | F38: 22933.14205 | G38: 15.50089717
A39: BasketballDrive.Q32.jvet10.ai | B39: 1676.2429 | C39: 37.3054 | D39: 42.1067 | E39: 42.7131 | F39: 11347.38628 | G39: 12.87041712
A40: BasketballDrive.Q37.jvet10.ai | B40: 935.3976 | C40: 35.4336 | D40: 41.0989 | E40: 41.2865 | F40: 5408.529674 | G40: 11.06635404
A41: BQTerrace.Q22.jvet10.ai | B41: 21304.6168 | C41: 42.4057 | D41: 42.7989 | E41: 44.6294 | F41: 34670.0302 | G41: 30.97537613
A42: BQTerrace.Q27.jvet10.ai | B42: 9138.8096 | C42: 37.3234 | D42: 41.0145 | E42: 43.2689 | F42: 39085.83277 | G42: 21.42215991
A43: BQTerrace.Q32.jvet10.ai | B43: 4591.1808 | C43: 34.8448 | D43: 39.7012 | E43: 42.2444 | F43: 25144.21816 | G43: 17.55127096
A44: BQTerrace.Q37.jvet10.ai | B44: 2443.4624 | C44: 32.4903 | D44: 38.7741 | E44: 41.484 | F44: 14945.13106 | G44: 14.98052692
A45: BasketballDrill.Q22.jvet10.ai | B45: 2317.0143 | C45: 42.3587 | D45: 43.9455 | E45: 44.7414 | F45: 7192.415001 | G45: 5.123277187
A46: BasketballDrill.Q27.jvet10.ai | B46: 1241.9524 | C46: 38.9459 | D46: 41.443 | E46: 41.9934 | F46: 5475.320802 | G46: 3.878580809
A47: BasketballDrill.Q32.jvet10.ai | B47: 668.7087 | C47: 35.9748 | D47: 39.6528 | E47: 40.0186 | F47: 3696.896314 | G47: 3.105048895
A48: BasketballDrill.Q37.jvet10.ai | B48: 369.5302 | C48: 33.2761 | D48: 38.2087 | E48: 38.3133 | F48: 2067.713334 | G48: 2.624248981
A49: BQMall.Q22.jvet10.ai | B49: 2630.6624 | C49: 42.2906 | D49: 44.2958 | E49: 45.9599 | F49: 9513.979714 | G49: 5.340505123
A50: BQMall.Q27.jvet10.ai | B50: 1577.0888 | C50: 39.4694 | D50: 42.1243 | E50: 43.5088 | F50: 6437.254202 | G50: 4.366348028
A51: BQMall.Q32.jvet10.ai | B51: 928.5408 | C51: 36.4679 | D51: 40.4384 | E51: 41.6109 | F51: 4671.657486 | G51: 3.646430016
A52: BQMall.Q37.jvet10.ai | B52: 527.5032 | C52: 33.3916 | D52: 39.1283 | E52: 40.1042 | F52: 3079.317453 | G52: 3.151884079
A53: PartyScene.Q22.jvet10.ai | B53: 5093.046 | C53: 41.4403 | D53: 42.6377 | E53: 43.7117 | F53: 9868.815563 | G53: 6.821883917
A54: PartyScene.Q27.jvet10.ai | B54: 3155.1548 | C54: 37.1982 | D54: 39.7127 | E54: 40.591 | F54: 8163.743766 | G54: 5.238855124
A55: PartyScene.Q32.jvet10.ai | B55: 1887.5071 | C55: 33.4471 | D55: 37.7639 | E55: 38.4716 | F55: 6585.305301 | G55: 4.321533918
A56: PartyScene.Q37.jvet10.ai | B56: 1012.6833 | C56: 29.7581 | D56: 36.3499 | E56: 36.9592 | F56: 5073.830085 | G56: 3.453068018
A57: RaceHorsesC.Q22.jvet10.ai | B57: 1734.8068 | C57: 42.7422 | D57: 43.5257 | E57: 44.3733 | F57: 4941.005162 | G57: 2.945420027
A58: RaceHorsesC.Q27.jvet10.ai | B58: 1040.8721 | C58: 39.3687 | D58: 40.2648 | E58: 41.7253 | F58: 3553.187514 | G58: 2.363755941
A59: RaceHorsesC.Q32.jvet10.ai | B59: 600.0695 | C59: 36.001 | D59: 38.0417 | E59: 39.9885 | F59: 2610.900537 | G59: 2.186689854
A60: RaceHorsesC.Q37.jvet10.ai | B60: 305.0518 | C60: 32.5678 | D60: 36.6956 | E60: 38.664 | F60: 1729.446534 | G60: 1.877492189
A61: BasketballPass.Q22.jvet10.ai | B61: 597.3317 | C61: 43.5326 | D61: 45.4882 | E61: 45.2799 | F61: 1931.745989 | G61: 1.238085032
A62: BasketballPass.Q27.jvet10.ai | B62: 358.1143 | C62: 39.9182 | D62: 42.6076 | E62: 42.0952 | F62: 1451.315707 | G62: 0.9912719727
A63: BasketballPass.Q32.jvet10.ai | B63: 207.2722 | C63: 36.5131 | D63: 40.4653 | E63: 39.6807 | F63: 1044.393087 | G63: 0.8411390781
A64: BasketballPass.Q37.jvet10.ai | B64: 115.7579 | C64: 33.3152 | D64: 38.7786 | E64: 37.8445 | F64: 656.2390392 | G64: 0.7217719555
A65: BQSquare.Q22.jvet10.ai | B65: 1543.788 | C65: 41.5949 | D65: 43.4391 | E65: 44.5757 | F65: 2817.059693 | G65: 1.89288497
A66: BQSquare.Q27.jvet10.ai | B66: 988.4896 | C66: 37.22 | D66: 40.7422 | E66: 42.0251 | F66: 2285.72946 | G66: 1.473535776
A67: BQSquare.Q32.jvet10.ai | B67: 610.3112 | C67: 33.416 | D67: 39.2677 | E67: 40.3731 | F67: 1712.414789 | G67: 1.194941044
A68: BQSquare.Q37.jvet10.ai | B68: 360.5872 | C68: 29.8526 | D68: 38.3451 | E68: 39.1837 | F68: 1285.110343 | G68: 0.9957520962
A69: BlowingBubbles.Q22.jvet10.ai | B69: 1332.6937 | C69: 41.4141 | D69: 42.2105 | E69: 43.0571 | F69: 2628.326602 | G69: 1.7666049
A70: BlowingBubbles.Q27.jvet10.ai | B70: 827.0143 | C70: 37.1413 | D70: 39.2869 | E70: 39.8851 | F70: 2196.776151 | G70: 1.434128046
A71: BlowingBubbles.Q32.jvet10.ai | B71: 472.5484 | C71: 33.18 | D71: 37.1989 | E71: 37.635 | F71: 1825.343181 | G71: 1.148977041
A72: BlowingBubbles.Q37.jvet10.ai | B72: 240.1889 | C72: 29.5728 | D72: 35.6785 | E72: 36.0705 | F72: 1345.454717 | G72: 0.892362833
A73: RaceHorses.Q22.jvet10.ai | B73: 513.855 | C73: 43.0811 | D73: 43.1052 | E73: 44.0399 | F73: 1324.965425 | G73: 0.8856770992
A74: RaceHorses.Q27.jvet10.ai | B74: 312.5676 | C74: 39.0539 | D74: 39.8506 | E74: 41.208 | F74: 1035.328265 | G74: 0.6935040951
A75: RaceHorses.Q32.jvet10.ai | B75: 174.2732 | C75: 35.1635 | D75: 37.8258 | E75: 39.0655 | F75: 800.3000338 | G75: 0.6026370525
A76: RaceHorses.Q37.jvet10.ai | B76: 86.4861 | C76: 31.6771 | D76: 36.2987 | E76: 37.3444 | F76: 525.218821 | G76: 0.4800710678
A77: FourPeople.Q22.jvet10.ai | B77: 3348.812 | C77: 44.3277 | D77: 47.3168 | E77: 48.5157 | F77: 14267.62542 | G77: 9.02030015
A78: FourPeople.Q27.jvet10.ai | B78: 2057.5472 | C78: 41.8445 | D78: 45.1536 | E78: 46.4169 | F78: 9154.729057 | G78: 7.928584099
A79: FourPeople.Q32.jvet10.ai | B79: 1271.6584 | C79: 39.0288 | D79: 43.4206 | E79: 44.6103 | F79: 6625.438345 | G79: 7.092180014
A80: FourPeople.Q37.jvet10.ai | B80: 768.5736 | C80: 35.8744 | D80: 42.0815 | E80: 43.209 | F80: 4289.324297 | G80: 6.509482861
A81: Johnny.Q22.jvet10.ai | B81: 2257.7768 | C81: 44.4926 | D81: 48.5891 | E81: 49.2968 | F81: 10430.44428 | G81: 7.34188199
A82: Johnny.Q27.jvet10.ai | B82: 1256.7464 | C82: 42.3791 | D82: 46.6783 | E82: 47.4771 | F82: 6414.354882 | G82: 6.784528971
A83: Johnny.Q32.jvet10.ai | B83: 716.232 | C83: 40.0859 | D83: 45.0103 | E83: 45.7274 | F83: 4181.874819 | G83: 5.887334824
A84: Johnny.Q37.jvet10.ai | B84: 411.408 | C84: 37.5071 | D84: 43.5548 | E84: 44.3242 | F84: 2372.73705 | G84: 5.213345051
A85: KristenAndSara.Q22.jvet10.ai | B85: 2470.2008 | C85: 44.8835 | D85: 47.9658 | E85: 48.8829 | F85: 10764.44036 | G85: 7.997483969
A86: KristenAndSara.Q27.jvet10.ai | B86: 1486.0432 | C86: 42.658 | D86: 45.8656 | E86: 46.9567 | F86: 6455.496016 | G86: 7.005017042
A87: KristenAndSara.Q32.jvet10.ai | B87: 899.8984 | C87: 40.0965 | D87: 44.1372 | E87: 45.2239 | F87: 4459.301294 | G87: 6.326797009
A88: KristenAndSara.Q37.jvet10.ai | B88: 545.636 | C88: 37.2498 | D88: 42.7971 | E88: 43.8652 | F88: 2861.9199 | G88: 5.910094976
A89: BasketballDrillText.Q22.jvet10.ai | B89: 2507.873 | C89: 42.5391 | D89: 43.9101 | E89: 44.6422 | F89: 6986.963762 | G89: 5.230220079
A90: BasketballDrillText.Q27.jvet10.ai | B90: 1425.3373 | C90: 39.0515 | D90: 41.1108 | E90: 41.6227 | F90: 5425.634683 | G90: 4.205577135
A91: BasketballDrillText.Q32.jvet10.ai | B91: 823.2127 | C91: 35.9693 | D91: 39.0356 | E91: 39.394 | F91: 3825.827341 | G91: 3.37410903
A92: BasketballDrillText.Q37.jvet10.ai | B92: 483.4087 | C92: 33.0539 | D92: 37.4536 | E92: 37.5981 | F92: 2394.377576 | G92: 2.751262903
A93: ArenaOfValor.Q22.jvet10.ai | B93: 11682.78 | C93: 44.212 | D93: 45.1775 | E93: 45.7884 | F93: 36566.40327 | G93: 29.774019
A94: ArenaOfValor.Q27.jvet10.ai | B94: 6828.1384 | C94: 40.6895 | D94: 42.3462 | E94: 42.7413 | F94: 26751.64936 | G94: 24.17149305
A95: ArenaOfValor.Q32.jvet10.ai | B95: 3920.952 | C95: 37.4305 | D95: 40.1752 | E95: 40.3803 | F95: 19163.54628 | G95: 20.916013
A96: ArenaOfValor.Q37.jvet10.ai | B96: 2222.8424 | C96: 34.3466 | D96: 38.4581 | E96: 38.5605 | F96: 11706.65195 | G96: 17.14934611
A97: SlideEditing.Q22.jvet10.ai | B97: 3692.1245 | C97: 47.0042 | D97: 45.1784 | E97: 45.6853 | F97: 5655.349657 | G97: 6.390034914
A98: SlideEditing.Q27.jvet10.ai | B98: 2801.1316 | C98: 42.5314 | D98: 41.1671 | E98: 42.1565 | F98: 4944.257139 | G98: 5.648736
A99: SlideEditing.Q32.jvet10.ai | B99: 2192.925 | C99: 37.9749 | D99: 39.1935 | E99: 40.3943 | F99: 4347.51593 | G99: 5.024239063
A100: SlideEditing.Q37.jvet10.ai | B100: 1610.2224 | C100: 33.0929 | D100: 38.263 | E100: 39.3778 | F100: 3786.19548 | G100: 4.666903973
A101: SlideShow.Q22.jvet10.ai | B101: 592.5362 | C101: 51.0965 | D101: 54.0254 | E101: 54.9624 | F101: 3973.061458 | G101: 5.449048042
A102: SlideShow.Q27.jvet10.ai | B102: 401.9762 | C102: 47.435 | D102: 50.6969 | E102: 51.815 | F102: 3039.461972 | G102: 4.499622107
A103: SlideShow.Q32.jvet10.ai | B103: 276.1517 | C103: 43.8037 | D103: 48.2918 | E103: 49.6756 | F103: 2471.65938 | G103: 4.403774023
A104: SlideShow.Q37.jvet10.ai | B104: 184.4467 | C104: 39.9721 | D104: 46.4517 | E104: 48.1854 | F104: 1899.127247 | G104: 4.03791213
A105: Tango2.Q22.jvet10.ra | B105: 28292.991 | C105: 40.3251 | D105: 49.1031 | E105: 47.4163 | F105: 427188.6526 | G105: 159.3291419
A106: Tango2.Q27.jvet10.ra | B106: 7652.4245 | C106: 39.5745 | D106: 48.3293 | E106: 46.1914 | F106: 187988.9003 | G106: 112.51299
A107: Tango2.Q32.jvet10.ra | B107: 3804.7461 | C107: 38.632 | D107: 47.5091 | E107: 44.9881 | F107: 114331.7615 | G107: 101.2757812
A108: Tango2.Q37.jvet10.ra | B108: 2087.569 | C108: 37.2085 | D108: 46.6227 | E108: 43.6994 | F108: 73472.01243 | G108: 88.21982002
A109: FoodMarket4.Q22.jvet10.ra | B109: 17684.2496 | C109: 44.1643 | D109: 49.0146 | E109: 49.6403 | F109: 258334.0068 | G109: 143.7464581
A110: FoodMarket4.Q27.jvet10.ra | B110: 7705.2016 | C110: 42.6561 | D110: 47.2488 | E110: 47.6887 | F110: 149822.0389 | G110: 122.4748468
A111: FoodMarket4.Q32.jvet10.ra | B111: 4052.7008 | C111: 40.7288 | D111: 45.7713 | E111: 46.0848 | F111: 97849.00797 | G111: 107.4769421
A112: FoodMarket4.Q37.jvet10.ra | B112: 2147.864 | C112: 38.3533 | D112: 44.3962 | E112: 44.5737 | F112: 63396.1347 | G112: 87.5286572
A113: CampfireParty2.Q22.jvet10.ra | B113: 60918.5104 | C113: 39.502 | D113: 42.232 | E113: 42.5221 | F113: 671247.619 | G113: 224.504261
A114: CampfireParty2.Q27.jvet10.ra | B114: 17735.7808 | C114: 37.5301 | D114: 39.0258 | E114: 40.9978 | F114: 355208.971 | G114: 143.4125781
A115: CampfireParty2.Q32.jvet10.ra | B115: 8978.4536 | C115: 36.408 | D115: 37.384 | E115: 39.8624 | F115: 224975.6749 | G115: 122.744216
A116: CampfireParty2.Q37.jvet10.ra | B116: 4915.584 | C116: 35.0227 | D116: 35.3068 | E116: 38.5437 | F116: 152164.9734 | G116: 97.29352808
A117: CatRobot1.Q22.jvet10.ra | B117: 34204.7056 | C117: 40.3665 | D117: 41.8407 | E117: 43.5176 | F117: 297261.5515 | G117: 151.8807001
A118: CatRobot1.Q27.jvet10.ra | B118: 8940.4368 | C118: 39.3374 | D118: 41.3046 | E118: 42.3498 | F118: 156239.2135 | G118: 108.1203079
A119: CatRobot1.Q32.jvet10.ra | B119: 4375.3984 | C119: 38.047 | D119: 40.7129 | E119: 41.1657 | F119: 98011.70663 | G119: 92.23814201
A120: CatRobot1.Q37.jvet10.ra | B120: 2317.3184 | C120: 36.289 | D120: 40.049 | E120: 39.9505 | F120: 64545.90016 | G120: 82.42071414
A121: DaylightRoad2.Q22.jvet10.ra | B121: 60840.8624 | C121: 38.123 | D121: 45.5979 | E121: 43.3567 | F121: 478899.8106 | G121: 182.8519552
A122: DaylightRoad2.Q27.jvet10.ra | B122: 10729.6256 | C122: 37.1955 | D122: 44.8096 | E122: 42.4037 | F122: 192096.9063 | G122: 130.3712552
A123: DaylightRoad2.Q32.jvet10.ra | B123: 4467.6624 | C123: 36.2407 | D123: 43.984 | E123: 41.4319 | F123: 107292.7883 | G123: 113.1500399
A124: DaylightRoad2.Q37.jvet10.ra | B124: 2241.448 | C124: 34.8481 | D124: 43.0639 | E124: 40.3697 | F124: 69128.02617 | G124: 90.92916489
A125: ParkRunning3.Q22.jvet10.ra | B125: 113116.8707 | C125: 43.0687 | D125: 37.921 | E125: 38.8385 | F125: 441278.903 | G125: 272.9110708
A126: ParkRunning3.Q27.jvet10.ra | B126: 44928.4173 | C126: 39.1105 | D126: 35.0049 | E126: 36.261 | F126: 281228.0713 | G126: 210.3754151
A127: ParkRunning3.Q32.jvet10.ra | B127: 21299.8693 | C127: 35.8707 | D127: 33.2785 | E127: 34.7184 | F127: 192523.5331 | G127: 155.7971671
A128: ParkRunning3.Q37.jvet10.ra | B128: 9512.336 | C128: 32.9431 | D128: 31.7874 | E128: 33.3989 | F128: 135650.0876 | G128: 122.1110799
A129: MarketPlace.Q22.jvet10.ra | B129: 14585.6976 | C129: 40.7799 | D129: 44.2572 | E129: 45.1582 | F129: 165981.6001 | G129: 86.32019687
A130: MarketPlace.Q27.jvet10.ra | B130: 5607.3352 | C130: 38.6569 | D130: 42.7394 | E130: 43.7744 | F130: 91831.8149 | G130: 67.50680804
A131: MarketPlace.Q32.jvet10.ra | B131: 2540.1056 | C131: 36.4546 | D131: 41.5314 | E131: 42.5984 | F131: 62004.88715 | G131: 57.00413585
A132: MarketPlace.Q37.jvet10.ra | B132: 1127.9096 | C132: 34.1348 | D132: 40.4625 | E132: 41.4374 | F132: 41285.62574 | G132: 43.21991897
A133: RitualDance.Q22.jvet10.ra | B133: 9717.1992 | C133: 44.4205 | D133: 47.4784 | E133: 48.4423 | F133: 159742.6962 | G133: 87.73655605
A134: RitualDance.Q27.jvet10.ra | B134: 4798.6808 | C134: 41.2482 | D134: 45.3408 | E134: 46.0535 | F134: 111603.7838 | G134: 67.55159807
A135: RitualDance.Q32.jvet10.ra | B135: 2545.9704 | C135: 38.1852 | D135: 43.821 | E135: 44.3649 | F135: 80454.75047 | G135: 54.98992109
A136: RitualDance.Q37.jvet10.ra | B136: 1326.2744 | C136: 35.2218 | D136: 42.5149 | E136: 42.8612 | F136: 55145.58458 | G136: 45.87211704
A137: Cactus.Q22.jvet10.ra | B137: 15349.5128 | C137: 38.6529 | D137: 40.2139 | E137: 43.9683 | F137: 142346.9447 | G137: 73.31613207
A138: Cactus.Q27.jvet10.ra | B138: 4493.3376 | C138: 37.1087 | D138: 39.3938 | E138: 42.476 | F138: 79570.13759 | G138: 48.80063891
A139: Cactus.Q32.jvet10.ra | B139: 2088.372 | C139: 35.3928 | D139: 38.7591 | E139: 41.1303 | F139: 52544.70756 | G139: 42.13145494
A140: Cactus.Q37.jvet10.ra | B140: 1012.0272 | C140: 33.2726 | D140: 37.9874 | E140: 39.797 | F140: 35070.32781 | G140: 32.21659303
A141: BasketballDrive.Q22.jvet10.ra | B141: 14762.284 | C141: 39.3824 | D141: 44.1854 | E141: 45.6887 | F141: 196462.9817 | G141: 73.38496089
A142: BasketballDrive.Q27.jvet10.ra | B142: 4820.1384 | C142: 37.7174 | D142: 43.0852 | E142: 43.8807 | F142: 109325.7968 | G142: 58.92689204
A143: BasketballDrive.Q32.jvet10.ra | B143: 2281.8336 | C143: 35.9859 | D143: 42.0797 | E143: 42.4168 | F143: 70158.53347 | G143: 48.6400969
A144: BasketballDrive.Q37.jvet10.ra | B144: 1147.3992 | C144: 33.98 | D144: 41.0714 | E144: 40.9164 | F144: 46336.63103 | G144: 45.05028486
A145: BQTerrace.Q22.jvet10.ra | B145: 33072.704 | C145: 37.3861 | D145: 42.5023 | E145: 44.7179 | F145: 152457.9608 | G145: 127.4728129
A146: BQTerrace.Q27.jvet10.ra | B146: 5717.2288 | C146: 35.4132 | D146: 41.4414 | E146: 43.7804 | F146: 61192 | G146: 58.94822192
A147: BQTerrace.Q32.jvet10.ra | B147: 1810.0656 | C147: 34.1041 | D147: 40.3329 | E147: 42.8608 | F147: 36205.0649 | G147: 43.62838101
A148: BQTerrace.Q37.jvet10.ra | B148: 807.508 | C148: 32.5495 | D148: 39.2296 | E148: 41.9411 | F148: 23289.78599 | G148: 32.19422197
A149: BasketballDrill.Q22.jvet10.ra | B149: 2965.6624 | C149: 41.2546 | D149: 43.7213 | E149: 44.5172 | F149: 27727.70688 | G149: 14.63637209
A150: BasketballDrill.Q27.jvet10.ra | B150: 1367.7136 | C150: 38.0256 | D150: 41.5262 | E150: 41.9088 | F150: 20107.68553 | G150: 11.44351506
A151: BasketballDrill.Q32.jvet10.ra | B151: 690.3568 | C151: 35.1171 | D151: 39.7659 | E151: 39.9927 | F151: 14309.26793 | G151: 9.38509202
A152: BasketballDrill.Q37.jvet10.ra | B152: 352.3784 | C152: 32.4844 | D152: 38.1923 | E152: 38.2337 | F152: 9698.263348 | G152: 6.663402081
A153: BQMall.Q22.jvet10.ra | B153: 3020.224 | C153: 40.4668 | D153: 44.0833 | E153: 45.8146 | F153: 25369.71291 | G153: 17.44797111
A154: BQMall.Q27.jvet10.ra | B154: 1357.3872 | C154: 37.9064 | D154: 42.2774 | E154: 43.6299 | F154: 16835.84303 | G154: 12.3682971
A155: BQMall.Q32.jvet10.ra | B155: 682.2744 | C155: 35.2104 | D155: 40.7786 | E155: 41.9016 | F155: 12370.82163 | G155: 9.058146
A156: BQMall.Q37.jvet10.ra | B156: 347.7464 | C156: 32.4429 | D156: 39.3475 | E156: 40.2972 | F156: 9250.179815 | G156: 7.216659784
A157: PartyScene.Q22.jvet10.ra | B157: 5756.3328 | C157: 38.7182 | D157: 42.2118 | E157: 43.4422 | F157: 26119.72762 | G157: 20.22560811
A158: PartyScene.Q27.jvet10.ra | B158: 2541.4936 | C158: 35.2394 | D158: 39.7728 | E158: 40.8478 | F158: 17863.25591 | G158: 13.93459296
A159: PartyScene.Q32.jvet10.ra | B159: 1224.484 | C159: 32.1867 | D159: 38.0212 | E159: 38.9239 | F159: 13167.40074 | G159: 10.96240211
A160: PartyScene.Q37.jvet10.ra | B160: 569.588 | C160: 29.3162 | D160: 36.5101 | E160: 37.2343 | F160: 9464.831672 | G160: 8.062794924
A161: RaceHorsesC.Q22.jvet10.ra | B161: 4316.6984 | C161: 39.3455 | D161: 41.6127 | E161: 43.1567 | F161: 25406.16014 | G161: 13.18235779
A162: RaceHorsesC.Q27.jvet10.ra | B162: 1674.2472 | C162: 35.9276 | D162: 39.4762 | E162: 41.0923 | F162: 16605.06055 | G162: 8.978754044
A163: RaceHorsesC.Q32.jvet10.ra | B163: 797.4688 | C163: 33.2109 | D163: 37.8759 | E163: 39.6303 | F163: 12119.32455 | G163: 7.088829041
A164: RaceHorsesC.Q37.jvet10.ra | B164: 382.5912 | C164: 30.5723 | D164: 36.3933 | E164: 38.2979 | F164: 8481.348511 | G164: 5.433327913
A165: BasketballPass.Q22.jvet10.ra | B165: 1317.8024 | C165: 41.2543 | D165: 44.6204 | E165: 43.7982 | F165: 7783.928809 | G165: 4.726954937
A166: BasketballPass.Q27.jvet10.ra | B166: 626.476 | C166: 37.15 | D166: 42.0659 | E166: 40.8213 | F166: 5793.202657 | G166: 3.617278814
A167: BasketballPass.Q32.jvet10.ra | B167: 316.2568 | C167: 33.8074 | D167: 40.2439 | E167: 38.795 | F167: 4405.321371 | G167: 2.75327301
A168: BasketballPass.Q37.jvet10.ra | B168: 158.424 | C168: 30.8606 | D168: 38.658 | E168: 36.9425 | F168: 3049.623318 | G168: 2.130513191
A169: BQSquare.Q22.jvet10.ra | B169: 1364.2376 | C169: 38.4362 | D169: 44.0445 | E169: 45.3955 | F169: 5870.378222 | G169: 5.808076143
A170: BQSquare.Q27.jvet10.ra | B170: 495.7176 | C170: 35.1494 | D170: 41.8501 | E170: 43.1008 | F170: 3106.383209 | G170: 3.525239944
A171: BQSquare.Q32.jvet10.ra | B171: 223.0168 | C171: 32.3971 | D171: 40.1909 | E171: 41.3974 | F171: 1932.126832 | G171: 2.925413847
A172: BQSquare.Q37.jvet10.ra | B172: 114.456 | C172: 29.8421 | D172: 38.9116 | E172: 39.9654 | F172: 1315.549801 | G172: 2.410827875
A173: BlowingBubbles.Q22.jvet10.ra | B173: 1388.9096 | C173: 38.5115 | D173: 41.9218 | E173: 43.0544 | F173: 5586.894505 | G173: 4.962510109
A174: BlowingBubbles.Q27.jvet10.ra | B174: 618.9976 | C174: 35.1413 | D174: 39.4703 | E174: 40.3598 | F174: 3894.425916 | G174: 3.460068941
A175: BlowingBubbles.Q32.jvet10.ra | B175: 297.1912 | C175: 32.1005 | D175: 37.5694 | E175: 38.3114 | F175: 2795.512767 | G175: 2.479470015
A176: BlowingBubbles.Q37.jvet10.ra | B176: 137.2168 | C176: 29.2178 | D176: 35.9321 | E176: 36.4789 | F176: 1907.795956 | G176: 1.90246582
A177: RaceHorses.Q22.jvet10.ra | B177: 1052.5688 | C177: 39.887 | D177: 42.0083 | E177: 43.0668 | F177: 5481.216921 | G177: 3.488626003
A178: RaceHorses.Q27.jvet10.ra | B178: 497.5208 | C178: 35.9375 | D178: 39.3451 | E178: 40.5155 | F178: 4017.944234 | G178: 2.468374968
A179: RaceHorses.Q32.jvet10.ra | B179: 248.7808 | C179: 32.6287 | D179: 37.514 | E179: 38.7686 | F179: 2909.033527 | G179: 1.902667046
A180: RaceHorses.Q37.jvet10.ra | B180: 120.3696 | C180: 29.7049 | D180: 35.9649 | E180: 37.1116 | F180: 2049.300684 | G180: 1.485481977
A181: FourPeople.Q22.jvet10.ra
A182: FourPeople.Q27.jvet10.ra
A183: FourPeople.Q32.jvet10.ra
A184: FourPeople.Q37.jvet10.ra
A185: Johnny.Q22.jvet10.ra
A186: Johnny.Q27.jvet10.ra
A187: Johnny.Q32.jvet10.ra
A188: Johnny.Q37.jvet10.ra
A189: KristenAndSara.Q22.jvet10.ra
A190: KristenAndSara.Q27.jvet10.ra
A191: KristenAndSara.Q32.jvet10.ra
A192: KristenAndSara.Q37.jvet10.ra
A193: BasketballDrillText.Q22.jvet10.ra | B193: 3057.6224 | C193: 41.394 | D193: 43.716 | E193: 44.4564 | F193: 25970.05969 | G193: 14.59212494
A194: BasketballDrillText.Q27.jvet10.ra | B194: 1445.4152 | C194: 38.0817 | D194: 41.2639 | E194: 41.6545 | F194: 19206.14383 | G194: 11.13119507
A195: BasketballDrillText.Q32.jvet10.ra | B195: 744.548 | C195: 35.074 | D195: 39.2589 | E195: 39.507 | F195: 13869.88923 | G195: 8.385992765
A196: BasketballDrillText.Q37.jvet10.ra | B196: 388.0592 | C196: 32.3256 | D196: 37.4786 | E196: 37.6089 | F196: 9549.351811 | G196: 6.485010862
A197: ArenaOfValor.Q22.jvet10.ra | B197: 11910.952 | C197: 43.0316 | D197: 45.1046 | E197: 45.6944 | F197: 96603.86691 | G197: 82.40424085
A198: ArenaOfValor.Q27.jvet10.ra | B198: 5123.7776 | C198: 39.671 | D198: 42.4925 | E198: 42.8882 | F198: 68538.41205 | G198: 56.87973404
A199: ArenaOfValor.Q32.jvet10.ra | B199: 2502.56 | C199: 36.7765 | D199: 40.5491 | E199: 40.7988 | F199: 51300.12644 | G199: 42.11528802
A200: ArenaOfValor.Q37.jvet10.ra | B200: 1253.0048 | C200: 34.0424 | D200: 38.7353 | E200: 38.8372 | F200: 37432.07236 | G200: 34.54434299
... 216 more rows

Sheet Test
A1: Tango2.Q22.jvet10.ai | B1: 18820.907 | C1: 41.7679 | D1: 49.5514 | E1: 48.4028 | F1: 76856.93 | G1: 36.15
A2: Tango2.Q27.jvet10.ai | B2: 5684.1811 | C2: 40.2397 | D2: 48.5765 | E2: 46.7803 | F2: 29745.36 | G2: 29.17
A3: Tango2.Q32.jvet10.ai | B3: 3168.4557 | C3: 39.4211 | D3: 47.6045 | E3: 45.382 | F3: 10440.88 | G3: 26.83
A4: Tango2.Q37.jvet10.ai | B4: 1895.8362 | C4: 38.2465 | D4: 46.6496 | E4: 44.072 | F4: 3580.06 | G4: 22.12
A5: FoodMarket4.Q22.jvet10.ai | B5: 15410.2058 | C5: 45.178 | D5: 49.7417 | E5: 50.5402 | F5: 45950.05 | G5: 35.64
A6: FoodMarket4.Q27.jvet10.ai | B6: 8790.0205 | C6: 43.7073 | D6: 47.6004 | E6: 48.2752 | F6: 20879.54 | G6: 32.26
A7: FoodMarket4.Q32.jvet10.ai | B7: 5270.7947 | C7: 41.9337 | D7: 45.8508 | E7: 46.3696 | F7: 12210.06 | G7: 29.33
A8: FoodMarket4.Q37.jvet10.ai | B8: 3145.8568 | C8: 39.718 | D8: 44.5018 | E8: 44.8518 | F8: 5895.96 | G8: 26.52
A9: CampfireParty2.Q22.jvet10.ai | B9: 21210.6047 | C9: 43.2538 | D9: 46.0349 | E9: 43.8365 | F9: 78909.74 | G9: 43.62
A10: CampfireParty2.Q27.jvet10.ai | B10: 8885.9471 | C10: 39.6455 | D10: 42.1377 | E10: 41.7802 | F10: 49596.21 | G10: 33.97
A11: CampfireParty2.Q32.jvet10.ai | B11: 3235.5379 | C11: 37.3205 | D11: 39.4883 | E11: 40.4006 | F11: 25873.87 | G11: 27.06
A12: CampfireParty2.Q37.jvet10.ai | B12: 1756.7763 | C12: 35.9553 | D12: 37.55 | E12: 39.2356 | F12: 10695.63 | G12: 22.63
A13: CatRobot1.Q22.jvet10.ai | B13: 33977.6021 | C13: 42.4484 | D13: 42.5371 | E13: 44.1534 | F13: 87328.33 | G13: 43.76
A14: CatRobot1.Q27.jvet10.ai | B14: 11469.3268 | C14: 39.9046 | D14: 41.4359 | E14: 42.5327 | F14: 46382.89 | G14: 35.38
A15: CatRobot1.Q32.jvet10.ai | B15: 6631.2837 | C15: 38.5498 | D15: 40.6857 | E15: 41.1551 | F15: 22884.3 | G15: 29.16
A16: CatRobot1.Q37.jvet10.ai | B16: 3967.2063 | C16: 36.6949 | D16: 39.9736 | E16: 39.9303 | F16: 10920.55 | G16: 25.66
A17: DaylightRoad2.Q22.jvet10.ai | B17: 55938.6395 | C17: 41.4222 | D17: 46.0819 | E17: 44.0774 | F17: 124895.34 | G17: 52.81
A18: DaylightRoad2.Q27.jvet10.ai | B18: 11793.2368 | C18: 37.7776 | D18: 44.8414 | E18: 42.4562 | F18: 61431.24 | G18: 34.37
A19: DaylightRoad2.Q32.jvet10.ai | B19: 6331.4132 | C19: 36.7528 | D19: 43.7716 | E19: 41.151 | F19: 27037.56 | G19: 27.59
A20: DaylightRoad2.Q37.jvet10.ai | B20: 3530.8168 | C20: 35.3146 | D20: 42.881 | E20: 40.1695 | F20: 12092.92 | G20: 24.16
A21: ParkRunning3.Q22.jvet10.ai | B21: 49757.2697 | C21: 46.4333 | D21: 40.7328 | E21: 41.1638 | F21: 81465.86 | G21: 50.43
A22: ParkRunning3.Q27.jvet10.ai | B22: 28126.0553 | C22: 42.5514 | D22: 36.9951 | E22: 37.8605 | F22: 54526.4 | G22: 45.39
A23: ParkRunning3.Q32.jvet10.ai | B23: 15617.6197 | C23: 38.8499 | D23: 34.4547 | E23: 35.5849 | F23: 38594.3 | G23: 40.01
A24: ParkRunning3.Q37.jvet10.ai | B24: 8508.1026 | C24: 35.4208 | D24: 32.7269 | E24: 34.0446 | F24: 22703.73 | G24: 32.49
A25: MarketPlace.Q22.jvet10.ai | B25: 10327.8472 | C25: 42.8938 | D25: 45.161 | E25: 45.8256 | F25: 44335.69 | G25: 22.57
A26: MarketPlace.Q27.jvet10.ai | B26: 5558.3008 | C26: 40.2312 | D26: 43.0298 | E26: 44.0799 | F26: 25528.52 | G26: 18.33
A27: MarketPlace.Q32.jvet10.ai | B27: 3107.5176 | C27: 37.746 | D27: 41.5338 | E27: 42.6659 | F27: 15879.79 | G27: 16.32
A28: MarketPlace.Q37.jvet10.ai | B28: 1655.3312 | C28: 35.1469 | D28: 40.4632 | E28: 41.5169 | F28: 8277.93 | G28: 14.17
A29: RitualDance.Q22.jvet10.ai | B29: 6012.288 | C29: 46.0169 | D29: 48.1923 | E29: 49.5596 | F29: 27094.74 | G29: 20.2
A30: RitualDance.Q27.jvet10.ai | B30: 3485.4736 | C30: 43.1177 | D30: 45.7746 | E30: 46.9941 | F30: 16644.31 | G30: 16.89
A31: RitualDance.Q32.jvet10.ai | B31: 1962.9008 | C31: 40.1166 | D31: 43.9711 | E31: 45.0082 | F31: 11032.08 | G31: 15.24
A32: RitualDance.Q37.jvet10.ai | B32: 1072.9792 | C32: 37.1347 | D32: 42.716 | E32: 43.452 | F32: 5847.1 | G32: 13.35
A33: Cactus.Q22.jvet10.ai | B33: 12570.1659 | C33: 41.1391 | D33: 41.7169 | E33: 44.3419 | F33: 51911.11 | G33: 23
A34: Cactus.Q27.jvet10.ai | B34: 5445.6365 | C34: 38.2434 | D34: 39.5865 | E34: 42.3677 | F34: 32008.11 | G34: 17.52
A35: Cactus.Q32.jvet10.ai | B35: 2937.6754 | C35: 36.103 | D35: 38.6564 | E35: 40.7923 | F35: 18791.32 | G35: 14.93
A36: Cactus.Q37.jvet10.ai | B36: 1584.2333 | C36: 33.7372 | D36: 37.8844 | E36: 39.5925 | F36: 10289.73 | G36: 12.69
A37: BasketballDrive.Q22.jvet10.ai | B37: 7973.1341 | C37: 41.4574 | D37: 44.6626 | E37: 46.5579 | F37: 41679.45 | G37: 19.71
A38: BasketballDrive.Q27.jvet10.ai | B38: 3222.9246 | C38: 39.016 | D38: 43.3483 | E38: 44.5236 | F38: 24837.88 | G38: 15.14
A39: BasketballDrive.Q32.jvet10.ai | B39: 1645.1127 | C39: 37.3272 | D39: 42.1618 | E39: 42.7621 | F39: 12630.36 | G39: 12.86
A40: BasketballDrive.Q37.jvet10.ai | B40: 916.431 | C40: 35.4695 | D40: 41.1715 | E40: 41.3531 | F40: 5987.83 | G40: 10.55
A41: BQTerrace.Q22.jvet10.ai | B41: 21077.556 | C41: 42.44 | D41: 42.8114 | E41: 44.6471 | F41: 41177.32 | G41: 28.19
A42: BQTerrace.Q27.jvet10.ai | B42: 8952.1368 | C42: 37.339 | D42: 41.0477 | E42: 43.291 | F42: 41386.91 | G42: 21.22
A43: BQTerrace.Q32.jvet10.ai | B43: 4418.0624 | C43: 34.8511 | D43: 39.7543 | E43: 42.2766 | F43: 26891.86 | G43: 17.33
A44: BQTerrace.Q37.jvet10.ai | B44: 2327.544 | C44: 32.5192 | D44: 38.8263 | E44: 41.5127 | F44: 15982.49 | G44: 14.01
A45: BasketballDrill.Q22.jvet10.ai | B45: 2215.5175 | C45: 42.3398 | D45: 44.0097 | E45: 44.8098 | F45: 7387.52 | G45: 5.01
A46: BasketballDrill.Q27.jvet10.ai | B46: 1180.3071 | C46: 38.9801 | D46: 41.5228 | E46: 42.0561 | F46: 5647.72 | G46: 3.88
A47: BasketballDrill.Q32.jvet10.ai | B47: 632.9381 | C47: 36.0208 | D47: 39.7723 | E47: 40.1363 | F47: 3983.31 | G47: 3.19
A48: BasketballDrill.Q37.jvet10.ai | B48: 355.4714 | C48: 33.3938 | D48: 38.4021 | E48: 38.4962 | F48: 2255.21 | G48: 2.52
A49: BQMall.Q22.jvet10.ai | B49: 2612.7536 | C49: 42.2969 | D49: 44.351 | E49: 46.0462 | F49: 10146.68 | G49: 5.27
A50: BQMall.Q27.jvet10.ai | B50: 1562.7552 | C50: 39.4789 | D50: 42.1924 | E50: 43.6017 | F50: 7014.13 | G50: 4.19
A51: BQMall.Q32.jvet10.ai | B51: 919.4048 | C51: 36.489 | D51: 40.5105 | E51: 41.7021 | F51: 5107.82 | G51: 3.51
A52: BQMall.Q37.jvet10.ai | B52: 523.2344 | C52: 33.4255 | D52: 39.2061 | E52: 40.2209 | F52: 3352.19 | G52: 2.92
A53: PartyScene.Q22.jvet10.ai | B53: 5079.5452 | C53: 41.4589 | D53: 42.7063 | E53: 43.8102 | F53: 10274.3 | G53: 6.72
A54: PartyScene.Q27.jvet10.ai | B54: 3147.0071 | C54: 37.2103 | D54: 39.8054 | E54: 40.7483 | F54: 8748.31 | G54: 5.43
A55: PartyScene.Q32.jvet10.ai | B55: 1877.7317 | C55: 33.4612 | D55: 37.8716 | E55: 38.6196 | F55: 7043.59 | G55: 4.53
A56: PartyScene.Q37.jvet10.ai | B56: 1007.4087 | C56: 29.7888 | D56: 36.4576 | E56: 37.0898 | F56: 5456.7 | G56: 3.48
A57: RaceHorsesC.Q22.jvet10.ai | B57: 1734.3111 | C57: 42.7537 | D57: 43.5657 | E57: 44.411 | F57: 5142.27 | G57: 2.74
A58: RaceHorsesC.Q27.jvet10.ai | B58: 1037.0289 | C58: 39.3747 | D58: 40.3069 | E58: 41.7636 | F58: 3780.65 | G58: 2.31
A59: RaceHorsesC.Q32.jvet10.ai | B59: 594.9079 | C59: 36.0179 | D59: 38.1001 | E59: 40.0492 | F59: 2815.56 | G59: 1.92
A60: RaceHorsesC.Q37.jvet10.ai | B60: 301.6208 | C60: 32.5966 | D60: 36.7519 | E60: 38.7448 | F60: 1882.1 | G60: 1.69
A61: BasketballPass.Q22.jvet10.ai | B61: 592.219 | C61: 43.5382 | D61: 45.5765 | E61: 45.3866 | F61: 2027.68 | G61: 1.15
A62: BasketballPass.Q27.jvet10.ai | B62: 354.5063 | C62: 39.9369 | D62: 42.748 | E62: 42.2074 | F62: 1555.67 | G62: 0.95
A63: BasketballPass.Q32.jvet10.ai | B63: 205.1222 | C63: 36.552 | D63: 40.5535 | E63: 39.8215 | F63: 1153.67 | G63: 0.83
A64: BasketballPass.Q37.jvet10.ai | B64: 114.5048 | C64: 33.3567 | D64: 38.8428 | E64: 38.0043 | F64: 728.76 | G64: 0.63
A65: BQSquare.Q22.jvet10.ai | B65: 1526.3632 | C65: 41.6132 | D65: 43.5006 | E65: 44.6278 | F65: 2869.35 | G65: 1.84
A66: BQSquare.Q27.jvet10.ai | B66: 977.5768 | C66: 37.2399 | D66: 40.8261 | E66: 42.0965 | F66: 2353.58 | G66: 1.44
A67: BQSquare.Q32.jvet10.ai | B67: 601.1336 | C67: 33.4257 | D67: 39.3038 | E67: 40.4401 | F67: 1831.71 | G67: 1.11
A68: BQSquare.Q37.jvet10.ai | B68: 354.3584 | C68: 29.8709 | D68: 38.3658 | E68: 39.2872 | F68: 1379.65 | G68: 0.91
A69: BlowingBubbles.Q22.jvet10.ai | B69: 1330.3341 | C69: 41.429 | D69: 42.2938 | E69: 43.1455 | F69: 2778.8 | G69: 1.77
A70: BlowingBubbles.Q27.jvet10.ai | B70: 823.5381 | C70: 37.1457 | D70: 39.3577 | E70: 39.9905 | F70: 2354.34 | G70: 1.38
A71: BlowingBubbles.Q32.jvet10.ai | B71: 469.1722 | C71: 33.1934 | D71: 37.2669 | E71: 37.7484 | F71: 1952.52 | G71: 1.05
A72: BlowingBubbles.Q37.jvet10.ai | B72: 238.596 | C72: 29.5964 | D72: 35.773 | E72: 36.1863 | F72: 1480.09 | G72: 0.83
A73: RaceHorses.Q22.jvet10.ai | B73: 512.0747 | C73: 43.0855 | D73: 43.1704 | E73: 44.0906 | F73: 1392.77 | G73: 0.78
A74: RaceHorses.Q27.jvet10.ai | B74: 310.1874 | C74: 39.0599 | D74: 39.9393 | E74: 41.2927 | F74: 1096.66 | G74: 0.65
A75: RaceHorses.Q32.jvet10.ai | B75: 172.5497 | C75: 35.1823 | D75: 37.9015 | E75: 39.184 | F75: 856.11 | G75: 0.55
A76: RaceHorses.Q37.jvet10.ai | B76: 85.8916 | C76: 31.7061 | D76: 36.4042 | E76: 37.5035 | F76: 573.09 | G76: 0.43
A77: FourPeople.Q22.jvet10.ai | B77: 3322.6416 | C77: 44.3293 | D77: 47.3252 | E77: 48.5384 | F77: 15351.85 | G77: 9.14
A78: FourPeople.Q27.jvet10.ai | B78: 2035.9256 | C78: 41.8582 | D78: 45.1662 | E78: 46.4707 | F78: 9926.41 | G78: 7.44
A79: FourPeople.Q32.jvet10.ai | B79: 1256.9304 | C79: 39.0511 | D79: 43.4369 | E79: 44.6693 | F79: 7028.48 | G79: 6.9
A80: FourPeople.Q37.jvet10.ai | B80: 761.248 | C80: 35.9124 | D80: 42.1391 | E80: 43.3085 | F80: 4416 | G80: 5.89
A81: Johnny.Q22.jvet10.ai | B81: 2228.4224 | C81: 44.5001 | D81: 48.5907 | E81: 49.3031 | F81: 11656.1 | G81: 7.25
A82: Johnny.Q27.jvet10.ai | B82: 1228.7032 | C82: 42.371 | D82: 46.6849 | E82: 47.497 | F82: 7229.75 | G82: 6.02
A83: Johnny.Q32.jvet10.ai | B83: 698.444 | C83: 40.0964 | D83: 45.0113 | E83: 45.7696 | F83: 4650.07 | G83: 5.33
A84: Johnny.Q37.jvet10.ai | B84: 402.2064 | C84: 37.5306 | D84: 43.5868 | E84: 44.331 | F84: 2610.68 | G84: 5.17
A85: KristenAndSara.Q22.jvet10.ai | B85: 2438.8104 | C85: 44.8799 | D85: 47.9749 | E85: 48.9044 | F85: 11654.36 | G85: 7.72
A86: KristenAndSara.Q27.jvet10.ai | B86: 1461.368 | C86: 42.6674 | D86: 45.8992 | E86: 46.9976 | F86: 7070.34 | G86: 6.6
A87: KristenAndSara.Q32.jvet10.ai | B87: 884.488 | C87: 40.125 | D87: 44.1719 | E87: 45.3053 | F87: 4807.88 | G87: 5.92
A88: KristenAndSara.Q37.jvet10.ai | B88: 536.8392 | C88: 37.3014 | D88: 42.8005 | E88: 43.9256 | F88: 3065.66 | G88: 5.19
A89: BasketballDrillText.Q22.jvet10.ai | B89: 2414.5079 | C89: 42.525 | D89: 43.9606 | E89: 44.7236 | F89: 7214.65 | G89: 5.12
A90: BasketballDrillText.Q27.jvet10.ai | B90: 1367.431 | C90: 39.0773 | D90: 41.1981 | E90: 41.7367 | F90: 5685.12 | G90: 4.08
A91: BasketballDrillText.Q32.jvet10.ai | B91: 787.696 | C91: 36.0072 | D91: 39.1622 | E91: 39.5687 | F91: 4153.07 | G91: 3.15
A92: BasketballDrillText.Q37.jvet10.ai | B92: 467.2452 | C92: 33.1479 | D92: 37.6162 | E92: 37.7986 | F92: 2655.73 | G92: 2.64
A93: ArenaOfValor.Q22.jvet10.ai | B93: 11635.8392 | C93: 44.2225 | D93: 45.2701 | E93: 45.8924 | F93: 39013.49 | G93: 29.94
A94: ArenaOfValor.Q27.jvet10.ai | B94: 6795.5568 | C94: 40.7059 | D94: 42.4519 | E94: 42.8516 | F94: 28633.03 | G94: 26.29
A95: ArenaOfValor.Q32.jvet10.ai | B95: 3899.4504 | C95: 37.4547 | D95: 40.2842 | E95: 40.5 | F95: 20835.52 | G95: 19.8
A96: ArenaOfValor.Q37.jvet10.ai | B96: 2215.3808 | C96: 34.3823 | D96: 38.5783 | E96: 38.6768 | F96: 12779.18 | G96: 16.83
A97: SlideEditing.Q22.jvet10.ai | B97: 3707.8721 | C97: 47.0052 | D97: 45.2598 | E97: 45.7532 | F97: 5837.5 | G97: 6.25
A98: SlideEditing.Q27.jvet10.ai | B98: 2789.4324 | C98: 42.4817 | D98: 41.2524 | E98: 42.2197 | F98: 5192.4 | G98: 5.64
A99: SlideEditing.Q32.jvet10.ai | B99: 2166.6971 | C99: 37.9278 | D99: 39.2615 | E99: 40.4995 | F99: 4605.53 | G99: 4.85
A100: SlideEditing.Q37.jvet10.ai | B100: 1628.9005 | C100: 33.1488 | D100: 38.3204 | E100: 39.5667 | F100: 3991.7 | G100: 4.34
A101: SlideShow.Q22.jvet10.ai | B101: 584.7479 | C101: 51.0749 | D101: 54.1238 | E101: 55.1389 | F101: 4316.75 | G101: 4.54
A102: SlideShow.Q27.jvet10.ai | B102: 394.7819 | C102: 47.4224 | D102: 50.8763 | E102: 52.0884 | F102: 3204.2 | G102: 4.12
A103: SlideShow.Q32.jvet10.ai | B103: 270.3156 | C103: 43.8166 | D103: 48.4291 | E103: 50.0752 | F103: 2544.87 | G103: 3.74
A104: SlideShow.Q37.jvet10.ai | B104: 180.8451 | C104: 40.0125 | D104: 46.5441 | E104: 48.4458 | F104: 2019.04 | G104: 3.46
A105: Tango2.Q22.jvet10.ra | B105: 27806.1878 | C105: 40.3415 | D105: 49.1552 | E105: 47.4719 | F105: 601457.09 | G105: 169.65
A106: Tango2.Q27.jvet10.ra | B106: 7407.6294 | C106: 39.6038 | D106: 48.3895 | E106: 46.2763 | F106: 263434.89 | G106: 117.55
A107: Tango2.Q32.jvet10.ra | B107: 3684.0229 | C107: 38.6865 | D107: 47.5823 | E107: 45.0952 | F107: 156520.41 | G107: 110.63
A108: Tango2.Q37.jvet10.ra | B108: 2034.7167 | C108: 37.2892 | D108: 46.6999 | E108: 43.8198 | F108: 91125.01 | G108: 90.64
A109: FoodMarket4.Q22.jvet10.ra | B109: 17147.6672 | C109: 44.1993 | D109: 49.0545 | E109: 49.7029 | F109: 390123.55 | G109: 154.44
A110: FoodMarket4.Q27.jvet10.ra | B110: 7449.8688 | C110: 42.708 | D110: 47.2959 | E110: 47.7775 | F110: 220923.28 | G110: 132.83
A111: FoodMarket4.Q32.jvet10.ra | B111: 3922.0944 | C111: 40.7981 | D111: 45.8214 | E111: 46.1793 | F111: 135325.91 | G111: 111.95
A112: FoodMarket4.Q37.jvet10.ra | B112: 2092.9536 | C112: 38.4519 | D112: 44.4686 | E112: 44.6915 | F112: 81802.07 | G112: 99
A113: CampfireParty2.Q22.jvet10.ra | B113: 59923.084 | C113: 39.5299 | D113: 42.1988 | E113: 42.5934 | F113: 867394.95 | G113: 235.67
A114: CampfireParty2.Q27.jvet10.ra | B114: 17556.428 | C114: 37.5567 | D114: 39.0469 | E114: 41.084 | F114: 470197.14 | G114: 150.81
A115: CampfireParty2.Q32.jvet10.ra | B115: 8964.8088 | C115: 36.4395 | D115: 37.4173 | E115: 39.9537 | F115: 307992.89 | G115: 124.7
A116: CampfireParty2.Q37.jvet10.ra | B116: 4925.3 | C116: 35.0609 | D116: 35.3386 | E116: 38.6392 | F116: 204626.56 | G116: 106.05
A117: CatRobot1.Q22.jvet10.ra | B117: 33305.7264 | C117: 40.3939 | D117: 41.8516 | E117: 43.534 | F117: 447204.18 | G117: 144.11
A118: CatRobot1.Q27.jvet10.ra | B118: 8628.5424 | C118: 39.3813 | D118: 41.3267 | E118: 42.3845 | F118: 229737.09 | G118: 109.48
A119: CatRobot1.Q32.jvet10.ra | B119: 4239.68 | C119: 38.1147 | D119: 40.7467 | E119: 41.2192 | F119: 150618.71 | G119: 92.16
A120: CatRobot1.Q37.jvet10.ra | B120: 2272.5792 | C120: 36.3785 | D120: 40.0926 | E120: 40.0308 | F120: 94918.72 | G120: 79.94
A121: DaylightRoad2.Q22.jvet10.ra | B121: 56872.3984 | C121: 38.152 | D121: 45.6238 | E121: 43.3807 | F121: 651421.59 | G121: 183.42
A122: DaylightRoad2.Q27.jvet10.ra | B122: 10305.6368 | C122: 37.2317 | D122: 44.8377 | E122: 42.4239 | F122: 285546.59 | G122: 121.41
A123: DaylightRoad2.Q32.jvet10.ra | B123: 4254.8448 | C123: 36.2963 | D123: 44.0084 | E123: 41.4521 | F123: 164449.84 | G123: 95.45
A124: DaylightRoad2.Q37.jvet10.ra | B124: 2155.2512 | C124: 34.9324 | D124: 43.0754 | E124: 40.3991 | F124: 98802.66 | G124: 76.76
A125: ParkRunning3.Q22.jvet10.ra | B125: 110968.1053 | C125: 43.1166 | D125: 37.9415 | E125: 38.8622 | F125: 625300.87 | G125: 218.79
A126: ParkRunning3.Q27.jvet10.ra | B126: 43737.8027 | C126: 39.1835 | D126: 35.0354 | E126: 36.2963 | F126: 398598.15 | G126: 194.4
A127: ParkRunning3.Q32.jvet10.ra | B127: 20674.2547 | C127: 35.9657 | D127: 33.3115 | E127: 34.7599 | F127: 280573.94 | G127: 159.22
A128: ParkRunning3.Q37.jvet10.ra | B128: 9256.9 | C128: 33.0554 | D128: 31.8307 | E128: 33.4437 | F128: 195539.05 | G128: 131.17
A129: MarketPlace.Q22.jvet10.ra | B129: 14159.456 | C129: 40.8191 | D129: 44.2949 | E129: 45.2219 | F129: 234940.25 | G129: 89.16
A130: MarketPlace.Q27.jvet10.ra | B130: 5420.2752 | C130: 38.7174 | D130: 42.8012 | E130: 43.9171 | F130: 134199.08 | G130: 62.81
A131: MarketPlace.Q32.jvet10.ra | B131: 2459.876 | C131: 36.532 | D131: 41.6253 | E131: 42.7378 | F131: 91657.85 | G131: 51.19
A132: MarketPlace.Q37.jvet10.ra | B132: 1102.2248 | C132: 34.2293 | D132: 40.5368 | E132: 41.6128 | F132: 59250.44 | G132: 43.69
A133: RitualDance.Q22.jvet10.ra | B133: 9364.996 | C133: 44.4964 | D133: 47.5364 | E133: 48.5792 | F133: 213912.37 | G133: 80.14
A134: RitualDance.Q27.jvet10.ra | B134: 4629.2864 | C134: 41.3472 | D134: 45.4177 | E134: 46.2344 | F134: 149551.05 | G134: 70.01
A135: RitualDance.Q32.jvet10.ra | B135: 2466.5192 | C135: 38.2955 | D135: 43.9146 | E135: 44.546 | F135: 106713.17 | G135: 58.33
A136: RitualDance.Q37.jvet10.ra | B136: 1292.2984 | C136: 35.3376 | D136: 42.6255 | E136: 43.0372 | F136: 70851.78 | G136: 48.25
A137: Cactus.Q22.jvet10.ra | B137: 14682.1352 | C137: 38.6771 | D137: 40.2232 | E137: 43.9841 | F137: 207142.76 | G137: 77.27
A138: Cactus.Q27.jvet10.ra | B138: 4349.7816 | C138: 37.1543 | D138: 39.3992 | E138: 42.4842 | F138: 115437.94 | G138: 48.46
A139: Cactus.Q32.jvet10.ra | B139: 2027.7448 | C139: 35.4702 | D139: 38.7701 | E139: 41.1482 | F139: 78721.55 | G139: 37.93
A140: Cactus.Q37.jvet10.ra | B140: 989.0544 | C140: 33.3704 | D140: 38.0105 | E140: 39.8598 | F140: 51929.21 | G140: 33.76
A141: BasketballDrive.Q22.jvet10.ra | B141: 14299.208 | C141: 39.4207 | D141: 44.2265 | E141: 45.7426 | F141: 255219.63 | G141: 77.73
A142: BasketballDrive.Q27.jvet10.ra | B142: 4625.1928 | C142: 37.7766 | D142: 43.1285 | E142: 43.9372 | F142: 154037.03 | G142: 60.46
A143: BasketballDrive.Q32.jvet10.ra | B143: 2185.7328 | C143: 36.0704 | D143: 42.1333 | E143: 42.4742 | F143: 101327.44 | G143: 48.97
A144: BasketballDrive.Q37.jvet10.ra | B144: 1102.9456 | C144: 34.0869 | D144: 41.1292 | E144: 40.9816 | F144: 63694.38 | G144: 43.12
A145: BQTerrace.Q22.jvet10.ra | B145: 32127.4208 | C145: 37.4193 | D145: 42.509 | E145: 44.7329 | F145: 242847.26 | G145: 126.28
A146: BQTerrace.Q27.jvet10.ra | B146: 5540.972 | C146: 35.4622 | D146: 41.4716 | E146: 43.8058 | F146: 101718.21 | G146: 62.53
A147: BQTerrace.Q32.jvet10.ra | B147: 1737.352 | C147: 34.1762 | D147: 40.3892 | E147: 42.8933 | F147: 60917.27 | G147: 42.05
A148: BQTerrace.Q37.jvet10.ra | B148: 775.3712 | C148: 32.6379 | D148: 39.277 | E148: 41.9854 | F148: 39099.71 | G148: 34.74
A149: BasketballDrill.Q22.jvet10.ra | B149: 2856.6552 | C149: 41.3135 | D149: 43.762 | E149: 44.5678 | F149: 41340.51 | G149: 15.38
A150: BasketballDrill.Q27.jvet10.ra | B150: 1310.572 | C150: 38.1094 | D150: 41.567 | E150: 41.9751 | F150: 29610.95 | G150: 11.56
A151: BasketballDrill.Q32.jvet10.ra | B151: 661.6096 | C151: 35.2095 | D151: 39.8497 | E151: 40.0918 | F151: 21475.4 | G151: 9.33
A152: BasketballDrill.Q37.jvet10.ra | B152: 339.2744 | C152: 32.6015 | D152: 38.3302 | E152: 38.3842 | F152: 14048.82 | G152: 6.83
A153: BQMall.Q22.jvet10.ra | B153: 2894.8824 | C153: 40.5094 | D153: 44.1135 | E153: 45.8687 | F153: 37305.46 | G153: 16.52
A154: BQMall.Q27.jvet10.ra | B154: 1293.2448 | C154: 37.9903 | D154: 42.3544 | E154: 43.7248 | F154: 25472.08 | G154: 11.41
A155: BQMall.Q32.jvet10.ra | B155: 650.956 | C155: 35.3395 | D155: 40.8418 | E155: 41.9718 | F155: 18421.69 | G155: 9.38
A156: BQMall.Q37.jvet10.ra | B156: 334.54 | C156: 32.599 | D156: 39.4404 | E156: 40.4 | F156: 13152.85 | G156: 7.51
A157: PartyScene.Q22.jvet10.ra | B157: 5576.0696 | C157: 38.7554 | D157: 42.2417 | E157: 43.4969 | F157: 39645.07 | G157: 20.29
A158: PartyScene.Q27.jvet10.ra | B158: 2461.8304 | C158: 35.31 | D158: 39.825 | E158: 40.9534 | F158: 26927.37 | G158: 14.76
A159: PartyScene.Q32.jvet10.ra | B159: 1188.968 | C159: 32.2685 | D159: 38.0957 | E159: 39.0551 | F159: 19912.38 | G159: 11.27
A160: PartyScene.Q37.jvet10.ra | B160: 558.1096 | C160: 29.4191 | D160: 36.5943 | E160: 37.3812 | F160: 14084.03 | G160: 8.5
A161: RaceHorsesC.Q22.jvet10.ra | B161: 4204.7352 | C161: 39.3832 | D161: 41.6472 | E161: 43.196 | F161: 34286.74 | G161: 13.83
A162: RaceHorsesC.Q27.jvet10.ra | B162: 1615.9232 | C162: 35.9949 | D162: 39.5194 | E162: 41.1586 | F162: 23248.38 | G162: 9.84
A163: RaceHorsesC.Q32.jvet10.ra | B163: 771.5488 | C163: 33.3036 | D163: 37.9455 | E163: 39.7438 | F163: 17015.68 | G163: 6.82
A164: RaceHorsesC.Q37.jvet10.ra | B164: 372.6336 | C164: 30.6789 | D164: 36.485 | E164: 38.3921 | F164: 11576.46 | G164: 5.37
A165: BasketballPass.Q22.jvet10.ra | B165: 1275.3504 | C165: 41.3138 | D165: 44.6885 | E165: 43.8367 | F165: 10511.38 | G165: 4.95
A166: BasketballPass.Q27.jvet10.ra | B166: 602.2936 | C166: 37.2293 | D166: 42.1596 | E166: 40.8764 | F166: 8106.85 | G166: 3.52
A167: BasketballPass.Q32.jvet10.ra | B167: 304.008 | C167: 33.922 | D167: 40.3727 | E167: 38.8957 | F167: 6238.83 | G167: 2.5
A168: BasketballPass.Q37.jvet10.ra | B168: 153.0712 | C168: 31.0028 | D168: 38.7433 | E168: 37.0871 | F168: 4344.23 | G168: 1.93
A169: BQSquare.Q22.jvet10.ra | B169: 1278.66 | C169: 38.4534 | D169: 44.057 | E169: 45.421 | F169: 8918.41 | G169: 5.42
A170: BQSquare.Q27.jvet10.ra | B170: 467.6104 | C170: 35.2439 | D170: 41.8932 | E170: 43.1761 | F170: 4697.77 | G170: 3.38
A171: BQSquare.Q32.jvet10.ra | B171: 212.7144 | C171: 32.5088 | D171: 40.1926 | E171: 41.4396 | F171: 3033.19 | G171: 2.54
A172: BQSquare.Q37.jvet10.ra | B172: 112.0968 | C172: 29.9911 | D172: 38.9688 | E172: 39.979 | F172: 2174.7 | G172: 2.2
A173: BlowingBubbles.Q22.jvet10.ra | B173: 1347.1448 | C173: 38.5508 | D173: 41.9495 | E173: 43.1081 | F173: 8579.41 | G173: 4.48
A174: BlowingBubbles.Q27.jvet10.ra | B174: 599.3504 | C174: 35.2226 | D174: 39.5326 | E174: 40.4529 | F174: 6072.29 | G174: 3.3
A175: BlowingBubbles.Q32.jvet10.ra | B175: 289.548 | C175: 32.2095 | D175: 37.6699 | E175: 38.4035 | F175: 4443.64 | G175: 2.32
A176: BlowingBubbles.Q37.jvet10.ra | B176: 135.4336 | C176: 29.338 | D176: 35.9786 | E176: 36.6207 | F176: 3120.73 | G176: 1.83
A177: RaceHorses.Q22.jvet10.ra | B177: 1021.0504 | C177: 39.9461 | D177: 42.0436 | E177: 43.1202 | F177: 7389.38 | G177: 3.3
A178: RaceHorses.Q27.jvet10.ra | B178: 481.1128 | C178: 36.0274 | D178: 39.4171 | E178: 40.6153 | F178: 5430.11 | G178: 2.39
A179: RaceHorses.Q32.jvet10.ra | B179: 240.6824 | C179: 32.7525 | D179: 37.5941 | E179: 38.9213 | F179: 4225.89 | G179: 1.76
A180: RaceHorses.Q37.jvet10.ra | B180: 116.7472 | C180: 29.8472 | D180: 36.056 | E180: 37.2953 | F180: 2944.09 | G180: 1.33
A181: FourPeople.Q22.jvet10.ra
A182: FourPeople.Q27.jvet10.ra
A183: FourPeople.Q32.jvet10.ra
A184: FourPeople.Q37.jvet10.ra
A185: Johnny.Q22.jvet10.ra
A186: Johnny.Q27.jvet10.ra
A187: Johnny.Q32.jvet10.ra
A188: Johnny.Q37.jvet10.ra
A189: KristenAndSara.Q22.jvet10.ra
A190: KristenAndSara.Q27.jvet10.ra
A191: KristenAndSara.Q32.jvet10.ra
A192: KristenAndSara.Q37.jvet10.ra
A193: BasketballDrillText.Q22.jvet10.ra | B193: 2952.4112 | C193: 41.4361 | D193: 43.7448 | E193: 44.524 | F193: 38503.03 | G193: 15.23
A194: BasketballDrillText.Q27.jvet10.ra | B194: 1387.5576 | C194: 38.1569 | D194: 41.3006 | E194: 41.7178 | F194: 28156.87 | G194: 12.27
A195: BasketballDrillText.Q32.jvet10.ra | B195: 715.0848 | C195: 35.1662 | D195: 39.3521 | E195: 39.631 | F195: 20428.63 | G195: 8.88
A196: BasketballDrillText.Q37.jvet10.ra | B196: 374.8744 | C196: 32.4456 | D196: 37.6342 | E196: 37.7901 | F196: 14001.91 | G196: 6.37
A197: ArenaOfValor.Q22.jvet10.ra | B197: 11635.0472 | C197: 43.0626 | D197: 45.1636 | E197: 45.7594 | F197: 142765.41 | G197: 78.02
A198: ArenaOfValor.Q27.jvet10.ra | B198: 4999.1696 | C198: 39.7307 | D198: 42.5679 | E198: 42.9604 | F198: 101901.24 | G198: 51.46
A199: ArenaOfValor.Q32.jvet10.ra | B199: 2449.1168 | C199: 36.8587 | D199: 40.6365 | E199: 40.8913 | F199: 77076.34 | G199: 44.13
A200: ArenaOfValor.Q37.jvet10.ra | B200: 1234.212 | C200: 34.1438 | D200: 38.8331 | E200: 38.9566 | F200: 53809.36 | G200: 37.31
... 216 more rows
